Publisher Label,Publisher URI,Body Name,Service Area Categorisation,Service Division Categorisation,Expenses Type,Date,Transaction Number,Amount,Capital or Revenue,Supplier Name,Merchant Category
Peterborough,http://opendatacommunities.org/id/unitary-authority/peterborough,Peterborough City Council,Peterborough Serco Strategic Partnership,Peterborough Serco Strategic Partnership,"Printing, Stationery & General Office Expenses",04/01/2017 00:00,30074072,1178.91,Revenue,Serco Ltd,Stationery
Peterborough,http://opendatacommunities.org/id/unitary-authority/peterborough,Peterborough City Council,Corporate Property,Commercial Propety,Services,04/01/2017 00:00,30077524,700,Revenue,Barker Storey Matthews,Consultants Fees
Peterborough,http://opendatacommunities.org/id/unitary-authority/peterborough,Peterborough City Council,Education,Schools Finance,Interview & Training Expenses,04/01/2017 00:00,30086840,820,Revenue,FTC Kaplan Ltd,Training
Peterborough,http://opendatacommunities.org/id/unitary-authority/peterborough,Peterborough City Council,ICT,ICT,Services,04/01/2017 00:00,30087610,11468.83,Revenue,Serco Ltd,Computer Hardware
Peterborough,http://opendatacommunities.org/id/unitary-authority/peterborough,Peterborough City Council,Corporate,Corporate,Non Revenue,04/01/2017 00:00,30091340,1258.91,Capital,Serco Ltd,Building And Site Works
Peterborough,http://opendatacommunities.org/id/unitary-authority/peterborough,Peterborough City Council,Business Management and Commercial Operations,Clare Lodge,Repair & Maintenance of Buildings,04/01/2017 00:00,30093686,-1014.32,Revenue,The K A Wing Group Ltd,Premises Maintenance
Peterborough,http://opendatacommunities.org/id/unitary-authority/peterborough,Peterborough City Council,Business Management and Commercial Operations,Clare Lodge,Repair & Maintenance of Buildings,04/01/2017 00:00,30093688,-547.04,Revenue,The K A Wing Group Ltd,Premises Maintenance
Peterborough,http://opendatacommunities.org/id/unitary-authority/peterborough,Peterborough City Council,Public Health,Housing and Health - Public Health,Third Party Payments,04/01/2017 00:00,30095100,4300,Revenue,LGSS Cambridgeshire Pension Fund,Third Party Payments - Contract
Peterborough,http://opendatacommunities.org/id/unitary-authority/peterborough,Peterborough City Council,ICT,ICT,Services,04/01/2017 00:00,30096586,4780.91,Revenue,Serco Ltd,Computer Hardware
Peterborough,http://opendatacommunities.org/id/unitary-authority/peterborough,Peterborough City Council,Business Management and Commercial Operations,Commissioning,Services,04/01/2017 00:00,30100681,500.71,Revenue,CAPITA Translation and Interpreting,Interpretation Expenses
Peterborough,http://opendatacommunities.org/id/unitary-authority/peterborough,Peterborough City Council,Business Management and Commercial Operations,Commissioning,Services,04/01/2017 00:00,30100683,3554.88,Revenue,CAPITA Translation and Interpreting,Interpretation Expenses
Peterborough,http://opendatacommunities.org/id/unitary-authority/peterborough,Peterborough City Council,Business Management and Commercial Operations,Commissioning,Services,04/01/2017 00:00,30100684,1019.34,Revenue,CAPITA Translation and Interpreting,Interpretation Expenses
Peterborough,http://opendatacommunities.org/id/unitary-authority/peterborough,Peterborough City Council,Adult Services & Communities - Adults,Day Opportunities / In House,Agency Staff,04/01/2017 00:00,30100706,5562.65,Revenue,Caritas Recruitment,External Temporary Staff
Peterborough,http://opendatacommunities.org/id/unitary-authority/peterborough,Peterborough City Council,Business Management and Commercial Operations,Commissioning,Services,04/01/2017 00:00,30100730,623.04,Revenue,CAPITA Translation and Interpreting,Interpretation Expenses
Peterborough,http://opendatacommunities.org/id/unitary-authority/peterborough,Peterborough City Council,Business Management and Commercial Operations,Commissioning,Services,04/01/2017 00:00,30100731,2482.71,Revenue,CAPITA Translation and Interpreting,Interpretation Expenses
Peterborough,http://opendatacommunities.org/id/unitary-authority/peterborough,Peterborough City Council,Adult Services & Communities - Adults,Day Opportunities / In House,Agency Staff,04/01/2017 00:00,30100739,5165.75,Revenue,Caritas Recruitment,External Temporary Staff
Peterborough,http://opendatacommunities.org/id/unitary-authority/peterborough,Peterborough City Council,Business Management and Commercial Operations,Commissioning,Services,04/01/2017 00:00,30100759,1373.02,Revenue,CAPITA Translation and Interpreting,Interpretation Expenses
Peterborough,http://opendatacommunities.org/id/unitary-authority/peterborough,Peterborough City Council,Business Management and Commercial Operations,Commissioning,Services,04/01/2017 00:00,30100766,771.78,Revenue,CAPITA Translation and Interpreting,Interpretation Expenses
Peterborough,http://opendatacommunities.org/id/unitary-authority/peterborough,Peterborough City Council,Adults and Communities - Communities,Community Safety,Services,04/01/2017 00:00,30100776,868.4,Revenue,Patrol,Administration Expenses
Peterborough,http://opendatacommunities.org/id/unitary-authority/peterborough,Peterborough City Council,Corporate,Corporate,Non Revenue,04/01/2017 00:00,30100808,1009.7,Capital,Serco Ltd,Consultants Fees
Peterborough,http://opendatacommunities.org/id/unitary-authority/peterborough,Peterborough City Council,Corporate,Corporate,Non Revenue,04/01/2017 00:00,30100810,6851.47,Capital,Serco Ltd,Consultants Fees
Peterborough,http://opendatacommunities.org/id/unitary-authority/peterborough,Peterborough City Council,Corporate,Corporate,Non Revenue,04/01/2017 00:00,30100845,28739.12,Capital,Serco Ltd,Consultants Fees
Peterborough,http://opendatacommunities.org/id/unitary-authority/peterborough,Peterborough City Council,Commercial Group,Strategic Client Services,Agency Staff,04/01/2017 00:00,30101170,1286.52,Revenue,Hays Specialist Recruitment Ltd,External Temporary Staff
Peterborough,http://opendatacommunities.org/id/unitary-authority/peterborough,Peterborough City Council,Children's & Safeguarding,Access to Resources & Specialist Commissioning,Services,04/01/2017 00:00,30101940,17957.86,Revenue,Halliwell Homes Ltd,Boarding Out Allowances
Peterborough,http://opendatacommunities.org/id/unitary-authority/peterborough,Peterborough City Council,Peterborough Serco Strategic Partnership,Peterborough Serco Strategic Partnership,Services,04/01/2017 00:00,30101944,13365,Revenue,CapacityGrid,Consultants Fees
Peterborough,http://opendatacommunities.org/id/unitary-authority/peterborough,Peterborough City Council,Children's & Safeguarding,Access to Resources & Specialist Commissioning,Services,04/01/2017 00:00,30102153,53733.33,Revenue,Cotswold Chine School,Boarding Out Allowances
Peterborough,http://opendatacommunities.org/id/unitary-authority/peterborough,Peterborough City Council,City Servs & Communications,"Markets, Tourism & Events",Services,04/01/2017 00:00,30103213,7775,Revenue,Peterborough Firework Fiesta,Tickets
Peterborough,http://opendatacommunities.org/id/unitary-authority/peterborough,Peterborough City Council,Corporate Items,Corporate Services,Services,04/01/2017 00:00,30103631,17058.93,Revenue,LGSS Cambridgeshire Pension Fund,Pensions
Peterborough,http://opendatacommunities.org/id/unitary-authority/peterborough,Peterborough City Council,City Servs & Communications,Regulatory Services,Agency Staff,04/01/2017 00:00,30104659,988.08,Revenue,Eden Brown Ltd,External Temporary Staff
Peterborough,http://opendatacommunities.org/id/unitary-authority/peterborough,Peterborough City Council,City Servs & Communications,Regulatory Services,Agency Staff,04/01/2017 00:00,30104665,1024.15,Revenue,Eden Brown Ltd,External Temporary Staff
Peterborough,http://opendatacommunities.org/id/unitary-authority/peterborough,Peterborough City Council,Children's & Safeguarding,Access to Resources & Specialist Commissioning,Services,04/01/2017 00:00,30104692,15278.57,Revenue,Meadows Care Ltd,Boarding Out Allowances
Peterborough,http://opendatacommunities.org/id/unitary-authority/peterborough,Peterborough City Council,Children's & Safeguarding,Access to Resources & Specialist Commissioning,Services,04/01/2017 00:00,30104693,15278.57,Revenue,Meadows Care Ltd,Boarding Out Allowances
Peterborough,http://opendatacommunities.org/id/unitary-authority/peterborough,Peterborough City Council,Education,Special Educational Needs / Inclusion,"Tools, Equipment, Furniture & Materials",04/01/2017 00:00,30104768,795,Revenue,Walters Limited,Furniture And Equipment Purchase
Peterborough,http://opendatacommunities.org/id/unitary-authority/peterborough,Peterborough City Council,Adults and Communities - Communities,Community Safety,Services,04/01/2017 00:00,30104950,11620,Revenue,Rapid Vision Systems Ltd,Projects
Peterborough,http://opendatacommunities.org/id/unitary-authority/peterborough,Peterborough City Council,City Servs & Communications,"Markets, Tourism & Events",Services,04/01/2017 00:00,30105311,7474,Revenue,Stagecoach in Peterborough,Contractors
Peterborough,http://opendatacommunities.org/id/unitary-authority/peterborough,Peterborough City Council,Corporate,Corporate,Non Revenue,04/01/2017 00:00,30105331,1400,Capital,African-Caribbean Forum,Grant Payment
Peterborough,http://opendatacommunities.org/id/unitary-authority/peterborough,Peterborough City Council,Business Management and Commercial Operations,Commissioning,Services,04/01/2017 00:00,30105366,1003.9,Revenue,CAPITA Translation and Interpreting,Interpretation Expenses
Peterborough,http://opendatacommunities.org/id/unitary-authority/peterborough,Peterborough City Council,Business Management and Commercial Operations,Commissioning,Services,04/01/2017 00:00,30105367,773.66,Revenue,CAPITA Translation and Interpreting,Interpretation Expenses
Peterborough,http://opendatacommunities.org/id/unitary-authority/peterborough,Peterborough City Council,Business Management and Commercial Operations,Commissioning,Services,04/01/2017 00:00,30105371,913.21,Revenue,CAPITA Translation and Interpreting,Interpretation Expenses
Peterborough,http://opendatacommunities.org/id/unitary-authority/peterborough,Peterborough City Council,Business Management and Commercial Operations,Commissioning,Services,04/01/2017 00:00,30105400,617.64,Revenue,CAPITA Translation and Interpreting,Interpretation Expenses
Peterborough,http://opendatacommunities.org/id/unitary-authority/peterborough,Peterborough City Council,Business Management and Commercial Operations,Commissioning,Services,04/01/2017 00:00,30105403,737.52,Revenue,CAPITA Translation and Interpreting,Interpretation Expenses
Peterborough,http://opendatacommunities.org/id/unitary-authority/peterborough,Peterborough City Council,Corporate,Corporate,Non Revenue,04/01/2017 00:00,30105430,2478.34,Capital,Serco Ltd,Consultants Fees
Peterborough,http://opendatacommunities.org/id/unitary-authority/peterborough,Peterborough City Council,Corporate,Corporate,Non Revenue,04/01/2017 00:00,30105446,1201.03,Capital,Serco Ltd,Consultants Fees
Peterborough,http://opendatacommunities.org/id/unitary-authority/peterborough,Peterborough City Council,Corporate,Corporate,Non Revenue,04/01/2017 00:00,30105449,1262.98,Capital,Serco Ltd,Consultants Fees
Peterborough,http://opendatacommunities.org/id/unitary-authority/peterborough,Peterborough City Council,Corporate,Corporate,Non Revenue,04/01/2017 00:00,30105454,11045.89,Capital,Serco Ltd,Consultants Fees
Peterborough,http://opendatacommunities.org/id/unitary-authority/peterborough,Peterborough City Council,Business Management and Commercial Operations,Commissioning,Services,04/01/2017 00:00,30105457,3850.22,Revenue,CAPITA Translation and Interpreting,Interpretation Expenses
Peterborough,http://opendatacommunities.org/id/unitary-authority/peterborough,Peterborough City Council,Corporate,Corporate,Non Revenue,04/01/2017 00:00,30105458,7011.41,Capital,Serco Ltd,Computer Hardware
Peterborough,http://opendatacommunities.org/id/unitary-authority/peterborough,Peterborough City Council,Corporate,Corporate,Non Revenue,04/01/2017 00:00,30105459,523.85,Capital,Serco Ltd,Consultants Fees
Peterborough,http://opendatacommunities.org/id/unitary-authority/peterborough,Peterborough City Council,Corporate,Corporate,Non Revenue,04/01/2017 00:00,30105460,1786.71,Capital,Serco Ltd,Consultants Fees
Peterborough,http://opendatacommunities.org/id/unitary-authority/peterborough,Peterborough City Council,Business Management and Commercial Operations,Commissioning,Services,04/01/2017 00:00,30105464,2870.4,Revenue,CAPITA Translation and Interpreting,Interpretation Expenses
Peterborough,http://opendatacommunities.org/id/unitary-authority/peterborough,Peterborough City Council,Business Management and Commercial Operations,Commissioning,Services,04/01/2017 00:00,30105474,550.96,Revenue,CAPITA Translation and Interpreting,Interpretation Expenses
Peterborough,http://opendatacommunities.org/id/unitary-authority/peterborough,Peterborough City Council,Business Management and Commercial Operations,Commissioning,Services,04/01/2017 00:00,30105487,659.48,Revenue,CAPITA Translation and Interpreting,Interpretation Expenses
Peterborough,http://opendatacommunities.org/id/unitary-authority/peterborough,Peterborough City Council,Corporate,Corporate,Non Revenue,04/01/2017 00:00,30105489,1045,Capital,Serco Ltd,Consultants Fees
Peterborough,http://opendatacommunities.org/id/unitary-authority/peterborough,Peterborough City Council,Business Management and Commercial Operations,Commissioning,Services,04/01/2017 00:00,30105490,779.45,Revenue,CAPITA Translation and Interpreting,Interpretation Expenses
Peterborough,http://opendatacommunities.org/id/unitary-authority/peterborough,Peterborough City Council,Corporate,Corporate,Non Revenue,04/01/2017 00:00,30105548,1265.14,Capital,Serco Ltd,Consultants Fees
Peterborough,http://opendatacommunities.org/id/unitary-authority/peterborough,Peterborough City Council,Children's & Safeguarding,Access to Resources & Specialist Commissioning,Services,04/01/2017 00:00,30105730,15500,Revenue,Glebe House,Boarding Out Allowances
Peterborough,http://opendatacommunities.org/id/unitary-authority/peterborough,Peterborough City Council,Corporate,Corporate,Non Revenue,04/01/2017 00:00,30105865,2448,Capital,M J Greaves,Grant Payment
Peterborough,http://opendatacommunities.org/id/unitary-authority/peterborough,Peterborough City Council,Children's & Safeguarding,Access to Resources & Specialist Commissioning,Services,04/01/2017 00:00,30105905,23250,Revenue,Care 4 Children Residential Services Ltd,Boarding Out Allowances
Peterborough,http://opendatacommunities.org/id/unitary-authority/peterborough,Peterborough City Council,Peterborough Highway Services,Transport & Infrastructure Commissioning,Services,04/01/2017 00:00,30105943,15453.08,Revenue,Statutory Payment of Concessionary Fares to Bus Provider,Contractors
Peterborough,http://opendatacommunities.org/id/unitary-authority/peterborough,Peterborough City Council,Children's & Safeguarding,Access to Resources & Specialist Commissioning,Services,04/01/2017 00:00,30105944,21669,Revenue,Childhood First,Boarding Out Allowances
Peterborough,http://opendatacommunities.org/id/unitary-authority/peterborough,Peterborough City Council,Children's & Safeguarding,Access to Resources & Specialist Commissioning,Services,04/01/2017 00:00,30106000,4411.43,Revenue,By The Bridge,Boarding Out Allowances
Peterborough,http://opendatacommunities.org/id/unitary-authority/peterborough,Peterborough City Council,Adult Services & Communities - Adults,Day Opportunities / In House,Agency Staff,04/01/2017 00:00,30106144,1125.91,Revenue,Swim Recruitment,External Temporary Staff
Peterborough,http://opendatacommunities.org/id/unitary-authority/peterborough,Peterborough City Council,Business Management and Commercial Operations,Clare Lodge,Agency Staff,04/01/2017 00:00,30106301,912,Revenue,Wrixon Care Services,External Temporary Staff
Peterborough,http://opendatacommunities.org/id/unitary-authority/peterborough,Peterborough City Council,Corporate,Corporate,Non Revenue,04/01/2017 00:00,30106519,48733,Capital,Honeywell Control Systems Ltd,Building And Site Works
Peterborough,http://opendatacommunities.org/id/unitary-authority/peterborough,Peterborough City Council,Corporate,Corporate,Non Revenue,04/01/2017 00:00,30106520,4530,Capital,Honeywell Control Systems Ltd,Building And Site Works
Peterborough,http://opendatacommunities.org/id/unitary-authority/peterborough,Peterborough City Council,Corporate,Corporate,Non Revenue,04/01/2017 00:00,30106521,62241.92,Capital,Honeywell Control Systems Ltd,Building And Site Works
Peterborough,http://opendatacommunities.org/id/unitary-authority/peterborough,Peterborough City Council,Corporate,Corporate,Non Revenue,04/01/2017 00:00,30106522,3595,Capital,Honeywell Control Systems Ltd,Building And Site Works
Peterborough,http://opendatacommunities.org/id/unitary-authority/peterborough,Peterborough City Council,Children's & Safeguarding,Access to Resources & Specialist Commissioning,Services,04/01/2017 00:00,30106565,15500,Revenue,Barford Children's Services,Boarding Out Allowances
Peterborough,http://opendatacommunities.org/id/unitary-authority/peterborough,Peterborough City Council,Children's & Safeguarding,Access to Resources & Specialist Commissioning,Services,04/01/2017 00:00,30106566,15500,Revenue,Barford Children's Services,Boarding Out Allowances
Peterborough,http://opendatacommunities.org/id/unitary-authority/peterborough,Peterborough City Council,Peterborough Highway Services,Transport & Infrastructure Commissioning,Services,04/01/2017 00:00,30106663,27505.92,Revenue,Stagecoach in Peterborough,Contractors
Peterborough,http://opendatacommunities.org/id/unitary-authority/peterborough,Peterborough City Council,Business Management and Commercial Operations,Clare Lodge,Agency Staff,04/01/2017 00:00,30106679,2106,Revenue,Textbook Teachers Ltd,Supply Teachers
Peterborough,http://opendatacommunities.org/id/unitary-authority/peterborough,Peterborough City Council,Amey Peterborough & Waste Management,Waste Management,Services,04/01/2017 00:00,30106923,12335.13,Revenue,H W Martin Waste Ltd,Contractors
Peterborough,http://opendatacommunities.org/id/unitary-authority/peterborough,Peterborough City Council,Business Management and Commercial Operations,Clare Lodge,Agency Staff,04/01/2017 00:00,30107022,1647,Revenue,Engage Education,External Temporary Staff
Peterborough,http://opendatacommunities.org/id/unitary-authority/peterborough,Peterborough City Council,Children's & Safeguarding,Access to Resources & Specialist Commissioning,Services,04/01/2017 00:00,30107107,3107.14,Revenue,Pride Fostering,Boarding Out Allowances
Peterborough,http://opendatacommunities.org/id/unitary-authority/peterborough,Peterborough City Council,Children's & Safeguarding,Access to Resources & Specialist Commissioning,Services,04/01/2017 00:00,30107110,3107.14,Revenue,Pride Fostering,Boarding Out Allowances
Peterborough,http://opendatacommunities.org/id/unitary-authority/peterborough,Peterborough City Council,Children's & Safeguarding,Access to Resources & Specialist Commissioning,Services,04/01/2017 00:00,30107111,3107.14,Revenue,Pride Fostering,Boarding Out Allowances
Peterborough,http://opendatacommunities.org/id/unitary-authority/peterborough,Peterborough City Council,Legal & Democratic,Democratic Services,Services,04/01/2017 00:00,30107277,582.42,Revenue,Johnston Press Midlands Division,Publications
Peterborough,http://opendatacommunities.org/id/unitary-authority/peterborough,Peterborough City Council,Adult Services & Communities - Adults,Independent Sector Placements,Contract Hire and Operating Leases,04/01/2017 00:00,30107433,525,Revenue,Peterborough Cars,Hired Transport
Peterborough,http://opendatacommunities.org/id/unitary-authority/peterborough,Peterborough City Council,Corporate,Corporate,Non Revenue,04/01/2017 00:00,30107777,4000,Capital,Vodafone Ltd,Infrastructure
Peterborough,http://opendatacommunities.org/id/unitary-authority/peterborough,Peterborough City Council,Adult Services & Communities - Adults,Day Opportunities / In House,Agency Staff,04/01/2017 00:00,30107786,-5165.75,Revenue,Caritas Recruitment,External Temporary Staff
Peterborough,http://opendatacommunities.org/id/unitary-authority/peterborough,Peterborough City Council,ICT,ICT,Services,04/01/2017 00:00,30107827,10000,Revenue,Arcus Global ltd,Ict Maintenance
Peterborough,http://opendatacommunities.org/id/unitary-authority/peterborough,Peterborough City Council,ICT,ICT,Services,04/01/2017 00:00,30107833,1332,Revenue,Arcus Global ltd,Ict Maintenance
Peterborough,http://opendatacommunities.org/id/unitary-authority/peterborough,Peterborough City Council,Corporate,Corporate,Non Revenue,04/01/2017 00:00,30107931,500,Capital,Friends of Bretton Library,Grant Payment
Peterborough,http://opendatacommunities.org/id/unitary-authority/peterborough,Peterborough City Council,City Servs & Communications,"Markets, Tourism & Events",Services,04/01/2017 00:00,30107936,854.44,Revenue,Impression Holidays & Excursions Ltd,Contractors
Peterborough,http://opendatacommunities.org/id/unitary-authority/peterborough,Peterborough City Council,Corporate,Corporate,Non Revenue,04/01/2017 00:00,30108008,9148.5,Capital,V4 Services Ltd,Consultants Fees
Peterborough,http://opendatacommunities.org/id/unitary-authority/peterborough,Peterborough City Council,Corporate,Corporate,Non Revenue,04/01/2017 00:00,30108047,1900,Capital,Number 10 Interim Ltd,Consultants Fees
Peterborough,http://opendatacommunities.org/id/unitary-authority/peterborough,Peterborough City Council,Peterborough Highway Services,Transport & Infrastructure Commissioning,Services,04/01/2017 00:00,30108133,15384.62,Revenue,Stagecoach in Peterborough,Contractors
Peterborough,http://opendatacommunities.org/id/unitary-authority/peterborough,Peterborough City Council,Corporate,Corporate,Non Revenue,04/01/2017 00:00,30108170,14377.64,Capital,Mears Ltd,Furniture And Equipment Purchase
Peterborough,http://opendatacommunities.org/id/unitary-authority/peterborough,Peterborough City Council,Corporate,Corporate,Non Revenue,04/01/2017 00:00,30108182,12465,Capital,T Clarke East Limited,Building And Site Works
Peterborough,http://opendatacommunities.org/id/unitary-authority/peterborough,Peterborough City Council,Adult Services & Communities - Adults,Day Opportunities / In House,Agency Staff,04/01/2017 00:00,30108221,2739.5,Revenue,Caritas Recruitment,External Temporary Staff
Peterborough,http://opendatacommunities.org/id/unitary-authority/peterborough,Peterborough City Council,Children's & Safeguarding,Access to Resources & Specialist Commissioning,Services,04/01/2017 00:00,30108223,4269.13,Revenue,By The Bridge,Boarding Out Allowances
Peterborough,http://opendatacommunities.org/id/unitary-authority/peterborough,Peterborough City Council,Children's & Safeguarding,Access to Resources & Specialist Commissioning,Services,04/01/2017 00:00,30108226,4269.13,Revenue,By The Bridge,Boarding Out Allowances
Peterborough,http://opendatacommunities.org/id/unitary-authority/peterborough,Peterborough City Council,Education,PFI,Services,04/01/2017 00:00,30108249,3869.43,Revenue,IIC by Education (P'boro) Ltd,Service Charge
Peterborough,http://opendatacommunities.org/id/unitary-authority/peterborough,Peterborough City Council,Performance & Information,Performance & Information,Agency Staff,04/01/2017 00:00,30108265,538.92,Revenue,Reed Specialist Recruitment,External Temporary Staff
Peterborough,http://opendatacommunities.org/id/unitary-authority/peterborough,Peterborough City Council,Adults and Communities - Communities,Early Help ASC/CSC,Agency Staff,04/01/2017 00:00,30108270,577.19,Revenue,Reed Specialist Recruitment,External Temporary Staff
Peterborough,http://opendatacommunities.org/id/unitary-authority/peterborough,Peterborough City Council,Corporate,Corporate,Non Revenue,04/01/2017 00:00,30108271,12789.49,Capital,The K A Wing Group Ltd,Building And Site Works
Peterborough,http://opendatacommunities.org/id/unitary-authority/peterborough,Peterborough City Council,Performance & Information,Performance & Information,Agency Staff,04/01/2017 00:00,30108275,751.88,Revenue,Reed Specialist Recruitment,External Temporary Staff
Peterborough,http://opendatacommunities.org/id/unitary-authority/peterborough,Peterborough City Council,Adult Services & Communities - Adults,Finance,Agency Staff,04/01/2017 00:00,30108336,3325,Revenue,Willowmead Consultants Ltd,External Temporary Staff
Peterborough,http://opendatacommunities.org/id/unitary-authority/peterborough,Peterborough City Council,Public Health,Housing and Health - Public Health,Third Party Payments,04/01/2017 00:00,30108346,3582.97,Revenue,Cambs & P'boro NHS Foundation Trust,Third Party Payments - Contract
Peterborough,http://opendatacommunities.org/id/unitary-authority/peterborough,Peterborough City Council,Westcombe Engineering,Westcombe Engineering,"Tools, Equipment, Furniture & Materials",04/01/2017 00:00,30108445,628,Revenue,Barron Clark Castings Ltd,Items For Resale
Peterborough,http://opendatacommunities.org/id/unitary-authority/peterborough,Peterborough City Council,Westcombe Engineering,Westcombe Engineering,"Tools, Equipment, Furniture & Materials",04/01/2017 00:00,30108449,551.98,Revenue,Barron Clark Castings Ltd,Items For Resale
Peterborough,http://opendatacommunities.org/id/unitary-authority/peterborough,Peterborough City Council,Corporate,Corporate,Non Revenue,04/01/2017 00:00,30108493,1641.4,Capital,Bloom & Wake Ltd,Grant Payment
Peterborough,http://opendatacommunities.org/id/unitary-authority/peterborough,Peterborough City Council,Corporate,Corporate,Non Revenue,04/01/2017 00:00,30108496,4620,Capital,GPR Gas Services,Grant Payment
Peterborough,http://opendatacommunities.org/id/unitary-authority/peterborough,Peterborough City Council,Corporate,Corporate,Non Revenue,04/01/2017 00:00,30108498,1000,Capital,Dolphin Mobility East Midlands Ltd,Grant Payment
Peterborough,http://opendatacommunities.org/id/unitary-authority/peterborough,Peterborough City Council,Corporate,Corporate,Non Revenue,04/01/2017 00:00,30108499,1595,Capital,Dolphin Mobility East Midlands Ltd,Grant Payment
Peterborough,http://opendatacommunities.org/id/unitary-authority/peterborough,Peterborough City Council,Corporate,Corporate,Non Revenue,04/01/2017 00:00,30108500,2726.28,Capital,Casbon Building Services,Grant Payment
Peterborough,http://opendatacommunities.org/id/unitary-authority/peterborough,Peterborough City Council,Corporate,Corporate,Non Revenue,04/01/2017 00:00,30108502,8533,Capital,Casbon Building Services,Grant Payment
Peterborough,http://opendatacommunities.org/id/unitary-authority/peterborough,Peterborough City Council,Corporate,Corporate,Non Revenue,04/01/2017 00:00,30108504,4134,Capital,Casbon Building Services,Grant Payment
Peterborough,http://opendatacommunities.org/id/unitary-authority/peterborough,Peterborough City Council,Corporate,Corporate,Non Revenue,04/01/2017 00:00,30108506,1920,Capital,M J Greaves,Grant Payment
Peterborough,http://opendatacommunities.org/id/unitary-authority/peterborough,Peterborough City Council,Corporate,Corporate,Non Revenue,04/01/2017 00:00,30108508,5558.7,Capital,Gaswise Services Ltd,Grant Payment
Peterborough,http://opendatacommunities.org/id/unitary-authority/peterborough,Peterborough City Council,Peterborough Highway Services,Transport & Infrastructure Commissioning,Services,04/01/2017 00:00,30108513,181566.66,Revenue,Stagecoach in Peterborough,Contractors
Peterborough,http://opendatacommunities.org/id/unitary-authority/peterborough,Peterborough City Council,Corporate Property,Office Accomodation,Energy Costs,04/01/2017 00:00,30108519,703.71,Revenue,Corona Energy Retail 4 Limited,Gas
Peterborough,http://opendatacommunities.org/id/unitary-authority/peterborough,Peterborough City Council,Vivacity/Cultural Services,Cultural Services,Energy Costs,04/01/2017 00:00,30108519,626.96,Revenue,Corona Energy Retail 4 Limited,Gas
Peterborough,http://opendatacommunities.org/id/unitary-authority/peterborough,Peterborough City Council,Vivacity/Cultural Services,Cultural Services,Energy Costs,04/01/2017 00:00,30108519,560.52,Revenue,Corona Energy Retail 4 Limited,Gas
Peterborough,http://opendatacommunities.org/id/unitary-authority/peterborough,Peterborough City Council,Vivacity/Cultural Services,Cultural Services,Energy Costs,04/01/2017 00:00,30108519,649.27,Revenue,Corona Energy Retail 4 Limited,Gas
Peterborough,http://opendatacommunities.org/id/unitary-authority/peterborough,Peterborough City Council,Children's & Safeguarding,Access to Resources & Specialist Commissioning,Services,04/01/2017 00:00,30108531,18533.35,Revenue,Dove Adolescent Services Ltd,Boarding Out Allowances
Peterborough,http://opendatacommunities.org/id/unitary-authority/peterborough,Peterborough City Council,Performance & Information,Performance & Information,Agency Staff,04/01/2017 00:00,30108538,543.38,Revenue,Reed Specialist Recruitment,External Temporary Staff
Peterborough,http://opendatacommunities.org/id/unitary-authority/peterborough,Peterborough City Council,Adult Services & Communities - Adults,Independent Sector Placements,Services,04/01/2017 00:00,30108555,1255.36,Revenue,POLEBROOK NURSING HOME,Residential Care
Peterborough,http://opendatacommunities.org/id/unitary-authority/peterborough,Peterborough City Council,Adult Services & Communities - Adults,Independent Sector Placements,Services,04/01/2017 00:00,30108557,1255.36,Revenue,POLEBROOK NURSING HOME,Residential Care
Peterborough,http://opendatacommunities.org/id/unitary-authority/peterborough,Peterborough City Council,Adult Services & Communities - Adults,Independent Sector Placements,Services,04/01/2017 00:00,30108559,5354.44,Revenue,Tracs Ltd,Residential Care
Peterborough,http://opendatacommunities.org/id/unitary-authority/peterborough,Peterborough City Council,Adult Services & Communities - Adults,Independent Sector Placements,Services,04/01/2017 00:00,30108561,2392,Revenue,Richmond Fellowship,Residential Care
Peterborough,http://opendatacommunities.org/id/unitary-authority/peterborough,Peterborough City Council,Adult Services & Communities - Adults,Independent Sector Placements,Services,04/01/2017 00:00,30108566,7966.72,Revenue,NEW BOUNDARIES COMMUNITY SERVICES LTD,Residential Care
Peterborough,http://opendatacommunities.org/id/unitary-authority/peterborough,Peterborough City Council,Legal & Democratic,Legal Services,Services,04/01/2017 00:00,30108573,500,Revenue,Jane Bennington,Legal Costs
Peterborough,http://opendatacommunities.org/id/unitary-authority/peterborough,Peterborough City Council,Adult Services & Communities - Adults,Independent Sector Placements,Services,04/01/2017 00:00,30108580,1821.88,Revenue,Country Court Care Homes Ltd (St Johns),Residential Care
Peterborough,http://opendatacommunities.org/id/unitary-authority/peterborough,Peterborough City Council,Adult Services & Communities - Adults,Independent Sector Placements,Services,04/01/2017 00:00,30108581,1952.01,Revenue,Country Court Care Homes Ltd (St Johns),Residential Care
Peterborough,http://opendatacommunities.org/id/unitary-authority/peterborough,Peterborough City Council,Adult Services & Communities - Adults,Independent Sector Placements,Services,04/01/2017 00:00,30108582,2017.08,Revenue,Country Court Care Homes Ltd (St Johns),Residential Care
Peterborough,http://opendatacommunities.org/id/unitary-authority/peterborough,Peterborough City Council,Business Management and Commercial Operations,Early Years & Quality Improvement,Services,04/01/2017 00:00,30108586,30022.74,Revenue,Flying Start Pre-School & Day Care Centre,Grant Payment
Peterborough,http://opendatacommunities.org/id/unitary-authority/peterborough,Peterborough City Council,Business Management and Commercial Operations,Early Years & Quality Improvement,Services,04/01/2017 00:00,30108587,5357.95,Revenue,Castor & Ailsworth Pre School,Grant Payment
Peterborough,http://opendatacommunities.org/id/unitary-authority/peterborough,Peterborough City Council,Business Management and Commercial Operations,Early Years & Quality Improvement,Services,04/01/2017 00:00,30108589,14756.77,Revenue,Apricot Childcare,Grant Payment
Peterborough,http://opendatacommunities.org/id/unitary-authority/peterborough,Peterborough City Council,Business Management and Commercial Operations,Early Years & Quality Improvement,Services,04/01/2017 00:00,30108590,12730.55,Revenue,Braybrook Nursery,Grant Payment
Peterborough,http://opendatacommunities.org/id/unitary-authority/peterborough,Peterborough City Council,Adult Services & Communities - Adults,Independent Sector Placements,Services,04/01/2017 00:00,30108597,729.43,Revenue,ABOUT ME CARE AND SUPPORT LTD,Home Care
Peterborough,http://opendatacommunities.org/id/unitary-authority/peterborough,Peterborough City Council,Adult Services & Communities - Adults,Independent Sector Placements,Services,04/01/2017 00:00,30108599,510.15,Revenue,ABOUT ME CARE AND SUPPORT LTD,Home Care
Peterborough,http://opendatacommunities.org/id/unitary-authority/peterborough,Peterborough City Council,Adult Services & Communities - Adults,Independent Sector Placements,Services,04/01/2017 00:00,30108600,1485.7,Revenue,ABOUT ME CARE AND SUPPORT LTD,Home Care
Peterborough,http://opendatacommunities.org/id/unitary-authority/peterborough,Peterborough City Council,Adult Services & Communities - Adults,Independent Sector Placements,Services,04/01/2017 00:00,30108608,630,Revenue,Midco Care Limited,Home Care
Peterborough,http://opendatacommunities.org/id/unitary-authority/peterborough,Peterborough City Council,Adult Services & Communities - Adults,Independent Sector Placements,Services,04/01/2017 00:00,30108609,945,Revenue,Midco Care Limited,Home Care
Peterborough,http://opendatacommunities.org/id/unitary-authority/peterborough,Peterborough City Council,Adult Services & Communities - Adults,Independent Sector Placements,Services,04/01/2017 00:00,30108610,840,Revenue,Midco Care Limited,Home Care
Peterborough,http://opendatacommunities.org/id/unitary-authority/peterborough,Peterborough City Council,Adult Services & Communities - Adults,Independent Sector Placements,Services,04/01/2017 00:00,30108613,4620,Revenue,Midco Care Limited,Home Care
Peterborough,http://opendatacommunities.org/id/unitary-authority/peterborough,Peterborough City Council,Adults and Communities - Communities,Service Director - Adults & Communities,Third Party Payments,04/01/2017 00:00,30108619,8030,Revenue,Peterborough Womens Aid,Third Party Payments - Contract
Peterborough,http://opendatacommunities.org/id/unitary-authority/peterborough,Peterborough City Council,Adult Services & Communities - Adults,Independent Sector Placements,Services,04/01/2017 00:00,30108621,2520,Revenue,Midco Care Limited,Home Care
Peterborough,http://opendatacommunities.org/id/unitary-authority/peterborough,Peterborough City Council,Adult Services & Communities - Adults,Independent Sector Placements,Services,04/01/2017 00:00,30108626,1470,Revenue,Midco Care Limited,Home Care
Peterborough,http://opendatacommunities.org/id/unitary-authority/peterborough,Peterborough City Council,Adult Services & Communities - Adults,Independent Sector Placements,Services,04/01/2017 00:00,30108631,840,Revenue,Midco Care Limited,Home Care
Peterborough,http://opendatacommunities.org/id/unitary-authority/peterborough,Peterborough City Council,Business Management and Commercial Operations,Clare Lodge,Services,04/01/2017 00:00,30108633,600,Revenue,M Caton Associates Ltd,Purchased Social Care Services
Peterborough,http://opendatacommunities.org/id/unitary-authority/peterborough,Peterborough City Council,Adult Services & Communities - Adults,Independent Sector Placements,Services,04/01/2017 00:00,30108634,747.31,Revenue,Avery House (Peterborough) t/a Brighterkind,Residential Care
Peterborough,http://opendatacommunities.org/id/unitary-authority/peterborough,Peterborough City Council,Business Management and Commercial Operations,Early Years & Quality Improvement,Services,04/01/2017 00:00,30108637,769.48,Revenue,Redacted Personal Data,Grant Payment
Peterborough,http://opendatacommunities.org/id/unitary-authority/peterborough,Peterborough City Council,Business Management and Commercial Operations,Early Years & Quality Improvement,Services,04/01/2017 00:00,30108639,2301.58,Revenue,Redacted Personal Data,Grant Payment
Peterborough,http://opendatacommunities.org/id/unitary-authority/peterborough,Peterborough City Council,Business Management and Commercial Operations,Early Years & Quality Improvement,Services,04/01/2017 00:00,30108641,1170.61,Revenue,Redacted Personal Data,Grant Payment
Peterborough,http://opendatacommunities.org/id/unitary-authority/peterborough,Peterborough City Council,Adult Services & Communities - Adults,Independent Sector Placements,Services,04/01/2017 00:00,30108666,2651.74,Revenue,FIELD HOUSE (EYE) LTD,Residential Care
Peterborough,http://opendatacommunities.org/id/unitary-authority/peterborough,Peterborough City Council,Adult Services & Communities - Adults,Independent Sector Placements,Services,04/01/2017 00:00,30108667,2900,Revenue,FIELD HOUSE (EYE) LTD,Residential Care
Peterborough,http://opendatacommunities.org/id/unitary-authority/peterborough,Peterborough City Council,Adult Services & Communities - Adults,Independent Sector Placements,Services,04/01/2017 00:00,30108668,1200,Revenue,FIELD HOUSE (EYE) LTD,Residential Care
Peterborough,http://opendatacommunities.org/id/unitary-authority/peterborough,Peterborough City Council,Adult Services & Communities - Adults,Independent Sector Placements,Services,04/01/2017 00:00,30108669,2457.83,Revenue,FIELD HOUSE (EYE) LTD,Residential Care
Peterborough,http://opendatacommunities.org/id/unitary-authority/peterborough,Peterborough City Council,Adult Services & Communities - Adults,Independent Sector Placements,Services,04/01/2017 00:00,30108688,6710.88,Revenue,FIELD HOUSE (EYE) LTD,Residential Care
Peterborough,http://opendatacommunities.org/id/unitary-authority/peterborough,Peterborough City Council,"Cemeteries, Cremation & Registrars",Bereavement Service,Services,04/01/2017 00:00,30108696,631.94,Revenue,Fenland Stoneworks,Special Projects
Peterborough,http://opendatacommunities.org/id/unitary-authority/peterborough,Peterborough City Council,Business Management and Commercial Operations,Early Years & Quality Improvement,Services,04/01/2017 00:00,30108703,3173.61,Revenue,Little Angels,Grant Payment
Peterborough,http://opendatacommunities.org/id/unitary-authority/peterborough,Peterborough City Council,Business Management and Commercial Operations,Early Years & Quality Improvement,Services,04/01/2017 00:00,30108704,769.48,Revenue,Redacted Personal Data,Grant Payment
Peterborough,http://opendatacommunities.org/id/unitary-authority/peterborough,Peterborough City Council,Business Management and Commercial Operations,Early Years & Quality Improvement,Services,04/01/2017 00:00,30108705,5763.94,Revenue,Happy Days Playgroup,Grant Payment
Peterborough,http://opendatacommunities.org/id/unitary-authority/peterborough,Peterborough City Council,Business Management and Commercial Operations,Early Years & Quality Improvement,Services,04/01/2017 00:00,30108708,35495.24,Revenue,Kiddi Caru Day Nursery,Grant Payment
Peterborough,http://opendatacommunities.org/id/unitary-authority/peterborough,Peterborough City Council,Business Management and Commercial Operations,Early Years & Quality Improvement,Services,04/01/2017 00:00,30108711,16619.66,Revenue,Longthorpe Playgroup,Grant Payment
Peterborough,http://opendatacommunities.org/id/unitary-authority/peterborough,Peterborough City Council,Adult Services & Communities - Adults,Independent Sector Placements,Services,04/01/2017 00:00,30108714,6400,Revenue,Community Care Solutions Ltd,Residential Care
Peterborough,http://opendatacommunities.org/id/unitary-authority/peterborough,Peterborough City Council,Education,Special Educational Needs / Inclusion,Agency Staff,04/01/2017 00:00,30108716,950,Revenue,Redacted Personal Data,External Temporary Staff
Peterborough,http://opendatacommunities.org/id/unitary-authority/peterborough,Peterborough City Council,Adult Services & Communities - Adults,Independent Sector Placements,Services,04/01/2017 00:00,30108718,10726.08,Revenue,Community Care Solutions Ltd,Residential Care
Peterborough,http://opendatacommunities.org/id/unitary-authority/peterborough,Peterborough City Council,Education,Special Educational Needs / Inclusion,Agency Staff,04/01/2017 00:00,30108720,950,Revenue,Redacted Personal Data,External Temporary Staff
Peterborough,http://opendatacommunities.org/id/unitary-authority/peterborough,Peterborough City Council,Education,Special Educational Needs / Inclusion,Agency Staff,04/01/2017 00:00,30108723,950,Revenue,Redacted Personal Data,External Temporary Staff
Peterborough,http://opendatacommunities.org/id/unitary-authority/peterborough,Peterborough City Council,City Servs & Communications,Marketing & Communications,Agency Staff,04/01/2017 00:00,30108730,3900,Revenue,Athene Communications,External Temporary Staff
Peterborough,http://opendatacommunities.org/id/unitary-authority/peterborough,Peterborough City Council,Adult Services & Communities - Adults,Independent Sector Placements,Services,04/01/2017 00:00,30108732,1210.94,Revenue,Avery House (Peterborough) t/a Brighterkind,Residential Care
Peterborough,http://opendatacommunities.org/id/unitary-authority/peterborough,Peterborough City Council,Adult Services & Communities - Adults,Independent Sector Placements,Services,04/01/2017 00:00,30108735,615,Revenue,Barchester Healthcare (Werrington Lodge),Residential Care
Peterborough,http://opendatacommunities.org/id/unitary-authority/peterborough,Peterborough City Council,Corporate,Corporate,Non Revenue,04/01/2017 00:00,30108756,78382.84,Capital,B & K Building Services Ltd,Building And Site Works
Peterborough,http://opendatacommunities.org/id/unitary-authority/peterborough,Peterborough City Council,Children's & Safeguarding,Children's Social Care,Contract Hire and Operating Leases,04/01/2017 00:00,30108757,4329.07,Revenue,Northumbria Healthcare NHS Foundation Trust,Leasing Charges
Peterborough,http://opendatacommunities.org/id/unitary-authority/peterborough,Peterborough City Council,Peterborough Highway Services,Network and Traffic Management,Services,04/01/2017 00:00,30108759,6079.15,Revenue,Cambridgeshire County Council,Real Time Passenger Information
Peterborough,http://opendatacommunities.org/id/unitary-authority/peterborough,Peterborough City Council,Business Management and Commercial Operations,Early Years & Quality Improvement,Services,04/01/2017 00:00,30108760,21085.91,Revenue,PSLA,Grant Payment
Peterborough,http://opendatacommunities.org/id/unitary-authority/peterborough,Peterborough City Council,Business Management and Commercial Operations,Early Years & Quality Improvement,Services,04/01/2017 00:00,30108761,13772.62,Revenue,St Michaels Playgroup,Grant Payment
Peterborough,http://opendatacommunities.org/id/unitary-authority/peterborough,Peterborough City Council,Business Management and Commercial Operations,Early Years & Quality Improvement,Services,04/01/2017 00:00,30108775,13432.06,Revenue,Family Action,Grant Payment
Peterborough,http://opendatacommunities.org/id/unitary-authority/peterborough,Peterborough City Council,Business Management and Commercial Operations,Early Years & Quality Improvement,Services,04/01/2017 00:00,30108776,40963.03,Revenue,Family Action,Grant Payment
Peterborough,http://opendatacommunities.org/id/unitary-authority/peterborough,Peterborough City Council,Business Management and Commercial Operations,Early Years & Quality Improvement,Services,04/01/2017 00:00,30108777,8088.37,Revenue,Family Action,Grant Payment
Peterborough,http://opendatacommunities.org/id/unitary-authority/peterborough,Peterborough City Council,Corporate,Corporate,Non Revenue,04/01/2017 00:00,30108778,2247.2,Capital,Futureheat Plumbing & Heating,Grant Payment
Peterborough,http://opendatacommunities.org/id/unitary-authority/peterborough,Peterborough City Council,Corporate,Corporate,Non Revenue,04/01/2017 00:00,30108779,3542,Capital,P F S Builders & Contractors,Grant Payment
Peterborough,http://opendatacommunities.org/id/unitary-authority/peterborough,Peterborough City Council,Business Management and Commercial Operations,Early Years & Quality Improvement,Services,04/01/2017 00:00,30108785,1128.85,Revenue,Redacted Personal Data,Grant Payment
Peterborough,http://opendatacommunities.org/id/unitary-authority/peterborough,Peterborough City Council,Business Management and Commercial Operations,Early Years & Quality Improvement,Services,04/01/2017 00:00,30108787,11663.36,Revenue,Orton Wistow Under Fives,Grant Payment
Peterborough,http://opendatacommunities.org/id/unitary-authority/peterborough,Peterborough City Council,Business Management and Commercial Operations,Early Years & Quality Improvement,Services,04/01/2017 00:00,30108792,15736.76,Revenue,Whiz Kids Day Nursery,Grant Payment
Peterborough,http://opendatacommunities.org/id/unitary-authority/peterborough,Peterborough City Council,Adults and Communities - Communities,Housing and Health,Contract Hire and Operating Leases,04/01/2017 00:00,30108798,500,Revenue,Global Self Drive Ltd,Hired Transport
Peterborough,http://opendatacommunities.org/id/unitary-authority/peterborough,Peterborough City Council,Business Management and Commercial Operations,Early Years & Quality Improvement,Services,04/01/2017 00:00,30108801,11798.32,Revenue,Apple Kids Nursery Ltd,Grant Payment
Peterborough,http://opendatacommunities.org/id/unitary-authority/peterborough,Peterborough City Council,Business Management and Commercial Operations,Early Years & Quality Improvement,Services,04/01/2017 00:00,30108802,8663.54,Revenue,Rainbow Pre-School,Grant Payment
Peterborough,http://opendatacommunities.org/id/unitary-authority/peterborough,Peterborough City Council,Adults and Communities - Communities,Housing and Health,Third Party Payments,04/01/2017 00:00,30108806,2933.36,Revenue,NACRO,Grant-Third Party
Peterborough,http://opendatacommunities.org/id/unitary-authority/peterborough,Peterborough City Council,ICT,ICT,Services,04/01/2017 00:00,30108826,15019.71,Revenue,Serco Ltd,Computer Software
Peterborough,http://opendatacommunities.org/id/unitary-authority/peterborough,Peterborough City Council,HR,HR WFD & Training,Services,04/01/2017 00:00,30108841,22976,Revenue,Health Assured Ltd,Counselling
Peterborough,http://opendatacommunities.org/id/unitary-authority/peterborough,Peterborough City Council,Corporate Property,Commercial Propety,Energy Costs,04/01/2017 00:00,30108844,957.34,Revenue,Corona Energy Retail 4 Limited,Gas
Peterborough,http://opendatacommunities.org/id/unitary-authority/peterborough,Peterborough City Council,Vivacity/Cultural Services,Cultural Services,Energy Costs,04/01/2017 00:00,30108857,4008.43,Revenue,Corona Energy Retail 4 Limited,Gas
Peterborough,http://opendatacommunities.org/id/unitary-authority/peterborough,Peterborough City Council,Adult Services & Communities - Adults,Independent Sector Placements,Services,04/01/2017 00:00,30108865,3812.84,Revenue,"ATCHISON, MR ALAN",Residential Care
Peterborough,http://opendatacommunities.org/id/unitary-authority/peterborough,Peterborough City Council,Commercial Group,Strategic Client Services,Services,04/01/2017 00:00,30108866,1377.12,Revenue,Royal Mail,Postage
Peterborough,http://opendatacommunities.org/id/unitary-authority/peterborough,Peterborough City Council,Adult Services & Communities - Adults,Independent Sector Placements,Services,04/01/2017 00:00,30108870,752.4,Revenue,Carewatch Care Services Ltd,Home Care
Peterborough,http://opendatacommunities.org/id/unitary-authority/peterborough,Peterborough City Council,Adult Services & Communities - Adults,Independent Sector Placements,Services,04/01/2017 00:00,30108871,818.4,Revenue,Carewatch Care Services Ltd,Home Care
Peterborough,http://opendatacommunities.org/id/unitary-authority/peterborough,Peterborough City Council,Adult Services & Communities - Adults,Independent Sector Placements,Services,04/01/2017 00:00,30108872,752.4,Revenue,Carewatch Care Services Ltd,Home Care
Peterborough,http://opendatacommunities.org/id/unitary-authority/peterborough,Peterborough City Council,Adult Services & Communities - Adults,Independent Sector Placements,Services,04/01/2017 00:00,30108873,1478.4,Revenue,Carewatch Care Services Ltd,Home Care
Peterborough,http://opendatacommunities.org/id/unitary-authority/peterborough,Peterborough City Council,Adult Services & Communities - Adults,Independent Sector Placements,Services,04/01/2017 00:00,30108877,-1000,Revenue,Augusta Care Ltd,Home Care
Peterborough,http://opendatacommunities.org/id/unitary-authority/peterborough,Peterborough City Council,Business Management and Commercial Operations,Early Years & Quality Improvement,Services,04/01/2017 00:00,30108897,1799.64,Revenue,PSLA,Grant Payment
Peterborough,http://opendatacommunities.org/id/unitary-authority/peterborough,Peterborough City Council,Business Management and Commercial Operations,Early Years & Quality Improvement,Services,04/01/2017 00:00,30108899,1333.2,Revenue,East Community Playgroup,Grant Payment
Peterborough,http://opendatacommunities.org/id/unitary-authority/peterborough,Peterborough City Council,Adult Services & Communities - Adults,Independent Sector Placements,Services,04/01/2017 00:00,30108901,2846.43,Revenue,Barchester Healthcare (Werrington Lodge),Residential Care
Peterborough,http://opendatacommunities.org/id/unitary-authority/peterborough,Peterborough City Council,Business Management and Commercial Operations,Early Years & Quality Improvement,Services,04/01/2017 00:00,30108902,909,Revenue,Busy Bunnies Nursery,Grant Payment
Peterborough,http://opendatacommunities.org/id/unitary-authority/peterborough,Peterborough City Council,Business Management and Commercial Operations,Early Years & Quality Improvement,Services,04/01/2017 00:00,30108904,712.05,Revenue,Bretton Community Pre-School,Grant Payment
Peterborough,http://opendatacommunities.org/id/unitary-authority/peterborough,Peterborough City Council,Business Management and Commercial Operations,Early Years & Quality Improvement,Services,04/01/2017 00:00,30108911,3091.57,Revenue,Apple Kids Nursery Ltd,Grant Payment
Peterborough,http://opendatacommunities.org/id/unitary-authority/peterborough,Peterborough City Council,Business Management and Commercial Operations,Early Years & Quality Improvement,Services,04/01/2017 00:00,30108912,717.3,Revenue,Beeches Pre-School,Grant Payment
Peterborough,http://opendatacommunities.org/id/unitary-authority/peterborough,Peterborough City Council,Business Management and Commercial Operations,Early Years & Quality Improvement,Services,04/01/2017 00:00,30108913,556.5,Revenue,Apricot Childcare,Grant Payment
Peterborough,http://opendatacommunities.org/id/unitary-authority/peterborough,Peterborough City Council,Business Management and Commercial Operations,Early Years & Quality Improvement,Services,04/01/2017 00:00,30108914,556.5,Revenue,Acorn Academy Day Nursery,Grant Payment
Peterborough,http://opendatacommunities.org/id/unitary-authority/peterborough,Peterborough City Council,Business Management and Commercial Operations,Early Years & Quality Improvement,Services,04/01/2017 00:00,30108917,1325.18,Revenue,Alpha Big Sky Ltd,Grant Payment
Peterborough,http://opendatacommunities.org/id/unitary-authority/peterborough,Peterborough City Council,Business Management and Commercial Operations,Early Years & Quality Improvement,Services,04/01/2017 00:00,30108920,2888.13,Revenue,ZigZag Day Nursery Ltd,Grant Payment
Peterborough,http://opendatacommunities.org/id/unitary-authority/peterborough,Peterborough City Council,Business Management and Commercial Operations,Early Years & Quality Improvement,Services,04/01/2017 00:00,30108922,704.2,Revenue,West Town Playgroup,Grant Payment
Peterborough,http://opendatacommunities.org/id/unitary-authority/peterborough,Peterborough City Council,Business Management and Commercial Operations,Early Years & Quality Improvement,Services,04/01/2017 00:00,30108924,544.31,Revenue,Toddlers Inn Day Nursery,Grant Payment
Peterborough,http://opendatacommunities.org/id/unitary-authority/peterborough,Peterborough City Council,Business Management and Commercial Operations,Early Years & Quality Improvement,Services,04/01/2017 00:00,30108926,1584.91,Revenue,The Day Nursery Peterborough Ltd,Grant Payment
Peterborough,http://opendatacommunities.org/id/unitary-authority/peterborough,Peterborough City Council,Business Management and Commercial Operations,Early Years & Quality Improvement,Services,04/01/2017 00:00,30108927,890.18,Revenue,Peterborough Regional College,Grant Payment
Peterborough,http://opendatacommunities.org/id/unitary-authority/peterborough,Peterborough City Council,Business Management and Commercial Operations,Early Years & Quality Improvement,Services,04/01/2017 00:00,30108928,556.5,Revenue,Stars Pre-School Welland,Grant Payment
Peterborough,http://opendatacommunities.org/id/unitary-authority/peterborough,Peterborough City Council,Corporate,Corporate,Non Revenue,04/01/2017 00:00,30108931,18059.26,Capital,Garfield Builders Ltd,Building And Site Works
Peterborough,http://opendatacommunities.org/id/unitary-authority/peterborough,Peterborough City Council,Adult Services & Communities - Adults,Independent Sector Placements,Services,04/01/2017 00:00,30108933,1710.57,Revenue,BROADLEIGH NURSING HOME,Residential Care
Peterborough,http://opendatacommunities.org/id/unitary-authority/peterborough,Peterborough City Council,Adult Services & Communities - Adults,Independent Sector Placements,Services,04/01/2017 00:00,30108938,510,Revenue,Midco Care Limited,Home Care
Peterborough,http://opendatacommunities.org/id/unitary-authority/peterborough,Peterborough City Council,Adult Services & Communities - Adults,Independent Sector Placements,Services,04/01/2017 00:00,30108940,1770,Revenue,Midco Care Limited,Home Care
Peterborough,http://opendatacommunities.org/id/unitary-authority/peterborough,Peterborough City Council,Adult Services & Communities - Adults,Independent Sector Placements,Services,04/01/2017 00:00,30108942,1785,Revenue,Midco Care Limited,Home Care
Peterborough,http://opendatacommunities.org/id/unitary-authority/peterborough,Peterborough City Council,Adult Services & Communities - Adults,Independent Sector Placements,Services,04/01/2017 00:00,30108944,525,Revenue,Midco Care Limited,Home Care
Peterborough,http://opendatacommunities.org/id/unitary-authority/peterborough,Peterborough City Council,Legal & Democratic,Legal Services,Services,04/01/2017 00:00,30108950,2580,Revenue,"Lee, Miss Jessica",Legal Costs
Peterborough,http://opendatacommunities.org/id/unitary-authority/peterborough,Peterborough City Council,Adults and Communities - Communities,Housing and Health,Services,04/01/2017 00:00,30108956,625,Revenue,Property Line,Financial Assistance
Peterborough,http://opendatacommunities.org/id/unitary-authority/peterborough,Peterborough City Council,Business Management and Commercial Operations,Early Years & Quality Improvement,Services,04/01/2017 00:00,30108957,739.56,Revenue,Little Tigers Day Nursery,Grant Payment
Peterborough,http://opendatacommunities.org/id/unitary-authority/peterborough,Peterborough City Council,Business Management and Commercial Operations,Early Years & Quality Improvement,Services,04/01/2017 00:00,30108958,885.63,Revenue,Stars Pre-School Parnwell,Grant Payment
Peterborough,http://opendatacommunities.org/id/unitary-authority/peterborough,Peterborough City Council,Adults and Communities - Communities,Housing and Health,Services,04/01/2017 00:00,30108959,2230,Revenue,Dunham Property Agents,Financial Assistance
Peterborough,http://opendatacommunities.org/id/unitary-authority/peterborough,Peterborough City Council,Business Management and Commercial Operations,Early Years & Quality Improvement,Services,04/01/2017 00:00,30108962,836.33,Revenue,St Thomas More Catholic Nursery,Grant Payment
Peterborough,http://opendatacommunities.org/id/unitary-authority/peterborough,Peterborough City Council,Business Management and Commercial Operations,Early Years & Quality Improvement,Services,04/01/2017 00:00,30108965,506.94,Revenue,Orton Longueville Playgroup,Grant Payment
Peterborough,http://opendatacommunities.org/id/unitary-authority/peterborough,Peterborough City Council,Business Management and Commercial Operations,Early Years & Quality Improvement,Services,04/01/2017 00:00,30108971,2000.12,Revenue,Little Stars Day Nursery,Grant Payment
Peterborough,http://opendatacommunities.org/id/unitary-authority/peterborough,Peterborough City Council,Business Management and Commercial Operations,Early Years & Quality Improvement,Services,04/01/2017 00:00,30108974,891.92,Revenue,Little Angels,Grant Payment
Peterborough,http://opendatacommunities.org/id/unitary-authority/peterborough,Peterborough City Council,Business Management and Commercial Operations,Early Years & Quality Improvement,Services,04/01/2017 00:00,30108981,649.35,Revenue,Husaini Pre-School,Grant Payment
Peterborough,http://opendatacommunities.org/id/unitary-authority/peterborough,Peterborough City Council,Adult Services & Communities - Adults,Finance,Agency Staff,04/01/2017 00:00,30108982,8625,Revenue,Patten Resource Management,External Temporary Staff
Peterborough,http://opendatacommunities.org/id/unitary-authority/peterborough,Peterborough City Council,Education,PFI,Energy Costs,04/01/2017 00:00,30108983,1203.43,Revenue,Corona Energy Retail 4 Limited,Gas
Peterborough,http://opendatacommunities.org/id/unitary-authority/peterborough,Peterborough City Council,Education,PFI,Energy Costs,04/01/2017 00:00,30108983,956.6,Revenue,Corona Energy Retail 4 Limited,Gas
Peterborough,http://opendatacommunities.org/id/unitary-authority/peterborough,Peterborough City Council,Education,PFI,Energy Costs,04/01/2017 00:00,30108983,898.86,Revenue,Corona Energy Retail 4 Limited,Gas
Peterborough,http://opendatacommunities.org/id/unitary-authority/peterborough,Peterborough City Council,Vivacity/Cultural Services,Cultural Services,Energy Costs,04/01/2017 00:00,30108983,1360.46,Revenue,Corona Energy Retail 4 Limited,Gas
Peterborough,http://opendatacommunities.org/id/unitary-authority/peterborough,Peterborough City Council,Education,PFI,Energy Costs,04/01/2017 00:00,30108986,1598.58,Revenue,Corona Energy Retail 4 Limited,Gas
Peterborough,http://opendatacommunities.org/id/unitary-authority/peterborough,Peterborough City Council,Education,PFI,Energy Costs,04/01/2017 00:00,30108986,673.14,Revenue,Corona Energy Retail 4 Limited,Gas
Peterborough,http://opendatacommunities.org/id/unitary-authority/peterborough,Peterborough City Council,Education,PFI,Energy Costs,04/01/2017 00:00,30108986,1537.14,Revenue,Corona Energy Retail 4 Limited,Gas
Peterborough,http://opendatacommunities.org/id/unitary-authority/peterborough,Peterborough City Council,Westcombe Engineering,Westcombe Engineering,"Tools, Equipment, Furniture & Materials",04/01/2017 00:00,30108987,826.22,Revenue,Carillon Industrial Services Ltd,Items For Resale
Peterborough,http://opendatacommunities.org/id/unitary-authority/peterborough,Peterborough City Council,Business Management and Commercial Operations,Clare Lodge,Energy Costs,04/01/2017 00:00,30108990,673.18,Revenue,Corona Energy Retail 4 Limited,Gas
Peterborough,http://opendatacommunities.org/id/unitary-authority/peterborough,Peterborough City Council,Vivacity/Cultural Services,Cultural Services,Energy Costs,04/01/2017 00:00,30108990,1662.68,Revenue,Corona Energy Retail 4 Limited,Gas
Peterborough,http://opendatacommunities.org/id/unitary-authority/peterborough,Peterborough City Council,"Cemeteries, Cremation & Registrars",Bereavement Service,Energy Costs,04/01/2017 00:00,30108990,2537.3,Revenue,Corona Energy Retail 4 Limited,Gas
Peterborough,http://opendatacommunities.org/id/unitary-authority/peterborough,Peterborough City Council,Adults and Communities - Communities,Housing and Health,Services,04/01/2017 00:00,30108997,507.5,Revenue,Eastfield Guesthouse,Homelessness Bed & Breakfast Costs
Peterborough,http://opendatacommunities.org/id/unitary-authority/peterborough,Peterborough City Council,Adults and Communities - Communities,Housing and Health,Services,04/01/2017 00:00,30108999,507.5,Revenue,Eastfield Guesthouse,Homelessness Bed & Breakfast Costs
Peterborough,http://opendatacommunities.org/id/unitary-authority/peterborough,Peterborough City Council,Adults and Communities - Communities,Housing and Health,Services,04/01/2017 00:00,30109003,507.5,Revenue,Eastfield Guesthouse,Homelessness Bed & Breakfast Costs
Peterborough,http://opendatacommunities.org/id/unitary-authority/peterborough,Peterborough City Council,Adult Services & Communities - Adults,Independent Sector Placements,Services,04/01/2017 00:00,30109019,2100,Revenue,SOCIAL CARE SOLUTIONS LTD,Home Care
Peterborough,http://opendatacommunities.org/id/unitary-authority/peterborough,Peterborough City Council,Adult Services & Communities - Adults,Independent Sector Placements,Services,04/01/2017 00:00,30109020,2100,Revenue,SOCIAL CARE SOLUTIONS LTD,Home Care
Peterborough,http://opendatacommunities.org/id/unitary-authority/peterborough,Peterborough City Council,Adult Services & Communities - Adults,Independent Sector Placements,Services,04/01/2017 00:00,30109021,2100,Revenue,SOCIAL CARE SOLUTIONS LTD,Home Care
Peterborough,http://opendatacommunities.org/id/unitary-authority/peterborough,Peterborough City Council,Adult Services & Communities - Adults,Independent Sector Placements,Services,04/01/2017 00:00,30109025,1821.88,Revenue,THE TUDORS,Residential Care
Peterborough,http://opendatacommunities.org/id/unitary-authority/peterborough,Peterborough City Council,Adult Services & Communities - Adults,Independent Sector Placements,Services,04/01/2017 00:00,30109026,-1366.41,Revenue,THE TUDORS,Residential Care
Peterborough,http://opendatacommunities.org/id/unitary-authority/peterborough,Peterborough City Council,Business Management and Commercial Operations,Early Years & Quality Improvement,Services,04/01/2017 00:00,30109055,673.91,Revenue,Kiddi Caru Day Nursery,Grant Payment
Peterborough,http://opendatacommunities.org/id/unitary-authority/peterborough,Peterborough City Council,Business Management and Commercial Operations,Early Years & Quality Improvement,Services,04/01/2017 00:00,30109056,2107.88,Revenue,Herlington Pre-School,Grant Payment
Peterborough,http://opendatacommunities.org/id/unitary-authority/peterborough,Peterborough City Council,Peterborough Highway Services,Network and Traffic Management,Services,04/01/2017 00:00,30109062,4592,Revenue,Suffolk County Council,Computer Software
Peterborough,http://opendatacommunities.org/id/unitary-authority/peterborough,Peterborough City Council,Children's & Safeguarding,Child Health,Services,04/01/2017 00:00,30109075,896.09,Revenue,Cherry Lodge (Imprest),Boarding Out Allowances
Peterborough,http://opendatacommunities.org/id/unitary-authority/peterborough,Peterborough City Council,Education,Financing - Resources,Services,04/01/2017 00:00,30109079,2815.75,Revenue,Sense,Education Expenses
Peterborough,http://opendatacommunities.org/id/unitary-authority/peterborough,Peterborough City Council,Education,Financing - Resources,Services,04/01/2017 00:00,30109087,2815.75,Revenue,Sense,Education Expenses
Peterborough,http://opendatacommunities.org/id/unitary-authority/peterborough,Peterborough City Council,Education,Financing - Resources,Services,04/01/2017 00:00,30109090,2815.75,Revenue,Sense,Education Expenses
Peterborough,http://opendatacommunities.org/id/unitary-authority/peterborough,Peterborough City Council,Education,Financing - Resources,Services,04/01/2017 00:00,30109092,2815.75,Revenue,Sense,Education Expenses
Peterborough,http://opendatacommunities.org/id/unitary-authority/peterborough,Peterborough City Council,Education,Financing - Resources,Services,04/01/2017 00:00,30109097,2815.75,Revenue,Sense,Education Expenses
Peterborough,http://opendatacommunities.org/id/unitary-authority/peterborough,Peterborough City Council,Education,Financing - Resources,Services,04/01/2017 00:00,30109098,2815.75,Revenue,Sense,Education Expenses
Peterborough,http://opendatacommunities.org/id/unitary-authority/peterborough,Peterborough City Council,Amey Peterborough & Waste Management,Waste & Operational Svs Mgmt,Third Party Payments,04/01/2017 00:00,30109123,301027.31,Revenue,Enterprise Managed Services Limited,Third Party Payments - Contract
Peterborough,http://opendatacommunities.org/id/unitary-authority/peterborough,Peterborough City Council,Amey Peterborough & Waste Management,Waste & Operational Svs Mgmt,Third Party Payments,04/01/2017 00:00,30109125,183892.11,Revenue,Enterprise Managed Services Limited,Third Party Payments - Contract
Peterborough,http://opendatacommunities.org/id/unitary-authority/peterborough,Peterborough City Council,Adult Services & Communities - Adults,Independent Sector Placements,Services,04/01/2017 00:00,30109132,1491.43,Revenue,FIELD HOUSE (EYE) LTD,Residential Care
Peterborough,http://opendatacommunities.org/id/unitary-authority/peterborough,Peterborough City Council,Adult Services & Communities - Adults,Independent Sector Placements,Services,04/01/2017 00:00,30109134,4121,Revenue,Sense,Residential Care
Peterborough,http://opendatacommunities.org/id/unitary-authority/peterborough,Peterborough City Council,Adult Services & Communities - Adults,Independent Sector Placements,Services,04/01/2017 00:00,30109136,1327.56,Revenue,Red House Nursing Home,Residential Care
Peterborough,http://opendatacommunities.org/id/unitary-authority/peterborough,Peterborough City Council,Adult Services & Communities - Adults,Independent Sector Placements,Services,04/01/2017 00:00,30109138,3225,Revenue,STAR RESIDENTIAL HOME LTD,Residential Care
Peterborough,http://opendatacommunities.org/id/unitary-authority/peterborough,Peterborough City Council,Adult Services & Communities - Adults,Independent Sector Placements,Services,04/01/2017 00:00,30109141,957,Revenue,Park Vista Care Home,Residential Care
Peterborough,http://opendatacommunities.org/id/unitary-authority/peterborough,Peterborough City Council,Adult Services & Communities - Adults,Independent Sector Placements,Services,04/01/2017 00:00,30109142,1066.29,Revenue,Park Vista Care Home,Residential Care
Peterborough,http://opendatacommunities.org/id/unitary-authority/peterborough,Peterborough City Council,Business Management and Commercial Operations,Clare Lodge,Interview & Training Expenses,04/01/2017 00:00,30109147,990,Revenue,Harm-ed  Ltd,Training
Peterborough,http://opendatacommunities.org/id/unitary-authority/peterborough,Peterborough City Council,Financial Services,Finance,Agency Staff,04/01/2017 00:00,30109157,703,Revenue,Reed Specialist Recruitment,External Temporary Staff
Peterborough,http://opendatacommunities.org/id/unitary-authority/peterborough,Peterborough City Council,Adult Services & Communities - Adults,Independent Sector Placements,Services,04/01/2017 00:00,30109159,663.36,Revenue,THE TUDORS,Residential Care
Peterborough,http://opendatacommunities.org/id/unitary-authority/peterborough,Peterborough City Council,Adult Services & Communities - Adults,Independent Sector Placements,Services,04/01/2017 00:00,30109160,1078.76,Revenue,THE TUDORS,Residential Care
Peterborough,http://opendatacommunities.org/id/unitary-authority/peterborough,Peterborough City Council,Adult Services & Communities - Adults,Independent Sector Placements,Services,04/01/2017 00:00,30109161,1254.68,Revenue,THE TUDORS,Residential Care
Peterborough,http://opendatacommunities.org/id/unitary-authority/peterborough,Peterborough City Council,Adult Services & Communities - Adults,Independent Sector Placements,Services,04/01/2017 00:00,30109162,1024.68,Revenue,THE TUDORS,Residential Care
Peterborough,http://opendatacommunities.org/id/unitary-authority/peterborough,Peterborough City Council,Adult Services & Communities - Adults,Independent Sector Placements,Services,04/01/2017 00:00,30109165,856.56,Revenue,THE TUDORS,Residential Care
Peterborough,http://opendatacommunities.org/id/unitary-authority/peterborough,Peterborough City Council,Adult Services & Communities - Adults,Independent Sector Placements,Services,04/01/2017 00:00,30109166,2021.88,Revenue,THE TUDORS,Residential Care
Peterborough,http://opendatacommunities.org/id/unitary-authority/peterborough,Peterborough City Council,Adult Services & Communities - Adults,Independent Sector Placements,Services,04/01/2017 00:00,30109167,1290.32,Revenue,THE TUDORS,Residential Care
Peterborough,http://opendatacommunities.org/id/unitary-authority/peterborough,Peterborough City Council,City Servs & Communications,Marketing & Communications,Agency Staff,04/01/2017 00:00,30109182,1100,Revenue,Athene Communications,External Temporary Staff
Peterborough,http://opendatacommunities.org/id/unitary-authority/peterborough,Peterborough City Council,Adult Services & Communities - Adults,Therapy/Reablement/Community Equipment,"Tools, Equipment, Furniture & Materials",04/01/2017 00:00,30109207,755.74,Revenue,NRS Healthcare,Occupational Therapy Equipment
Peterborough,http://opendatacommunities.org/id/unitary-authority/peterborough,Peterborough City Council,Adult Services & Communities - Adults,Therapy/Reablement/Community Equipment,"Tools, Equipment, Furniture & Materials",04/01/2017 00:00,30109208,679.6,Revenue,NRS Healthcare,Occupational Therapy Equipment
Peterborough,http://opendatacommunities.org/id/unitary-authority/peterborough,Peterborough City Council,Legal & Democratic,Legal Services,Agency Staff,04/01/2017 00:00,30109210,601.06,Revenue,Venn Group Ltd,External Temporary Staff
Peterborough,http://opendatacommunities.org/id/unitary-authority/peterborough,Peterborough City Council,Legal & Democratic,Legal Services,Agency Staff,04/01/2017 00:00,30109211,580.97,Revenue,Venn Group Ltd,External Temporary Staff
Peterborough,http://opendatacommunities.org/id/unitary-authority/peterborough,Peterborough City Council,Legal & Democratic,Legal Services,Agency Staff,04/01/2017 00:00,30109212,615,Revenue,Venn Group Ltd,External Temporary Staff
Peterborough,http://opendatacommunities.org/id/unitary-authority/peterborough,Peterborough City Council,Corporate Property,Office Accomodation,Services,04/01/2017 00:00,30109215,995,Revenue,CardDispenser UK Ltd,Security
Peterborough,http://opendatacommunities.org/id/unitary-authority/peterborough,Peterborough City Council,Corporate Property,Commercial Propety,Repair & Maintenance of Buildings,04/01/2017 00:00,30109217,2068.5,Revenue,North Level Dist.  Int. Drainage Board,Drainage Levy
Peterborough,http://opendatacommunities.org/id/unitary-authority/peterborough,Peterborough City Council,Adult Services & Communities - Adults,Independent Sector Placements,Services,04/01/2017 00:00,30109230,1153.56,Revenue,Country Court Care Homes Ltd (St Johns),Residential Care
Peterborough,http://opendatacommunities.org/id/unitary-authority/peterborough,Peterborough City Council,Adult Services & Communities - Adults,Independent Sector Placements,Services,04/01/2017 00:00,30109232,1995.85,Revenue,ABOUT ME CARE AND SUPPORT LTD,Home Care
Peterborough,http://opendatacommunities.org/id/unitary-authority/peterborough,Peterborough City Council,Adult Services & Communities - Adults,Independent Sector Placements,Services,04/01/2017 00:00,30109234,554.4,Revenue,Carewatch Care Services Ltd,Home Care
Peterborough,http://opendatacommunities.org/id/unitary-authority/peterborough,Peterborough City Council,Adult Services & Communities - Adults,Independent Sector Placements,Services,04/01/2017 00:00,30109236,1327.56,Revenue,Red House Nursing Home,Residential Care
Peterborough,http://opendatacommunities.org/id/unitary-authority/peterborough,Peterborough City Council,Adult Services & Communities - Adults,Independent Sector Placements,Services,04/01/2017 00:00,30109239,1351.72,Revenue,K2 CARE LTD,Home Care
Peterborough,http://opendatacommunities.org/id/unitary-authority/peterborough,Peterborough City Council,Adult Services & Communities - Adults,Independent Sector Placements,Services,04/01/2017 00:00,30109240,1327.56,Revenue,Red House Nursing Home,Residential Care
Peterborough,http://opendatacommunities.org/id/unitary-authority/peterborough,Peterborough City Council,Adult Services & Communities - Adults,Independent Sector Placements,Services,04/01/2017 00:00,30109241,2263.8,Revenue,K2 CARE LTD,Home Care
Peterborough,http://opendatacommunities.org/id/unitary-authority/peterborough,Peterborough City Council,Adult Services & Communities - Adults,Independent Sector Placements,Services,04/01/2017 00:00,30109247,9128,Revenue,Community Care Solutions Ltd,Residential Care
Peterborough,http://opendatacommunities.org/id/unitary-authority/peterborough,Peterborough City Council,Adult Services & Communities - Adults,Independent Sector Placements,Services,04/01/2017 00:00,30109248,9128,Revenue,Community Care Solutions Ltd,Residential Care
Peterborough,http://opendatacommunities.org/id/unitary-authority/peterborough,Peterborough City Council,Adult Services & Communities - Adults,Independent Sector Placements,Services,04/01/2017 00:00,30109249,9128,Revenue,Community Care Solutions Ltd,Residential Care
Peterborough,http://opendatacommunities.org/id/unitary-authority/peterborough,Peterborough City Council,Adult Services & Communities - Adults,Independent Sector Placements,Services,04/01/2017 00:00,30109250,9128,Revenue,Community Care Solutions Ltd,Residential Care
Peterborough,http://opendatacommunities.org/id/unitary-authority/peterborough,Peterborough City Council,Adult Services & Communities - Adults,Independent Sector Placements,Services,04/01/2017 00:00,30109251,9128,Revenue,Community Care Solutions Ltd,Residential Care
Peterborough,http://opendatacommunities.org/id/unitary-authority/peterborough,Peterborough City Council,Adult Services & Communities - Adults,Independent Sector Placements,Services,04/01/2017 00:00,30109252,15321.35,Revenue,Community Care Solutions Ltd,Residential Care
Peterborough,http://opendatacommunities.org/id/unitary-authority/peterborough,Peterborough City Council,Adult Services & Communities - Adults,Therapy/Reablement/Community Equipment,Agency Staff,04/01/2017 00:00,30109274,4207.42,Revenue,Sanctuary Personnel Ltd,External Temporary Staff
Peterborough,http://opendatacommunities.org/id/unitary-authority/peterborough,Peterborough City Council,Children's & Safeguarding,Child Health,Services,04/01/2017 00:00,30109303,504.64,Revenue,Cherry Lodge (Imprest),Boarding Out Allowances
Peterborough,http://opendatacommunities.org/id/unitary-authority/peterborough,Peterborough City Council,Adult Services & Communities - Adults,Independent Sector Placements,Services,04/01/2017 00:00,30109308,1153.56,Revenue,Country Court Care Homes Ltd (St Johns),Residential Care
Peterborough,http://opendatacommunities.org/id/unitary-authority/peterborough,Peterborough City Council,Adult Services & Communities - Adults,Independent Sector Placements,Services,04/01/2017 00:00,30109309,2128.57,Revenue,Alysia Caring Ltd T/a Cherry Blossom care Home,Residential Care
Peterborough,http://opendatacommunities.org/id/unitary-authority/peterborough,Peterborough City Council,Adult Services & Communities - Adults,Independent Sector Placements,Services,04/01/2017 00:00,30109310,1657.69,Revenue,Alysia Caring Ltd T/a Cherry Blossom care Home,Residential Care
Peterborough,http://opendatacommunities.org/id/unitary-authority/peterborough,Peterborough City Council,Adult Services & Communities - Adults,Independent Sector Placements,Services,04/01/2017 00:00,30109311,3725,Revenue,Alysia Caring Ltd T/a Cherry Blossom care Home,Residential Care
Peterborough,http://opendatacommunities.org/id/unitary-authority/peterborough,Peterborough City Council,Adult Services & Communities - Adults,Independent Sector Placements,Services,04/01/2017 00:00,30109312,-2910.07,Revenue,Alysia Caring Ltd T/a Cherry Blossom care Home,Residential Care
Peterborough,http://opendatacommunities.org/id/unitary-authority/peterborough,Peterborough City Council,Adult Services & Communities - Adults,Independent Sector Placements,Services,04/01/2017 00:00,30109313,1895.25,Revenue,Alysia Caring Ltd T/a Cherry Blossom care Home,Residential Care
Peterborough,http://opendatacommunities.org/id/unitary-authority/peterborough,Peterborough City Council,Adult Services & Communities - Adults,Independent Sector Placements,Services,04/01/2017 00:00,30109314,3159.5,Revenue,Alysia Caring Ltd T/a Cherry Blossom care Home,Residential Care
Peterborough,http://opendatacommunities.org/id/unitary-authority/peterborough,Peterborough City Council,Adult Services & Communities - Adults,Independent Sector Placements,Services,04/01/2017 00:00,30109316,7676.1,Revenue,Augusta Care Ltd,Home Care
Peterborough,http://opendatacommunities.org/id/unitary-authority/peterborough,Peterborough City Council,Adult Services & Communities - Adults,Independent Sector Placements,Services,04/01/2017 00:00,30109318,664.47,Revenue,Barchester Healthcare (Werrington Lodge),Residential Care
Peterborough,http://opendatacommunities.org/id/unitary-authority/peterborough,Peterborough City Council,Corporate Items,Corporate Services,Non Revenue,04/01/2017 00:00,30109320,53349.8,Capital,Haywood Crushing Demolition Ltd,Building And Site Works
Peterborough,http://opendatacommunities.org/id/unitary-authority/peterborough,Peterborough City Council,Education,PFI,Water Services,04/01/2017 00:00,30109321,943.04,Revenue,Anglian Water,Water
Peterborough,http://opendatacommunities.org/id/unitary-authority/peterborough,Peterborough City Council,Adults and Communities - Communities,Housing and Health,Water Services,04/01/2017 00:00,30109321,848.82,Revenue,Anglian Water,Water
Peterborough,http://opendatacommunities.org/id/unitary-authority/peterborough,Peterborough City Council,Corporate Property,Office Accomodation,Services,04/01/2017 00:00,30109322,2185.3,Revenue,PHS Group Plc,Confidential Waste Disposal
Peterborough,http://opendatacommunities.org/id/unitary-authority/peterborough,Peterborough City Council,Adult Services & Communities - Adults,Other Services,Third Party Payments,04/01/2017 00:00,30109331,28382,Revenue,P'Boro Council For Voluntary Srvs (PCVS),Third Party Payments - Contract
Peterborough,http://opendatacommunities.org/id/unitary-authority/peterborough,Peterborough City Council,Adult Services & Communities - Adults,Other Services,Third Party Payments,04/01/2017 00:00,30109332,2990,Revenue,P'Boro Council For Voluntary Srvs (PCVS),Third Party Payments - Contract
Peterborough,http://opendatacommunities.org/id/unitary-authority/peterborough,Peterborough City Council,Adult Services & Communities - Adults,Independent Sector Placements,Services,04/01/2017 00:00,30109335,5602.8,Revenue,Augusta Care Ltd,Home Care
Peterborough,http://opendatacommunities.org/id/unitary-authority/peterborough,Peterborough City Council,Adult Services & Communities - Adults,Independent Sector Placements,Services,04/01/2017 00:00,30109337,1545.6,Revenue,Augusta Care Ltd,Home Care
Peterborough,http://opendatacommunities.org/id/unitary-authority/peterborough,Peterborough City Council,Adult Services & Communities - Adults,Independent Sector Placements,Services,04/01/2017 00:00,30109338,1948,Revenue,Augusta Care Ltd,Home Care
Peterborough,http://opendatacommunities.org/id/unitary-authority/peterborough,Peterborough City Council,Corporate,Corporate,Non Revenue,04/01/2017 00:00,30109340,48062.34,Capital,Breyer Group Ltd,Building And Site Works
Peterborough,http://opendatacommunities.org/id/unitary-authority/peterborough,Peterborough City Council,Children's & Safeguarding,Child Health,"Tools, Equipment, Furniture & Materials",04/01/2017 00:00,30109341,1008,Revenue,G & S Smirthwaite Ltd,Occupational Therapy Equipment
Peterborough,http://opendatacommunities.org/id/unitary-authority/peterborough,Peterborough City Council,Adult Services & Communities - Adults,Independent Sector Placements,Services,04/01/2017 00:00,30109360,5815.43,Revenue,Augusta Care Ltd,Home Care
Peterborough,http://opendatacommunities.org/id/unitary-authority/peterborough,Peterborough City Council,Corporate,Corporate,Non Revenue,04/01/2017 00:00,30109365,862104.06,Balance Sheet,Teachers Pensions,Pensions
Peterborough,http://opendatacommunities.org/id/unitary-authority/peterborough,Peterborough City Council,Children's & Safeguarding,Access to Resources & Specialist Commissioning,Services,04/01/2017 00:00,30109390,1931.85,Revenue,Transition Care Peterborough Ltd,Boarding Out Allowances
Peterborough,http://opendatacommunities.org/id/unitary-authority/peterborough,Peterborough City Council,Adult Services & Communities - Adults,Independent Sector Placements,Services,04/01/2017 00:00,30109411,531.32,Revenue,Augusta Care Ltd,Home Care
Peterborough,http://opendatacommunities.org/id/unitary-authority/peterborough,Peterborough City Council,Adult Services & Communities - Adults,Independent Sector Placements,Services,04/01/2017 00:00,30109413,1545.6,Revenue,Augusta Care Ltd,Home Care
Peterborough,http://opendatacommunities.org/id/unitary-authority/peterborough,Peterborough City Council,Public Health,Housing and Health - Public Health,Third Party Payments,04/01/2017 00:00,30109443,2394.5,Revenue,3 Well Medical (Botolph Bridge),Third Party Payments - Contract
Peterborough,http://opendatacommunities.org/id/unitary-authority/peterborough,Peterborough City Council,Children's & Safeguarding,Access to Resources & Specialist Commissioning,Services,04/01/2017 00:00,30109507,2007,Revenue,Transition Care Peterborough Ltd,Boarding Out Allowances
Peterborough,http://opendatacommunities.org/id/unitary-authority/peterborough,Peterborough City Council,Legal & Democratic,Legal Services,Services,04/01/2017 00:00,30109515,800,Revenue,Buckles Solicitors LLP,Legal Costs
Peterborough,http://opendatacommunities.org/id/unitary-authority/peterborough,Peterborough City Council,Adults and Communities - Communities,Early Help ASC/CSC,Services,04/01/2017 00:00,30109531,758.4,Revenue,Family Action,Hired Services
Peterborough,http://opendatacommunities.org/id/unitary-authority/peterborough,Peterborough City Council,Children's & Safeguarding,Access to Resources & Specialist Commissioning,Services,04/01/2017 00:00,30109538,1365,Revenue,Sixteen Plus Limited,Boarding Out Allowances
Peterborough,http://opendatacommunities.org/id/unitary-authority/peterborough,Peterborough City Council,Adult Services & Communities - Adults,Independent Sector Placements,Services,04/01/2017 00:00,8000066619,606.16,Revenue,Redacted Personal Data,Adult Social Care Direct Payment
Peterborough,http://opendatacommunities.org/id/unitary-authority/peterborough,Peterborough City Council,Adult Services & Communities - Adults,Independent Sector Placements,Services,04/01/2017 00:00,8000068454,606.16,Revenue,Redacted Personal Data,Adult Social Care Direct Payment
Peterborough,http://opendatacommunities.org/id/unitary-authority/peterborough,Peterborough City Council,Adult Services & Communities - Adults,Block Contracts,Third Party Payments,06/01/2017 00:00,30097777,3479.44,Revenue,Longueville Court (Barchester),Third Party Payments - Contract
Peterborough,http://opendatacommunities.org/id/unitary-authority/peterborough,Peterborough City Council,Education,PFI,Services,06/01/2017 00:00,30099218,26655.28,Revenue,IIC by Education (P'boro) Ltd,Service Charge
Peterborough,http://opendatacommunities.org/id/unitary-authority/peterborough,Peterborough City Council,ICT,ICT,Services,06/01/2017 00:00,30099242,4643.6,Revenue,Salesforce.com,Computer Software
Peterborough,http://opendatacommunities.org/id/unitary-authority/peterborough,Peterborough City Council,Adult Services & Communities - Adults,Day Opportunities / In House,Agency Staff,06/01/2017 00:00,30099622,-1295,Revenue,Caritas Recruitment,External Temporary Staff
Peterborough,http://opendatacommunities.org/id/unitary-authority/peterborough,Peterborough City Council,Commercial Group,Strategic Client Services,Agency Staff,06/01/2017 00:00,30099913,1418.31,Revenue,Hays Specialist Recruitment Ltd,External Temporary Staff
Peterborough,http://opendatacommunities.org/id/unitary-authority/peterborough,Peterborough City Council,Children's & Safeguarding,Children's Social Care,Agency Staff,06/01/2017 00:00,30100707,1456.65,Revenue,Caritas Recruitment,External Temporary Staff
Peterborough,http://opendatacommunities.org/id/unitary-authority/peterborough,Peterborough City Council,Children's & Safeguarding,Adult & Children Safeguarding Board,Services,06/01/2017 00:00,30100975,1500,Revenue,HHSCC,Contractors
Peterborough,http://opendatacommunities.org/id/unitary-authority/peterborough,Peterborough City Council,Education,Pupil Referral Unit,Agency Staff,06/01/2017 00:00,30101513,559,Revenue,Textbook Teachers Ltd,Supply Teachers
Peterborough,http://opendatacommunities.org/id/unitary-authority/peterborough,Peterborough City Council,Adult Services & Communities - Adults,Independent Sector Placements,Services,06/01/2017 00:00,30102802,1199.15,Revenue,Sagecare,Home Care
Peterborough,http://opendatacommunities.org/id/unitary-authority/peterborough,Peterborough City Council,Adult Services & Communities - Adults,Block Contracts,Third Party Payments,06/01/2017 00:00,30103136,2120,Revenue,PHILIA LODGE REST HOME,Third Party Payments - Contract
Peterborough,http://opendatacommunities.org/id/unitary-authority/peterborough,Peterborough City Council,Commercial Group,Strategic Client Services,Agency Staff,06/01/2017 00:00,30103305,1397.75,Revenue,Hays Specialist Recruitment Ltd,External Temporary Staff
Peterborough,http://opendatacommunities.org/id/unitary-authority/peterborough,Peterborough City Council,Westcombe Engineering,Westcombe Engineering,"Tools, Equipment, Furniture & Materials",06/01/2017 00:00,30104281,525.42,Revenue,Barron Clark Castings Ltd,Items For Resale
Peterborough,http://opendatacommunities.org/id/unitary-authority/peterborough,Peterborough City Council,Corporate,Corporate,Non Revenue,06/01/2017 00:00,30104311,3757.5,Capital,Freeths LLP,Consultants Fees
Peterborough,http://opendatacommunities.org/id/unitary-authority/peterborough,Peterborough City Council,Peterborough Serco Strategic Partnership,Peterborough Serco Strategic Partnership,Services,06/01/2017 00:00,30105920,786.21,Revenue,Equita Ltd,Debt Collection
Peterborough,http://opendatacommunities.org/id/unitary-authority/peterborough,Peterborough City Council,Adult Services & Communities - Adults,Block Contracts,Third Party Payments,06/01/2017 00:00,30106987,6708,Revenue,Axiom Housing Association,Third Party Payments - Contract
Peterborough,http://opendatacommunities.org/id/unitary-authority/peterborough,Peterborough City Council,Adult Services & Communities - Adults,Day Opportunities / In House,Agency Staff,06/01/2017 00:00,30107055,1221,Revenue,Medicare First,External Temporary Staff
Peterborough,http://opendatacommunities.org/id/unitary-authority/peterborough,Peterborough City Council,Adult Services & Communities - Adults,Independent Sector Placements,Services,06/01/2017 00:00,30107183,1207.08,Revenue,Stonehaven (Healthcare) Ltd TA The Manor Exminster,Residential Care
Peterborough,http://opendatacommunities.org/id/unitary-authority/peterborough,Peterborough City Council,Corporate,Corporate,Non Revenue,06/01/2017 00:00,30107254,8185.5,Capital,V4 Services Ltd,Consultants Fees
Peterborough,http://opendatacommunities.org/id/unitary-authority/peterborough,Peterborough City Council,Public Health,Housing and Health - Public Health,Third Party Payments,06/01/2017 00:00,30107329,991.5,Revenue,Bretton Medical Practice,Third Party Payments - Contract
Peterborough,http://opendatacommunities.org/id/unitary-authority/peterborough,Peterborough City Council,Public Health,Housing and Health - Public Health,Third Party Payments,06/01/2017 00:00,30107330,531.5,Revenue,Ailsworth Medical Centre,Third Party Payments - Contract
Peterborough,http://opendatacommunities.org/id/unitary-authority/peterborough,Peterborough City Council,Public Health,Housing and Health - Public Health,Third Party Payments,06/01/2017 00:00,30107331,1288,Revenue,First Health UK Ltd,Third Party Payments - Contract
Peterborough,http://opendatacommunities.org/id/unitary-authority/peterborough,Peterborough City Council,Public Health,Housing and Health - Public Health,Third Party Payments,06/01/2017 00:00,30107332,759,Revenue,Orton Bushfield Medical Practice,Third Party Payments - Contract
Peterborough,http://opendatacommunities.org/id/unitary-authority/peterborough,Peterborough City Council,Public Health,Housing and Health - Public Health,Third Party Payments,06/01/2017 00:00,30107333,761.5,Revenue,Hampton Health,Third Party Payments - Contract
Peterborough,http://opendatacommunities.org/id/unitary-authority/peterborough,Peterborough City Council,Public Health,Housing and Health - Public Health,Third Party Payments,06/01/2017 00:00,30107334,644,Revenue,Hodgson Surgery,Third Party Payments - Contract
Peterborough,http://opendatacommunities.org/id/unitary-authority/peterborough,Peterborough City Council,Public Health,Housing and Health - Public Health,Third Party Payments,06/01/2017 00:00,30107335,1132,Revenue,Millfield Medical Centre,Third Party Payments - Contract
Peterborough,http://opendatacommunities.org/id/unitary-authority/peterborough,Peterborough City Council,Adult Services & Communities - Adults,Therapy/Reablement/Community Equipment,Agency Staff,06/01/2017 00:00,30107359,1258,Revenue,SWP Consulting,External Temporary Staff
Peterborough,http://opendatacommunities.org/id/unitary-authority/peterborough,Peterborough City Council,Adult Services & Communities - Adults,Therapy/Reablement/Community Equipment,Agency Staff,06/01/2017 00:00,30107361,1221,Revenue,SWP Consulting,External Temporary Staff
Peterborough,http://opendatacommunities.org/id/unitary-authority/peterborough,Peterborough City Council,Adults and Communities - Communities,Housing and Health,Third Party Payments,06/01/2017 00:00,30107368,2933.36,Revenue,NACRO,Grant-Third Party
Peterborough,http://opendatacommunities.org/id/unitary-authority/peterborough,Peterborough City Council,Adults and Communities - Communities,Housing and Health,Services,06/01/2017 00:00,30107376,1343,Revenue,Nightingale Services,Contractors
Peterborough,http://opendatacommunities.org/id/unitary-authority/peterborough,Peterborough City Council,Performance & Information,Performance & Information,Agency Staff,06/01/2017 00:00,30107383,2375,Revenue,Number 10 Interim Ltd,External Temporary Staff
Peterborough,http://opendatacommunities.org/id/unitary-authority/peterborough,Peterborough City Council,Corporate Property,Commercial Propety,Services,06/01/2017 00:00,30107387,1800,Revenue,Smooth Removals (Peterborough) Ltd,Hired Services
Peterborough,http://opendatacommunities.org/id/unitary-authority/peterborough,Peterborough City Council,Adults and Communities - Communities,Housing and Health,Rents,06/01/2017 00:00,30107403,600,Revenue,City College Peterborough,Hire Of Premises
Peterborough,http://opendatacommunities.org/id/unitary-authority/peterborough,Peterborough City Council,Adult Services & Communities - Adults,Independent Sector Placements,Contract Hire and Operating Leases,06/01/2017 00:00,30107437,700,Revenue,Peterborough Cars,Hired Transport
Peterborough,http://opendatacommunities.org/id/unitary-authority/peterborough,Peterborough City Council,Public Health,Housing and Health - Public Health,Third Party Payments,06/01/2017 00:00,30107485,828,Revenue,The Grange Medical Centre,Third Party Payments - Contract
Peterborough,http://opendatacommunities.org/id/unitary-authority/peterborough,Peterborough City Council,Public Health,Housing and Health - Public Health,Third Party Payments,06/01/2017 00:00,30107488,1633,Revenue,Nene Valley Medical Practice,Third Party Payments - Contract
Peterborough,http://opendatacommunities.org/id/unitary-authority/peterborough,Peterborough City Council,Public Health,Housing and Health - Public Health,Third Party Payments,06/01/2017 00:00,30107495,1058,Revenue,Minster Medical Practice,Third Party Payments - Contract
Peterborough,http://opendatacommunities.org/id/unitary-authority/peterborough,Peterborough City Council,Public Health,Housing and Health - Public Health,Third Party Payments,06/01/2017 00:00,30107498,1334,Revenue,Thomas Walker Surgery,Third Party Payments - Contract
Peterborough,http://opendatacommunities.org/id/unitary-authority/peterborough,Peterborough City Council,Public Health,Housing and Health - Public Health,Third Party Payments,06/01/2017 00:00,30107504,874,Revenue,Welland Medical Practices,Third Party Payments - Contract
Peterborough,http://opendatacommunities.org/id/unitary-authority/peterborough,Peterborough City Council,Adult Services & Communities - Adults,Independent Sector Placements,Services,06/01/2017 00:00,30107644,4078.2,Revenue,Mencap,Residential Care
Peterborough,http://opendatacommunities.org/id/unitary-authority/peterborough,Peterborough City Council,Adult Services & Communities - Adults,Independent Sector Placements,Services,06/01/2017 00:00,30107645,4981.2,Revenue,Mencap,Residential Care
Peterborough,http://opendatacommunities.org/id/unitary-authority/peterborough,Peterborough City Council,Adult Services & Communities - Adults,Independent Sector Placements,Services,06/01/2017 00:00,30107646,4621.2,Revenue,Mencap,Residential Care
Peterborough,http://opendatacommunities.org/id/unitary-authority/peterborough,Peterborough City Council,Adult Services & Communities - Adults,Independent Sector Placements,Services,06/01/2017 00:00,30107647,4854.4,Revenue,Mencap,Residential Care
Peterborough,http://opendatacommunities.org/id/unitary-authority/peterborough,Peterborough City Council,Adult Services & Communities - Adults,Independent Sector Placements,Services,06/01/2017 00:00,30107702,1791.68,Revenue,FIELD HOUSE (EYE) LTD,Residential Care
Peterborough,http://opendatacommunities.org/id/unitary-authority/peterborough,Peterborough City Council,Adult Services & Communities - Adults,Day Opportunities / In House,Agency Staff,06/01/2017 00:00,30107766,5675,Revenue,Caritas Recruitment,External Temporary Staff
Peterborough,http://opendatacommunities.org/id/unitary-authority/peterborough,Peterborough City Council,Adult Services & Communities - Adults,Day Opportunities / In House,Agency Staff,06/01/2017 00:00,30107778,-4275,Revenue,Caritas Recruitment,External Temporary Staff
Peterborough,http://opendatacommunities.org/id/unitary-authority/peterborough,Peterborough City Council,Adult Services & Communities - Adults,Day Opportunities / In House,Agency Staff,06/01/2017 00:00,30107791,-1400,Revenue,Caritas Recruitment,External Temporary Staff
Peterborough,http://opendatacommunities.org/id/unitary-authority/peterborough,Peterborough City Council,Education,School Infrastructure,Agency Staff,06/01/2017 00:00,30107794,2000,Revenue,Baltimore Consulting,External Temporary Staff
Peterborough,http://opendatacommunities.org/id/unitary-authority/peterborough,Peterborough City Council,Children's & Safeguarding,Child Health,Services,06/01/2017 00:00,30107996,16200,Revenue,Better Communication CIC,Hired Services
Peterborough,http://opendatacommunities.org/id/unitary-authority/peterborough,Peterborough City Council,Adults and Communities - Communities,Housing and Health,Services,06/01/2017 00:00,30107998,525,Revenue,Eastfield Guesthouse,Homelessness Bed & Breakfast Costs
Peterborough,http://opendatacommunities.org/id/unitary-authority/peterborough,Peterborough City Council,Adults and Communities - Communities,Housing and Health,Services,06/01/2017 00:00,30108001,525,Revenue,Eastfield Guesthouse,Homelessness Bed & Breakfast Costs
Peterborough,http://opendatacommunities.org/id/unitary-authority/peterborough,Peterborough City Council,Adults and Communities - Communities,Housing and Health,Services,06/01/2017 00:00,30108002,507.5,Revenue,Eastfield Guesthouse,Homelessness Bed & Breakfast Costs
Peterborough,http://opendatacommunities.org/id/unitary-authority/peterborough,Peterborough City Council,Adults and Communities - Communities,Housing and Health,Services,06/01/2017 00:00,30108003,507.5,Revenue,Eastfield Guesthouse,Homelessness Bed & Breakfast Costs
Peterborough,http://opendatacommunities.org/id/unitary-authority/peterborough,Peterborough City Council,Adults and Communities - Communities,Housing and Health,Services,06/01/2017 00:00,30108005,507.5,Revenue,Eastfield Guesthouse,Homelessness Bed & Breakfast Costs
Peterborough,http://opendatacommunities.org/id/unitary-authority/peterborough,Peterborough City Council,Adults and Communities - Communities,Housing and Health,Services,06/01/2017 00:00,30108007,525,Revenue,Eastfield Guesthouse,Homelessness Bed & Breakfast Costs
Peterborough,http://opendatacommunities.org/id/unitary-authority/peterborough,Peterborough City Council,Adults and Communities - Communities,Housing and Health,Services,06/01/2017 00:00,30108015,525,Revenue,Eastfield Guesthouse,Homelessness Bed & Breakfast Costs
Peterborough,http://opendatacommunities.org/id/unitary-authority/peterborough,Peterborough City Council,Adults and Communities - Communities,Housing and Health,Services,06/01/2017 00:00,30108020,525,Revenue,Eastfield Guesthouse,Homelessness Bed & Breakfast Costs
Peterborough,http://opendatacommunities.org/id/unitary-authority/peterborough,Peterborough City Council,Adults and Communities - Communities,Housing and Health,Services,06/01/2017 00:00,30108033,507.5,Revenue,Eastfield Guesthouse,Homelessness Bed & Breakfast Costs
Peterborough,http://opendatacommunities.org/id/unitary-authority/peterborough,Peterborough City Council,Adult Services & Communities - Adults,OP/PD/SI,Third Party Payments,06/01/2017 00:00,30108065,16176,Revenue,Dial Peterborough,Third Party Payments - Contract
Peterborough,http://opendatacommunities.org/id/unitary-authority/peterborough,Peterborough City Council,Adult Services & Communities - Adults,Independent Sector Placements,Services,06/01/2017 00:00,30108089,2138.56,Revenue,Alysia Caring Ltd T/a Cherry Blossom care Home,Residential Care
Peterborough,http://opendatacommunities.org/id/unitary-authority/peterborough,Peterborough City Council,Adult Services & Communities - Adults,Independent Sector Placements,Services,06/01/2017 00:00,30108090,1127.32,Revenue,Alysia Caring Ltd T/a Cherry Blossom care Home,Residential Care
Peterborough,http://opendatacommunities.org/id/unitary-authority/peterborough,Peterborough City Council,Adult Services & Communities - Adults,Independent Sector Placements,Services,06/01/2017 00:00,30108091,2842.2,Revenue,Alysia Caring Ltd T/a Cherry Blossom care Home,Residential Care
Peterborough,http://opendatacommunities.org/id/unitary-authority/peterborough,Peterborough City Council,Children's & Safeguarding,Access to Resources & Specialist Commissioning,Services,06/01/2017 00:00,30108147,3432.63,Revenue,St Christopher's Fellowship,Boarding Out Allowances
Peterborough,http://opendatacommunities.org/id/unitary-authority/peterborough,Peterborough City Council,Children's & Safeguarding,Access to Resources & Specialist Commissioning,Services,06/01/2017 00:00,30108148,3520.67,Revenue,St Christopher's Fellowship,Boarding Out Allowances
Peterborough,http://opendatacommunities.org/id/unitary-authority/peterborough,Peterborough City Council,Children's & Safeguarding,Access to Resources & Specialist Commissioning,Services,06/01/2017 00:00,30108150,5535.67,Revenue,St Christopher's Fellowship,Boarding Out Allowances
Peterborough,http://opendatacommunities.org/id/unitary-authority/peterborough,Peterborough City Council,Children's & Safeguarding,Access to Resources & Specialist Commissioning,Services,06/01/2017 00:00,30108152,3432.63,Revenue,St Christopher's Fellowship,Boarding Out Allowances
Peterborough,http://opendatacommunities.org/id/unitary-authority/peterborough,Peterborough City Council,Adult Services & Communities - Adults,Independent Sector Placements,Services,06/01/2017 00:00,30108229,1039.88,Revenue,Deafblind Enablement Ltd,Home Care
Peterborough,http://opendatacommunities.org/id/unitary-authority/peterborough,Peterborough City Council,Performance & Information,Performance & Information,Agency Staff,06/01/2017 00:00,30108262,523.95,Revenue,Reed Specialist Recruitment,External Temporary Staff
Peterborough,http://opendatacommunities.org/id/unitary-authority/peterborough,Peterborough City Council,Performance & Information,Performance & Information,Agency Staff,06/01/2017 00:00,30108277,538.92,Revenue,Reed Specialist Recruitment,External Temporary Staff
Peterborough,http://opendatacommunities.org/id/unitary-authority/peterborough,Peterborough City Council,Legal & Democratic,Legal Services,Agency Staff,06/01/2017 00:00,30108284,820.8,Revenue,Sellick Partnership Group Limited,External Temporary Staff
Peterborough,http://opendatacommunities.org/id/unitary-authority/peterborough,Peterborough City Council,Legal & Democratic,Legal Services,Agency Staff,06/01/2017 00:00,30108287,866.25,Revenue,Sellick Partnership Group Limited,External Temporary Staff
Peterborough,http://opendatacommunities.org/id/unitary-authority/peterborough,Peterborough City Council,Education,Pupil Referral Unit,Agency Staff,06/01/2017 00:00,30108338,552,Revenue,Travail Education,Supply Teachers
Peterborough,http://opendatacommunities.org/id/unitary-authority/peterborough,Peterborough City Council,Adult Services & Communities - Adults,Independent Sector Placements,Services,06/01/2017 00:00,30108398,8752,Revenue,Autism Care (UK) Ltd,Residential Care
Peterborough,http://opendatacommunities.org/id/unitary-authority/peterborough,Peterborough City Council,Corporate,Corporate,Non Revenue,06/01/2017 00:00,30108503,3069,Capital,P F S Builders & Contractors,Grant Payment
Peterborough,http://opendatacommunities.org/id/unitary-authority/peterborough,Peterborough City Council,Corporate,Corporate,Non Revenue,06/01/2017 00:00,30108516,2140,Capital,Number 10 Interim Ltd,Consultants Fees
Peterborough,http://opendatacommunities.org/id/unitary-authority/peterborough,Peterborough City Council,Adult Services & Communities - Adults,Independent Sector Placements,Services,06/01/2017 00:00,30108598,3400,Revenue,LESTER HALL APARTMENTS LTD,Residential Care
Peterborough,http://opendatacommunities.org/id/unitary-authority/peterborough,Peterborough City Council,Business Management and Commercial Operations,Business Management and Commercial Operations,Contract Hire and Operating Leases,06/01/2017 00:00,30108713,550,Revenue,The Private Hire Company,Hired Transport
Peterborough,http://opendatacommunities.org/id/unitary-authority/peterborough,Peterborough City Council,Peterborough Highway Services,Transport & Infrastructure Commissioning,Services,06/01/2017 00:00,30108741,10000,Revenue,Cranfield University,Research
Peterborough,http://opendatacommunities.org/id/unitary-authority/peterborough,Peterborough City Council,Adult Services & Communities - Adults,Independent Sector Placements,Services,06/01/2017 00:00,30108876,1750,Revenue,Alysia Caring Ltd T/a Cherry Blossom care Home,Residential Care
Peterborough,http://opendatacommunities.org/id/unitary-authority/peterborough,Peterborough City Council,Legal & Democratic,Elections,Services,06/01/2017 00:00,30109043,1874.87,Revenue,Electoral Reform Services,Printing
Peterborough,http://opendatacommunities.org/id/unitary-authority/peterborough,Peterborough City Council,Legal & Democratic,Elections,Services,06/01/2017 00:00,30109045,3923.46,Revenue,Electoral Reform Services,Printing
Peterborough,http://opendatacommunities.org/id/unitary-authority/peterborough,Peterborough City Council,Education,Financing - Resources,Services,06/01/2017 00:00,30109093,2815.75,Revenue,Sense,Education Expenses
Peterborough,http://opendatacommunities.org/id/unitary-authority/peterborough,Peterborough City Council,Education,Financing - Resources,Services,06/01/2017 00:00,30109094,2815.75,Revenue,Sense,Education Expenses
Peterborough,http://opendatacommunities.org/id/unitary-authority/peterborough,Peterborough City Council,Education,Financing - Resources,Services,06/01/2017 00:00,30109096,2815.75,Revenue,Sense,Education Expenses
Peterborough,http://opendatacommunities.org/id/unitary-authority/peterborough,Peterborough City Council,Education,School Improvement,Interview & Training Expenses,06/01/2017 00:00,30109324,1300,Revenue,Redacted Personal Data,Training
Peterborough,http://opendatacommunities.org/id/unitary-authority/peterborough,Peterborough City Council,"Cemeteries, Cremation & Registrars",Bereavement Service,Services,06/01/2017 00:00,30109347,650,Revenue,Peterborough Regional College,Course Fees
Peterborough,http://opendatacommunities.org/id/unitary-authority/peterborough,Peterborough City Council,Public Health,Business Management and Commercial Operations - Public Health,Third Party Payments,06/01/2017 00:00,30109368,2693,Revenue,Nene Valley Medical Practice,Third Party Payments - Contract
Peterborough,http://opendatacommunities.org/id/unitary-authority/peterborough,Peterborough City Council,Adult Services & Communities - Adults,Independent Sector Placements,Services,06/01/2017 00:00,30109584,1155.8,Revenue,Park Vista Care Home,Residential Care
Peterborough,http://opendatacommunities.org/id/unitary-authority/peterborough,Peterborough City Council,Adult Services & Communities - Adults,Independent Sector Placements,Services,06/01/2017 00:00,30109586,1408.25,Revenue,Cambridgeshirehomecare,Home Care
Peterborough,http://opendatacommunities.org/id/unitary-authority/peterborough,Peterborough City Council,Adult Services & Communities - Adults,Independent Sector Placements,Services,06/01/2017 00:00,30109590,570,Revenue,Cambridgeshirehomecare,Home Care
Peterborough,http://opendatacommunities.org/id/unitary-authority/peterborough,Peterborough City Council,Adult Services & Communities - Adults,Independent Sector Placements,Services,06/01/2017 00:00,30109591,3015,Revenue,Cambridgeshirehomecare,Home Care
Peterborough,http://opendatacommunities.org/id/unitary-authority/peterborough,Peterborough City Council,Adult Services & Communities - Adults,Independent Sector Placements,Services,06/01/2017 00:00,30109595,1899.08,Revenue,The Cedars Bourne Care Home,Residential Care
Peterborough,http://opendatacommunities.org/id/unitary-authority/peterborough,Peterborough City Council,Corporate,Corporate,Non Revenue,06/01/2017 00:00,30109682,222141.8,Capital,Garfield Builders Ltd,Building And Site Works
Peterborough,http://opendatacommunities.org/id/unitary-authority/peterborough,Peterborough City Council,Adult Services & Communities - Adults,Independent Sector Placements,Services,06/01/2017 00:00,30109683,3000,Revenue,Avery House (Peterborough) t/a Brighterkind,Residential Care
Peterborough,http://opendatacommunities.org/id/unitary-authority/peterborough,Peterborough City Council,Adult Services & Communities - Adults,Independent Sector Placements,Services,06/01/2017 00:00,30109684,3738.36,Revenue,Alysia Caring Ltd T/a Cherry Blossom care Home,Residential Care
Peterborough,http://opendatacommunities.org/id/unitary-authority/peterborough,Peterborough City Council,Adult Services & Communities - Adults,Independent Sector Placements,Services,06/01/2017 00:00,30109685,3000,Revenue,Avery House (Peterborough) t/a Brighterkind,Residential Care
Peterborough,http://opendatacommunities.org/id/unitary-authority/peterborough,Peterborough City Council,Adult Services & Communities - Adults,Independent Sector Placements,Services,06/01/2017 00:00,30109687,775,Revenue,Alysia Caring Ltd T/a Cherry Blossom care Home,Residential Care
Peterborough,http://opendatacommunities.org/id/unitary-authority/peterborough,Peterborough City Council,Children's & Safeguarding,Access to Resources & Specialist Commissioning,Services,06/01/2017 00:00,30109695,12546.14,Revenue,Ethelbert Childrens Services,Boarding Out Allowances
Peterborough,http://opendatacommunities.org/id/unitary-authority/peterborough,Peterborough City Council,Children's & Safeguarding,Access to Resources & Specialist Commissioning,Services,06/01/2017 00:00,30109697,12887.14,Revenue,Ethelbert Childrens Services,Boarding Out Allowances
Peterborough,http://opendatacommunities.org/id/unitary-authority/peterborough,Peterborough City Council,Performance & Information,Performance & Information,Services,06/01/2017 00:00,30109705,98848.34,Revenue,Cambridgeshire County Council,Administration Expenses
Peterborough,http://opendatacommunities.org/id/unitary-authority/peterborough,Peterborough City Council,Corporate,Corporate,Non Revenue,06/01/2017 00:00,30109719,1986139.34,Capital,Education Funding Agency,Building And Site Works
Peterborough,http://opendatacommunities.org/id/unitary-authority/peterborough,Peterborough City Council,Business Management and Commercial Operations,Commissioning,Services,06/01/2017 00:00,30109722,5000,Revenue,Clive Atkins Consultancy Ltd,Hired Services
Peterborough,http://opendatacommunities.org/id/unitary-authority/peterborough,Peterborough City Council,Adult Services & Communities - Adults,Independent Sector Placements,Services,06/01/2017 00:00,30109839,-1942.86,Revenue,Alysia Caring Ltd T/a Cherry Blossom care Home,Residential Care
Peterborough,http://opendatacommunities.org/id/unitary-authority/peterborough,Peterborough City Council,City Servs & Communications,Regulatory Services,Agency Staff,06/01/2017 00:00,30109851,1260,Revenue,Osborne Richardson,External Temporary Staff
Peterborough,http://opendatacommunities.org/id/unitary-authority/peterborough,Peterborough City Council,City Servs & Communications,Regulatory Services,Agency Staff,06/01/2017 00:00,30109856,1110,Revenue,Osborne Richardson,External Temporary Staff
Peterborough,http://opendatacommunities.org/id/unitary-authority/peterborough,Peterborough City Council,City Servs & Communications,Regulatory Services,Agency Staff,06/01/2017 00:00,30109858,1170,Revenue,Osborne Richardson,External Temporary Staff
Peterborough,http://opendatacommunities.org/id/unitary-authority/peterborough,Peterborough City Council,City Servs & Communications,Regulatory Services,Agency Staff,06/01/2017 00:00,30109859,1080,Revenue,Osborne Richardson,External Temporary Staff
Peterborough,http://opendatacommunities.org/id/unitary-authority/peterborough,Peterborough City Council,City Servs & Communications,Regulatory Services,Agency Staff,06/01/2017 00:00,30109863,1110,Revenue,Osborne Richardson,External Temporary Staff
Peterborough,http://opendatacommunities.org/id/unitary-authority/peterborough,Peterborough City Council,Children's & Safeguarding,Access to Resources & Specialist Commissioning,Services,06/01/2017 00:00,30109926,1900.8,Revenue,Universal Student Living Ltd,Course Fees
Peterborough,http://opendatacommunities.org/id/unitary-authority/peterborough,Peterborough City Council,Adult Services & Communities - Adults,Independent Sector Placements,Services,06/01/2017 00:00,8000079399,823.2,Revenue,Axiom Housing Association,Home Care
Peterborough,http://opendatacommunities.org/id/unitary-authority/peterborough,Peterborough City Council,Adult Services & Communities - Adults,Independent Sector Placements,Services,06/01/2017 00:00,8000079485,540,Revenue,Cambridgeshirehomecare,Home Care
Peterborough,http://opendatacommunities.org/id/unitary-authority/peterborough,Peterborough City Council,Adult Services & Communities - Adults,Independent Sector Placements,Services,06/01/2017 00:00,8000079486,1023.73,Revenue,Cambridgeshirehomecare,Home Care
Peterborough,http://opendatacommunities.org/id/unitary-authority/peterborough,Peterborough City Council,Adult Services & Communities - Adults,Independent Sector Placements,Services,06/01/2017 00:00,8000079501,1610.4,Revenue,Cozy Care,Home Care
Peterborough,http://opendatacommunities.org/id/unitary-authority/peterborough,Peterborough City Council,Adult Services & Communities - Adults,Independent Sector Placements,Services,06/01/2017 00:00,8000079502,698.5,Revenue,Cozy Care,Home Care
Peterborough,http://opendatacommunities.org/id/unitary-authority/peterborough,Peterborough City Council,Adult Services & Communities - Adults,Independent Sector Placements,Services,06/01/2017 00:00,8000079503,1716,Revenue,Cozy Care,Home Care
Peterborough,http://opendatacommunities.org/id/unitary-authority/peterborough,Peterborough City Council,Adult Services & Communities - Adults,Independent Sector Placements,Services,06/01/2017 00:00,8000079506,1848,Revenue,Cozy Care,Home Care
Peterborough,http://opendatacommunities.org/id/unitary-authority/peterborough,Peterborough City Council,Adult Services & Communities - Adults,Independent Sector Placements,Services,06/01/2017 00:00,8000079511,924,Revenue,Cozy Care,Home Care
Peterborough,http://opendatacommunities.org/id/unitary-authority/peterborough,Peterborough City Council,Adult Services & Communities - Adults,Independent Sector Placements,Services,06/01/2017 00:00,8000079514,511.5,Revenue,Cozy Care,Home Care
Peterborough,http://opendatacommunities.org/id/unitary-authority/peterborough,Peterborough City Council,Adult Services & Communities - Adults,Independent Sector Placements,Services,06/01/2017 00:00,8000079520,528,Revenue,Cozy Care,Home Care
Peterborough,http://opendatacommunities.org/id/unitary-authority/peterborough,Peterborough City Council,Adult Services & Communities - Adults,Independent Sector Placements,Services,06/01/2017 00:00,8000079521,1650,Revenue,Cozy Care,Home Care
Peterborough,http://opendatacommunities.org/id/unitary-authority/peterborough,Peterborough City Council,Adult Services & Communities - Adults,Independent Sector Placements,Services,06/01/2017 00:00,8000079527,884.4,Revenue,Cozy Care,Home Care
Peterborough,http://opendatacommunities.org/id/unitary-authority/peterborough,Peterborough City Council,Adult Services & Communities - Adults,Independent Sector Placements,Services,06/01/2017 00:00,8000079530,831.6,Revenue,Cozy Care,Home Care
Peterborough,http://opendatacommunities.org/id/unitary-authority/peterborough,Peterborough City Council,Adult Services & Communities - Adults,Independent Sector Placements,Services,06/01/2017 00:00,8000079535,792,Revenue,Cozy Care,Home Care
Peterborough,http://opendatacommunities.org/id/unitary-authority/peterborough,Peterborough City Council,Adult Services & Communities - Adults,Independent Sector Placements,Services,06/01/2017 00:00,8000079536,801.9,Revenue,Cozy Care,Home Care
Peterborough,http://opendatacommunities.org/id/unitary-authority/peterborough,Peterborough City Council,Adult Services & Communities - Adults,Independent Sector Placements,Services,06/01/2017 00:00,8000079538,1861.2,Revenue,Cozy Care,Home Care
Peterborough,http://opendatacommunities.org/id/unitary-authority/peterborough,Peterborough City Council,Adult Services & Communities - Adults,Independent Sector Placements,Services,06/01/2017 00:00,8000079539,633.6,Revenue,Cozy Care,Home Care
Peterborough,http://opendatacommunities.org/id/unitary-authority/peterborough,Peterborough City Council,Adult Services & Communities - Adults,Independent Sector Placements,Services,06/01/2017 00:00,8000079544,554.4,Revenue,Cozy Care,Home Care
Peterborough,http://opendatacommunities.org/id/unitary-authority/peterborough,Peterborough City Council,Adult Services & Communities - Adults,Independent Sector Placements,Services,06/01/2017 00:00,8000079545,554.4,Revenue,Cozy Care,Home Care
Peterborough,http://opendatacommunities.org/id/unitary-authority/peterborough,Peterborough City Council,Adult Services & Communities - Adults,Independent Sector Placements,Services,06/01/2017 00:00,8000079546,1293.6,Revenue,Cozy Care,Home Care
Peterborough,http://opendatacommunities.org/id/unitary-authority/peterborough,Peterborough City Council,Adult Services & Communities - Adults,Independent Sector Placements,Services,06/01/2017 00:00,8000079548,620.4,Revenue,Cozy Care,Home Care
Peterborough,http://opendatacommunities.org/id/unitary-authority/peterborough,Peterborough City Council,Children's & Safeguarding,Access to Resources & Specialist Commissioning,Services,10/01/2017 00:00,30106339,10407.01,Revenue,Acorn Homes UK Ltd,Boarding Out Allowances
Peterborough,http://opendatacommunities.org/id/unitary-authority/peterborough,Peterborough City Council,Adults and Communities - Communities,Youth / Youth Offending,Repair & Maintenance of Buildings,10/01/2017 00:00,30107042,-572,Revenue,Vivacity Culture and Leisure,Other Occupancy Costs
Peterborough,http://opendatacommunities.org/id/unitary-authority/peterborough,Peterborough City Council,Corporate,Corporate,Non Revenue,10/01/2017 00:00,30107274,1963.01,Capital,Vix Technology UK Ltd,Infrastructure
Peterborough,http://opendatacommunities.org/id/unitary-authority/peterborough,Peterborough City Council,Children's & Safeguarding,Access to Resources & Specialist Commissioning,Services,10/01/2017 00:00,30107302,1737,Revenue,Transition Care Peterborough Ltd,Boarding Out Allowances
Peterborough,http://opendatacommunities.org/id/unitary-authority/peterborough,Peterborough City Council,"Cemeteries, Cremation & Registrars",Bereavement Service,"Tools, Equipment, Furniture & Materials",10/01/2017 00:00,30107805,515.92,Revenue,Scribes Ltd,Memorials
Peterborough,http://opendatacommunities.org/id/unitary-authority/peterborough,Peterborough City Council,Adult Services & Communities - Adults,Therapy/Reablement/Community Equipment,Agency Staff,10/01/2017 00:00,30107822,1258,Revenue,SWP Consulting,External Temporary Staff
Peterborough,http://opendatacommunities.org/id/unitary-authority/peterborough,Peterborough City Council,Education,Special Educational Needs / Inclusion,Services,10/01/2017 00:00,30107849,3476.8,Revenue,Becky Frewin Speech Therapy,Hired Services
Peterborough,http://opendatacommunities.org/id/unitary-authority/peterborough,Peterborough City Council,Peterborough Highway Services,Network and Traffic Management,Services,10/01/2017 00:00,30107857,3677,Revenue,Dynniq UK Ltd,Contractors
Peterborough,http://opendatacommunities.org/id/unitary-authority/peterborough,Peterborough City Council,Public Health,Housing and Health - Public Health,Third Party Payments,10/01/2017 00:00,30107880,829.58,Revenue,Boots 6450,Third Party Payments - Contract
Peterborough,http://opendatacommunities.org/id/unitary-authority/peterborough,Peterborough City Council,Public Health,Housing and Health - Public Health,Third Party Payments,10/01/2017 00:00,30107884,542.91,Revenue,Boots Queensgate,Third Party Payments - Contract
Peterborough,http://opendatacommunities.org/id/unitary-authority/peterborough,Peterborough City Council,Public Health,Housing and Health - Public Health,Third Party Payments,10/01/2017 00:00,30107933,813.11,Revenue,Lloyds Pharmacy Orton,Third Party Payments - Contract
Peterborough,http://opendatacommunities.org/id/unitary-authority/peterborough,Peterborough City Council,City Servs & Communications,"Markets, Tourism & Events",Services,10/01/2017 00:00,30107935,1868,Revenue,Stagecoach in Peterborough,Contractors
Peterborough,http://opendatacommunities.org/id/unitary-authority/peterborough,Peterborough City Council,Adults and Communities - Communities,Service Director - Adults & Communities,Third Party Payments,10/01/2017 00:00,30108160,1540,Revenue,Enterprise Managed Services Limited,Third Party Payments - Contract
Peterborough,http://opendatacommunities.org/id/unitary-authority/peterborough,Peterborough City Council,Adults and Communities - Communities,Housing and Health,Services,10/01/2017 00:00,30108236,595.56,Revenue,DA Rosalia Hotel,Homelessness Bed & Breakfast Costs
Peterborough,http://opendatacommunities.org/id/unitary-authority/peterborough,Peterborough City Council,Adults and Communities - Communities,Housing and Health,Services,10/01/2017 00:00,30108242,595.56,Revenue,DA Rosalia Hotel,Homelessness Bed & Breakfast Costs
Peterborough,http://opendatacommunities.org/id/unitary-authority/peterborough,Peterborough City Council,Adults and Communities - Communities,Housing and Health,Services,10/01/2017 00:00,30108256,714.56,Revenue,DA Rosalia Hotel,Homelessness Bed & Breakfast Costs
Peterborough,http://opendatacommunities.org/id/unitary-authority/peterborough,Peterborough City Council,Education,Home to School Transport,Contract Hire and Operating Leases,10/01/2017 00:00,30108258,745.4,Revenue,Centrebus North Ltd,Hired Transport
Peterborough,http://opendatacommunities.org/id/unitary-authority/peterborough,Peterborough City Council,Adults and Communities - Communities,Housing and Health,Services,10/01/2017 00:00,30108291,655.06,Revenue,DA Rosalia Hotel,Homelessness Bed & Breakfast Costs
Peterborough,http://opendatacommunities.org/id/unitary-authority/peterborough,Peterborough City Council,Adults and Communities - Communities,Housing and Health,Services,10/01/2017 00:00,30108292,655.06,Revenue,DA Rosalia Hotel,Homelessness Bed & Breakfast Costs
Peterborough,http://opendatacommunities.org/id/unitary-authority/peterborough,Peterborough City Council,Adults and Communities - Communities,Housing and Health,Services,10/01/2017 00:00,30108317,655.06,Revenue,DA Rosalia Hotel,Homelessness Bed & Breakfast Costs
Peterborough,http://opendatacommunities.org/id/unitary-authority/peterborough,Peterborough City Council,Adult Services & Communities - Adults,Independent Sector Placements,Services,10/01/2017 00:00,30108402,2935.84,Revenue,PRIME LIFE LTD,Residential Care
Peterborough,http://opendatacommunities.org/id/unitary-authority/peterborough,Peterborough City Council,Adult Services & Communities - Adults,Independent Sector Placements,Services,10/01/2017 00:00,30108553,1806.2,Revenue,THE LODGE TRUST,Residential Care
Peterborough,http://opendatacommunities.org/id/unitary-authority/peterborough,Peterborough City Council,Adult Services & Communities - Adults,Independent Sector Placements,Services,10/01/2017 00:00,30108670,1299.08,Revenue,FIELD HOUSE (EYE) LTD,Residential Care
Peterborough,http://opendatacommunities.org/id/unitary-authority/peterborough,Peterborough City Council,Adult Services & Communities - Adults,Independent Sector Placements,Services,10/01/2017 00:00,30108671,1147.12,Revenue,FIELD HOUSE (EYE) LTD,Residential Care
Peterborough,http://opendatacommunities.org/id/unitary-authority/peterborough,Peterborough City Council,Adult Services & Communities - Adults,Independent Sector Placements,Services,10/01/2017 00:00,30108674,1417.04,Revenue,FIELD HOUSE (EYE) LTD,Residential Care
Peterborough,http://opendatacommunities.org/id/unitary-authority/peterborough,Peterborough City Council,Adult Services & Communities - Adults,Independent Sector Placements,Services,10/01/2017 00:00,30108675,1294.48,Revenue,FIELD HOUSE (EYE) LTD,Residential Care
Peterborough,http://opendatacommunities.org/id/unitary-authority/peterborough,Peterborough City Council,Adult Services & Communities - Adults,Independent Sector Placements,Services,10/01/2017 00:00,30108678,1342.88,Revenue,FIELD HOUSE (EYE) LTD,Residential Care
Peterborough,http://opendatacommunities.org/id/unitary-authority/peterborough,Peterborough City Council,Adult Services & Communities - Adults,Independent Sector Placements,Services,10/01/2017 00:00,30108679,1299.08,Revenue,FIELD HOUSE (EYE) LTD,Residential Care
Peterborough,http://opendatacommunities.org/id/unitary-authority/peterborough,Peterborough City Council,Adult Services & Communities - Adults,Independent Sector Placements,Services,10/01/2017 00:00,30108680,1248.12,Revenue,FIELD HOUSE (EYE) LTD,Residential Care
Peterborough,http://opendatacommunities.org/id/unitary-authority/peterborough,Peterborough City Council,Adult Services & Communities - Adults,Independent Sector Placements,Services,10/01/2017 00:00,30108683,1090.4,Revenue,FIELD HOUSE (EYE) LTD,Residential Care
Peterborough,http://opendatacommunities.org/id/unitary-authority/peterborough,Peterborough City Council,Adult Services & Communities - Adults,Independent Sector Placements,Services,10/01/2017 00:00,30108685,989.64,Revenue,FIELD HOUSE (EYE) LTD,Residential Care
Peterborough,http://opendatacommunities.org/id/unitary-authority/peterborough,Peterborough City Council,Adult Services & Communities - Adults,Independent Sector Placements,Services,10/01/2017 00:00,30108686,627.36,Revenue,FIELD HOUSE (EYE) LTD,Residential Care
Peterborough,http://opendatacommunities.org/id/unitary-authority/peterborough,Peterborough City Council,Adult Services & Communities - Adults,Independent Sector Placements,Services,10/01/2017 00:00,30108687,996.32,Revenue,FIELD HOUSE (EYE) LTD,Residential Care
Peterborough,http://opendatacommunities.org/id/unitary-authority/peterborough,Peterborough City Council,Adult Services & Communities - Adults,Independent Sector Placements,Services,10/01/2017 00:00,30108689,1404.32,Revenue,FIELD HOUSE (EYE) LTD,Residential Care
Peterborough,http://opendatacommunities.org/id/unitary-authority/peterborough,Peterborough City Council,Adult Services & Communities - Adults,Independent Sector Placements,Services,10/01/2017 00:00,30108690,1196.24,Revenue,FIELD HOUSE (EYE) LTD,Residential Care
Peterborough,http://opendatacommunities.org/id/unitary-authority/peterborough,Peterborough City Council,Adult Services & Communities - Adults,Independent Sector Placements,Services,10/01/2017 00:00,30108691,1299.08,Revenue,FIELD HOUSE (EYE) LTD,Residential Care
Peterborough,http://opendatacommunities.org/id/unitary-authority/peterborough,Peterborough City Council,Adult Services & Communities - Adults,Independent Sector Placements,Services,10/01/2017 00:00,30108692,1608.52,Revenue,FIELD HOUSE (EYE) LTD,Residential Care
Peterborough,http://opendatacommunities.org/id/unitary-authority/peterborough,Peterborough City Council,Various,Various,Services,10/01/2017 00:00,30108726,1812.3,Revenue,Whistl UK Ltd,Postage
Peterborough,http://opendatacommunities.org/id/unitary-authority/peterborough,Peterborough City Council,Adult Services & Communities - Adults,Independent Sector Placements,Services,10/01/2017 00:00,30108781,732.59,Revenue,Athena (Ashlynn Grange),Residential Care
Peterborough,http://opendatacommunities.org/id/unitary-authority/peterborough,Peterborough City Council,Adult Services & Communities - Adults,Independent Sector Placements,Services,10/01/2017 00:00,30108784,1589.76,Revenue,Athena (Ashlynn Grange),Residential Care
Peterborough,http://opendatacommunities.org/id/unitary-authority/peterborough,Peterborough City Council,Adult Services & Communities - Adults,Independent Sector Placements,Services,10/01/2017 00:00,30108789,1186.69,Revenue,Athena (Ashlynn Grange),Residential Care
Peterborough,http://opendatacommunities.org/id/unitary-authority/peterborough,Peterborough City Council,Adult Services & Communities - Adults,Independent Sector Placements,Services,10/01/2017 00:00,30108804,1580.43,Revenue,Athena (Ashlynn Grange),Residential Care
Peterborough,http://opendatacommunities.org/id/unitary-authority/peterborough,Peterborough City Council,Adult Services & Communities - Adults,Independent Sector Placements,Services,10/01/2017 00:00,30108805,1719.44,Revenue,Athena (Ashlynn Grange),Residential Care
Peterborough,http://opendatacommunities.org/id/unitary-authority/peterborough,Peterborough City Council,Adult Services & Communities - Adults,Independent Sector Placements,Services,10/01/2017 00:00,30108807,2223.57,Revenue,Athena (Ashlynn Grange),Residential Care
Peterborough,http://opendatacommunities.org/id/unitary-authority/peterborough,Peterborough City Council,Adult Services & Communities - Adults,Independent Sector Placements,Services,10/01/2017 00:00,30108809,1252.68,Revenue,Athena (Ashlynn Grange),Residential Care
Peterborough,http://opendatacommunities.org/id/unitary-authority/peterborough,Peterborough City Council,Adult Services & Communities - Adults,Independent Sector Placements,Services,10/01/2017 00:00,30108815,693.05,Revenue,Athena (Ashlynn Grange),Residential Care
Peterborough,http://opendatacommunities.org/id/unitary-authority/peterborough,Peterborough City Council,Adult Services & Communities - Adults,Independent Sector Placements,Services,10/01/2017 00:00,30108818,1130.57,Revenue,Athena (Ashlynn Grange),Residential Care
Peterborough,http://opendatacommunities.org/id/unitary-authority/peterborough,Peterborough City Council,Adult Services & Communities - Adults,Independent Sector Placements,Services,10/01/2017 00:00,30108824,1640.4,Revenue,Athena (Ashlynn Grange),Residential Care
Peterborough,http://opendatacommunities.org/id/unitary-authority/peterborough,Peterborough City Council,Adult Services & Communities - Adults,Independent Sector Placements,Services,10/01/2017 00:00,30108832,1519.95,Revenue,Athena (Ashlynn Grange),Residential Care
Peterborough,http://opendatacommunities.org/id/unitary-authority/peterborough,Peterborough City Council,Adult Services & Communities - Adults,Independent Sector Placements,Services,10/01/2017 00:00,30108834,1519.95,Revenue,Athena (Ashlynn Grange),Residential Care
Peterborough,http://opendatacommunities.org/id/unitary-authority/peterborough,Peterborough City Council,Adult Services & Communities - Adults,Independent Sector Placements,Services,10/01/2017 00:00,30108835,1542.78,Revenue,Athena (Ashlynn Grange),Residential Care
Peterborough,http://opendatacommunities.org/id/unitary-authority/peterborough,Peterborough City Council,Adult Services & Communities - Adults,Independent Sector Placements,Services,10/01/2017 00:00,30108837,1391.93,Revenue,Athena (Ashlynn Grange),Residential Care
Peterborough,http://opendatacommunities.org/id/unitary-authority/peterborough,Peterborough City Council,Business Management and Commercial Operations,Clare Lodge,Interview & Training Expenses,10/01/2017 00:00,30108851,669.5,Revenue,SG Training Ltd,Training
Peterborough,http://opendatacommunities.org/id/unitary-authority/peterborough,Peterborough City Council,Adult Services & Communities - Adults,Independent Sector Placements,Services,10/01/2017 00:00,30108854,1713.27,Revenue,Athena (Ashlynn Grange),Residential Care
Peterborough,http://opendatacommunities.org/id/unitary-authority/peterborough,Peterborough City Council,Adult Services & Communities - Adults,Independent Sector Placements,Services,10/01/2017 00:00,30108860,1567.71,Revenue,Barchester Healthcare (Werrington Lodge),Residential Care
Peterborough,http://opendatacommunities.org/id/unitary-authority/peterborough,Peterborough City Council,Adult Services & Communities - Adults,Independent Sector Placements,Services,10/01/2017 00:00,30108861,1567.71,Revenue,Barchester Healthcare (Werrington Lodge),Residential Care
Peterborough,http://opendatacommunities.org/id/unitary-authority/peterborough,Peterborough City Council,Adult Services & Communities - Adults,Independent Sector Placements,Services,10/01/2017 00:00,30108862,1567.71,Revenue,Barchester Healthcare (Werrington Lodge),Residential Care
Peterborough,http://opendatacommunities.org/id/unitary-authority/peterborough,Peterborough City Council,Adult Services & Communities - Adults,Independent Sector Placements,Services,10/01/2017 00:00,30108863,1756.81,Revenue,Athena (Ashlynn Grange),Residential Care
Peterborough,http://opendatacommunities.org/id/unitary-authority/peterborough,Peterborough City Council,Adult Services & Communities - Adults,Independent Sector Placements,Services,10/01/2017 00:00,30108864,1567.71,Revenue,Barchester Healthcare (Werrington Lodge),Residential Care
Peterborough,http://opendatacommunities.org/id/unitary-authority/peterborough,Peterborough City Council,Adult Services & Communities - Adults,Independent Sector Placements,Services,10/01/2017 00:00,30108869,1009.61,Revenue,Athena (Ashlynn Grange),Residential Care
Peterborough,http://opendatacommunities.org/id/unitary-authority/peterborough,Peterborough City Council,Adult Services & Communities - Adults,Independent Sector Placements,Services,10/01/2017 00:00,30108878,1909.29,Revenue,Athena (Ashlynn Grange),Residential Care
Peterborough,http://opendatacommunities.org/id/unitary-authority/peterborough,Peterborough City Council,Adult Services & Communities - Adults,Independent Sector Placements,Services,10/01/2017 00:00,30108879,1487.01,Revenue,Athena (Ashlynn Grange),Residential Care
Peterborough,http://opendatacommunities.org/id/unitary-authority/peterborough,Peterborough City Council,Adult Services & Communities - Adults,Independent Sector Placements,Services,10/01/2017 00:00,30108880,1690.2,Revenue,Athena (Ashlynn Grange),Residential Care
Peterborough,http://opendatacommunities.org/id/unitary-authority/peterborough,Peterborough City Council,Adult Services & Communities - Adults,Independent Sector Placements,Services,10/01/2017 00:00,30108881,1213.96,Revenue,Athena (Ashlynn Grange),Residential Care
Peterborough,http://opendatacommunities.org/id/unitary-authority/peterborough,Peterborough City Council,Adult Services & Communities - Adults,Independent Sector Placements,Services,10/01/2017 00:00,30108882,2223.57,Revenue,Athena (Ashlynn Grange),Residential Care
Peterborough,http://opendatacommunities.org/id/unitary-authority/peterborough,Peterborough City Council,Adult Services & Communities - Adults,Independent Sector Placements,Services,10/01/2017 00:00,30108883,1719.44,Revenue,Athena (Ashlynn Grange),Residential Care
Peterborough,http://opendatacommunities.org/id/unitary-authority/peterborough,Peterborough City Council,Adult Services & Communities - Adults,Independent Sector Placements,Services,10/01/2017 00:00,30108884,1711.72,Revenue,Athena (Ashlynn Grange),Residential Care
Peterborough,http://opendatacommunities.org/id/unitary-authority/peterborough,Peterborough City Council,Adult Services & Communities - Adults,Independent Sector Placements,Services,10/01/2017 00:00,30108885,1756.81,Revenue,Athena (Ashlynn Grange),Residential Care
Peterborough,http://opendatacommunities.org/id/unitary-authority/peterborough,Peterborough City Council,Adult Services & Communities - Adults,Independent Sector Placements,Services,10/01/2017 00:00,30108886,2942.85,Revenue,Athena (Ashlynn Grange),Residential Care
Peterborough,http://opendatacommunities.org/id/unitary-authority/peterborough,Peterborough City Council,Adult Services & Communities - Adults,Independent Sector Placements,Services,10/01/2017 00:00,30108887,960.89,Revenue,Athena (Ashlynn Grange),Residential Care
Peterborough,http://opendatacommunities.org/id/unitary-authority/peterborough,Peterborough City Council,Adult Services & Communities - Adults,Independent Sector Placements,Services,10/01/2017 00:00,30108888,1719.44,Revenue,Athena (Ashlynn Grange),Residential Care
Peterborough,http://opendatacommunities.org/id/unitary-authority/peterborough,Peterborough City Council,Adult Services & Communities - Adults,Independent Sector Placements,Services,10/01/2017 00:00,30108889,828.51,Revenue,Athena (Ashlynn Grange),Residential Care
Peterborough,http://opendatacommunities.org/id/unitary-authority/peterborough,Peterborough City Council,Adult Services & Communities - Adults,Independent Sector Placements,Services,10/01/2017 00:00,30108890,888.61,Revenue,Athena (Ashlynn Grange),Residential Care
Peterborough,http://opendatacommunities.org/id/unitary-authority/peterborough,Peterborough City Council,Adult Services & Communities - Adults,Independent Sector Placements,Services,10/01/2017 00:00,30108892,1567.71,Revenue,Barchester Healthcare (Werrington Lodge),Residential Care
Peterborough,http://opendatacommunities.org/id/unitary-authority/peterborough,Peterborough City Council,Adult Services & Communities - Adults,Independent Sector Placements,Services,10/01/2017 00:00,30108895,1567.71,Revenue,Barchester Healthcare (Werrington Lodge),Residential Care
Peterborough,http://opendatacommunities.org/id/unitary-authority/peterborough,Peterborough City Council,Adult Services & Communities - Adults,Independent Sector Placements,Services,10/01/2017 00:00,30108896,1567.71,Revenue,Barchester Healthcare (Werrington Lodge),Residential Care
Peterborough,http://opendatacommunities.org/id/unitary-authority/peterborough,Peterborough City Council,Adult Services & Communities - Adults,Independent Sector Placements,Services,10/01/2017 00:00,30108898,1567.71,Revenue,Barchester Healthcare (Werrington Lodge),Residential Care
Peterborough,http://opendatacommunities.org/id/unitary-authority/peterborough,Peterborough City Council,Adult Services & Communities - Adults,Independent Sector Placements,Services,10/01/2017 00:00,30108907,1567.71,Revenue,Barchester Healthcare (Werrington Lodge),Residential Care
Peterborough,http://opendatacommunities.org/id/unitary-authority/peterborough,Peterborough City Council,Adult Services & Communities - Adults,Independent Sector Placements,Services,10/01/2017 00:00,30108908,1567.71,Revenue,Barchester Healthcare (Werrington Lodge),Residential Care
Peterborough,http://opendatacommunities.org/id/unitary-authority/peterborough,Peterborough City Council,Adult Services & Communities - Adults,Independent Sector Placements,Services,10/01/2017 00:00,30108910,1567.71,Revenue,Barchester Healthcare (Werrington Lodge),Residential Care
Peterborough,http://opendatacommunities.org/id/unitary-authority/peterborough,Peterborough City Council,Adult Services & Communities - Adults,Independent Sector Placements,Services,10/01/2017 00:00,30108915,1567.71,Revenue,Barchester Healthcare (Werrington Lodge),Residential Care
Peterborough,http://opendatacommunities.org/id/unitary-authority/peterborough,Peterborough City Council,Adult Services & Communities - Adults,Independent Sector Placements,Services,10/01/2017 00:00,30108949,2045.88,Revenue,Barchester Newton House Care Home,Residential Care
Peterborough,http://opendatacommunities.org/id/unitary-authority/peterborough,Peterborough City Council,Adult Services & Communities - Adults,Independent Sector Placements,Services,10/01/2017 00:00,30108953,2045.88,Revenue,Barchester Newton House Care Home,Residential Care
Peterborough,http://opendatacommunities.org/id/unitary-authority/peterborough,Peterborough City Council,Westcombe Engineering,Westcombe Engineering,"Tools, Equipment, Furniture & Materials",10/01/2017 00:00,30109049,954,Revenue,Barron Clark Castings Ltd,Items For Resale
Peterborough,http://opendatacommunities.org/id/unitary-authority/peterborough,Peterborough City Council,Westcombe Engineering,Westcombe Engineering,"Tools, Equipment, Furniture & Materials",10/01/2017 00:00,30109052,579,Revenue,Barron Clark Castings Ltd,Items For Resale
Peterborough,http://opendatacommunities.org/id/unitary-authority/peterborough,Peterborough City Council,Business Management and Commercial Operations,Clare Lodge,Repair & Maintenance of Buildings,10/01/2017 00:00,30109121,1123,Revenue,Southview Building Solutions Ltd,Premises Maintenance
Peterborough,http://opendatacommunities.org/id/unitary-authority/peterborough,Peterborough City Council,Business Management and Commercial Operations,Clare Lodge,Interview & Training Expenses,10/01/2017 00:00,30109152,895.4,Revenue,Resolve Consultants Ltd,Training
Peterborough,http://opendatacommunities.org/id/unitary-authority/peterborough,Peterborough City Council,Education,Home to School Transport,Contract Hire and Operating Leases,10/01/2017 00:00,30109205,7991.25,Revenue,Respond Care Ltd,Hired Transport
Peterborough,http://opendatacommunities.org/id/unitary-authority/peterborough,Peterborough City Council,Adult Services & Communities - Adults,Independent Sector Placements,Services,10/01/2017 00:00,30109594,665.7,Revenue,Athena (Ashlynn Grange),Residential Care
Peterborough,http://opendatacommunities.org/id/unitary-authority/peterborough,Peterborough City Council,Vivacity/Cultural Services,Cultural Services,Services,10/01/2017 00:00,30109872,1996.09,Revenue,Vivacity Culture and Leisure,Cash Collected
Peterborough,http://opendatacommunities.org/id/unitary-authority/peterborough,Peterborough City Council,Business Management and Commercial Operations,Early Years & Quality Improvement,Services,10/01/2017 00:00,30109879,26888.24,Revenue,Yasir Mahmood T/A ABC Nursery,Grant Payment
Peterborough,http://opendatacommunities.org/id/unitary-authority/peterborough,Peterborough City Council,Children's & Safeguarding,Access to Resources & Specialist Commissioning,Services,10/01/2017 00:00,30109880,1737,Revenue,Transition Care Peterborough Ltd,Boarding Out Allowances
Peterborough,http://opendatacommunities.org/id/unitary-authority/peterborough,Peterborough City Council,Business Management and Commercial Operations,Early Years & Quality Improvement,Services,10/01/2017 00:00,30109885,13533.74,Revenue,Young Generation Playgroup,Grant Payment
Peterborough,http://opendatacommunities.org/id/unitary-authority/peterborough,Peterborough City Council,Adult Services & Communities - Adults,Independent Sector Placements,Services,10/01/2017 00:00,30109925,-988.26,Revenue,Athena (Ashlynn Grange),Residential Care
Peterborough,http://opendatacommunities.org/id/unitary-authority/peterborough,Peterborough City Council,Adult Services & Communities - Adults,Independent Sector Placements,Services,10/01/2017 00:00,30109934,4034.16,Revenue,FIELD HOUSE (EYE) LTD,Residential Care
Peterborough,http://opendatacommunities.org/id/unitary-authority/peterborough,Peterborough City Council,Adult Services & Communities - Adults,Independent Sector Placements,Services,10/01/2017 00:00,30109935,1821.88,Revenue,FIELD HOUSE (EYE) LTD,Residential Care
Peterborough,http://opendatacommunities.org/id/unitary-authority/peterborough,Peterborough City Council,Adult Services & Communities - Adults,Independent Sector Placements,Services,10/01/2017 00:00,30109947,2176.24,Revenue,Avery House (Peterborough) t/a Brighterkind,Residential Care
Peterborough,http://opendatacommunities.org/id/unitary-authority/peterborough,Peterborough City Council,Adults and Communities - Communities,Service Director - Adults & Communities,Services,10/01/2017 00:00,30109953,625,Revenue,Rightroom Lettings Ltd,Financial Assistance
Peterborough,http://opendatacommunities.org/id/unitary-authority/peterborough,Peterborough City Council,Adults and Communities - Communities,Service Director - Adults & Communities,Services,10/01/2017 00:00,30109955,575,Revenue,Record Property Solutions,Financial Assistance
Peterborough,http://opendatacommunities.org/id/unitary-authority/peterborough,Peterborough City Council,Adults and Communities - Communities,Service Director - Adults & Communities,Services,10/01/2017 00:00,30109958,625,Revenue,Record Property Solutions,Financial Assistance
Peterborough,http://opendatacommunities.org/id/unitary-authority/peterborough,Peterborough City Council,Adult Services & Communities - Adults,Independent Sector Placements,Services,10/01/2017 00:00,30109985,1200,Revenue,FIELD HOUSE (EYE) LTD,Residential Care
Peterborough,http://opendatacommunities.org/id/unitary-authority/peterborough,Peterborough City Council,Adult Services & Communities - Adults,Independent Sector Placements,Services,10/01/2017 00:00,30110013,2266.29,Revenue,Healthcare Homes Group Ltd,Residential Care
Peterborough,http://opendatacommunities.org/id/unitary-authority/peterborough,Peterborough City Council,Adult Services & Communities - Adults,Independent Sector Placements,Services,10/01/2017 00:00,30110017,2341.83,Revenue,Healthcare Homes Group Ltd,Residential Care
Peterborough,http://opendatacommunities.org/id/unitary-authority/peterborough,Peterborough City Council,Adult Services & Communities - Adults,Independent Sector Placements,Services,10/01/2017 00:00,30110019,1217.2,Revenue,Avery Homes (Nelson) Ltd,Residential Care
Peterborough,http://opendatacommunities.org/id/unitary-authority/peterborough,Peterborough City Council,Adult Services & Communities - Adults,Independent Sector Placements,Services,10/01/2017 00:00,30110024,1155.92,Revenue,Avery Homes (Nelson) Ltd,Residential Care
Peterborough,http://opendatacommunities.org/id/unitary-authority/peterborough,Peterborough City Council,Adult Services & Communities - Adults,Independent Sector Placements,Services,10/01/2017 00:00,30110025,-896.22,Revenue,Barchester Healthcare (Werrington Lodge),Residential Care
Peterborough,http://opendatacommunities.org/id/unitary-authority/peterborough,Peterborough City Council,Adult Services & Communities - Adults,Independent Sector Placements,Services,10/01/2017 00:00,30110042,3282.32,Revenue,Red House Nursing Home,Residential Care
Peterborough,http://opendatacommunities.org/id/unitary-authority/peterborough,Peterborough City Council,Adult Services & Communities - Adults,Independent Sector Placements,Services,10/01/2017 00:00,30110044,1153.56,Revenue,Country Court Care Homes Ltd (St Johns),Residential Care
Peterborough,http://opendatacommunities.org/id/unitary-authority/peterborough,Peterborough City Council,Westcombe Engineering,Westcombe Engineering,"Tools, Equipment, Furniture & Materials",10/01/2017 00:00,30110048,504,Revenue,A S C Metals Ltd,Items For Resale
Peterborough,http://opendatacommunities.org/id/unitary-authority/peterborough,Peterborough City Council,Adult Services & Communities - Adults,Independent Sector Placements,Services,10/01/2017 00:00,30110050,7438.63,Revenue,Avery House (Peterborough) t/a Brighterkind,Residential Care
Peterborough,http://opendatacommunities.org/id/unitary-authority/peterborough,Peterborough City Council,Adult Services & Communities - Adults,Independent Sector Placements,Services,10/01/2017 00:00,30110052,2421.88,Revenue,Avery House (Peterborough) t/a Brighterkind,Residential Care
Peterborough,http://opendatacommunities.org/id/unitary-authority/peterborough,Peterborough City Council,Adult Services & Communities - Adults,Independent Sector Placements,Services,10/01/2017 00:00,30110053,2504.23,Revenue,Avery House (Peterborough) t/a Brighterkind,Residential Care
Peterborough,http://opendatacommunities.org/id/unitary-authority/peterborough,Peterborough City Council,Legal & Democratic,Legal Services,Agency Staff,10/01/2017 00:00,30110075,900,Revenue,Venn Group Ltd,External Temporary Staff
Peterborough,http://opendatacommunities.org/id/unitary-authority/peterborough,Peterborough City Council,Legal & Democratic,Legal Services,Agency Staff,10/01/2017 00:00,30110076,900,Revenue,Venn Group Ltd,External Temporary Staff
Peterborough,http://opendatacommunities.org/id/unitary-authority/peterborough,Peterborough City Council,Adults and Communities - Communities,Early Help ASC/CSC,Repair & Maintenance of Buildings,10/01/2017 00:00,30110085,2074.92,Revenue,GPR Gas Services,Premises Maintenance
Peterborough,http://opendatacommunities.org/id/unitary-authority/peterborough,Peterborough City Council,Corporate,Corporate,Non Revenue,10/01/2017 00:00,30110087,4751.08,Capital,Garfield Builders Ltd,Building And Site Works
Peterborough,http://opendatacommunities.org/id/unitary-authority/peterborough,Peterborough City Council,Adult Services & Communities - Adults,Day Opportunities / In House,Agency Staff,10/01/2017 00:00,30110095,1125.91,Revenue,Swim Recruitment,External Temporary Staff
Peterborough,http://opendatacommunities.org/id/unitary-authority/peterborough,Peterborough City Council,Adult Services & Communities - Adults,Day Opportunities / In House,Agency Staff,10/01/2017 00:00,30110097,1125.91,Revenue,Swim Recruitment,External Temporary Staff
Peterborough,http://opendatacommunities.org/id/unitary-authority/peterborough,Peterborough City Council,Adult Services & Communities - Adults,Day Opportunities / In House,Agency Staff,10/01/2017 00:00,30110098,1125.91,Revenue,Swim Recruitment,External Temporary Staff
Peterborough,http://opendatacommunities.org/id/unitary-authority/peterborough,Peterborough City Council,Corporate,Corporate,Non Revenue,10/01/2017 00:00,30110101,4395,Capital,Obam Domestic Lift Services Ltd,Grant Payment
Peterborough,http://opendatacommunities.org/id/unitary-authority/peterborough,Peterborough City Council,Financial Services,Insurance,Services,10/01/2017 00:00,30110102,750,Revenue,Browne Jacobson,Legal Costs
Peterborough,http://opendatacommunities.org/id/unitary-authority/peterborough,Peterborough City Council,Financial Services,Insurance,Services,10/01/2017 00:00,30110104,2956.55,Revenue,Browne Jacobson,Legal Costs
Peterborough,http://opendatacommunities.org/id/unitary-authority/peterborough,Peterborough City Council,Corporate,Corporate,Non Revenue,10/01/2017 00:00,30110105,4150,Capital,Obam Domestic Lift Services Ltd,Grant Payment
Peterborough,http://opendatacommunities.org/id/unitary-authority/peterborough,Peterborough City Council,Financial Services,Insurance,Services,10/01/2017 00:00,30110106,7820,Revenue,Clyde & Co LLP,Legal Costs
Peterborough,http://opendatacommunities.org/id/unitary-authority/peterborough,Peterborough City Council,Adult Services & Communities - Adults,Therapy/Reablement/Community Equipment,Agency Staff,10/01/2017 00:00,30110109,4944,Revenue,Sanctuary Personnel Ltd,External Temporary Staff
Peterborough,http://opendatacommunities.org/id/unitary-authority/peterborough,Peterborough City Council,Corporate,Corporate,Non Revenue,10/01/2017 00:00,30110110,3919,Capital,Stannah Lift Services,Grant Payment
Peterborough,http://opendatacommunities.org/id/unitary-authority/peterborough,Peterborough City Council,Education,Service Director Education,Services,10/01/2017 00:00,30110120,26123.99,Revenue,Teachers Pensions,Pensions
Peterborough,http://opendatacommunities.org/id/unitary-authority/peterborough,Peterborough City Council,Education,Special Educational Needs / Inclusion,Agency Staff,10/01/2017 00:00,30110160,4875,Revenue,Applied Psychologies,External Temporary Staff
Peterborough,http://opendatacommunities.org/id/unitary-authority/peterborough,Peterborough City Council,Education,Special Educational Needs / Inclusion,Agency Staff,10/01/2017 00:00,30110161,4875,Revenue,Applied Psychologies,External Temporary Staff
Peterborough,http://opendatacommunities.org/id/unitary-authority/peterborough,Peterborough City Council,Adults and Communities - Communities,Housing and Health,Third Party Payments,10/01/2017 00:00,30110162,6114.59,Revenue,Home Group Ltd,Grant-Third Party
Peterborough,http://opendatacommunities.org/id/unitary-authority/peterborough,Peterborough City Council,Education,Pupil Referral Unit,Agency Staff,10/01/2017 00:00,30110169,895,Revenue,Mana Resourcing Ltd,Supply Teachers
Peterborough,http://opendatacommunities.org/id/unitary-authority/peterborough,Peterborough City Council,Corporate,Corporate,Non Revenue,11/01/2017 00:00,30092772,4979.36,Capital,Enterprise Managed Services Limited,Property Services Fees
Peterborough,http://opendatacommunities.org/id/unitary-authority/peterborough,Peterborough City Council,Business Management and Commercial Operations,Clare Lodge,Contract Hire and Operating Leases,11/01/2017 00:00,30097007,3157.56,Revenue,Lex Autolease Ltd,Hired Transport
Peterborough,http://opendatacommunities.org/id/unitary-authority/peterborough,Peterborough City Council,Commercial Group,Strategic Client Services,Agency Staff,11/01/2017 00:00,30099172,1426.16,Revenue,Hays Specialist Recruitment Ltd,External Temporary Staff
Peterborough,http://opendatacommunities.org/id/unitary-authority/peterborough,Peterborough City Council,Adult Services & Communities - Adults,Block Contracts,Third Party Payments,11/01/2017 00:00,30099837,4836.07,Revenue,ABOUT ME CARE AND SUPPORT LTD,Third Party Payments - Contract
Peterborough,http://opendatacommunities.org/id/unitary-authority/peterborough,Peterborough City Council,Corporate,Corporate,Non Revenue,11/01/2017 00:00,30102253,2273.03,Capital,Salesforce.com,Computer Software
Peterborough,http://opendatacommunities.org/id/unitary-authority/peterborough,Peterborough City Council,ICT,ICT,Agency Staff,11/01/2017 00:00,30103959,2500,Revenue,Socitm Ltd,External Temporary Staff
Peterborough,http://opendatacommunities.org/id/unitary-authority/peterborough,Peterborough City Council,ICT,ICT,Agency Staff,11/01/2017 00:00,30105358,5000,Revenue,Socitm Ltd,External Temporary Staff
Peterborough,http://opendatacommunities.org/id/unitary-authority/peterborough,Peterborough City Council,Children's & Safeguarding,Children's Social Care,Services,11/01/2017 00:00,30106270,16000,Revenue,Medway Council,Adoption
Peterborough,http://opendatacommunities.org/id/unitary-authority/peterborough,Peterborough City Council,Children's & Safeguarding,Children's Social Care,Agency Staff,11/01/2017 00:00,30106650,6500,Revenue,Sanctuary Personnel Ltd,External Temporary Staff
Peterborough,http://opendatacommunities.org/id/unitary-authority/peterborough,Peterborough City Council,Adult Services & Communities - Adults,Finance,Agency Staff,11/01/2017 00:00,30106806,12320,Revenue,Sanctuary Personnel Ltd,External Temporary Staff
Peterborough,http://opendatacommunities.org/id/unitary-authority/peterborough,Peterborough City Council,Vivacity/Cultural Services,Cultural Services,Services,11/01/2017 00:00,30106849,5246.67,Revenue,Vivacity Culture and Leisure,Cash Collected
Peterborough,http://opendatacommunities.org/id/unitary-authority/peterborough,Peterborough City Council,Adult Services & Communities - Adults,Block Contracts,Third Party Payments,11/01/2017 00:00,30107124,119613.53,Revenue,Turning Point Services Ltd,Third Party Payments - Contract
Peterborough,http://opendatacommunities.org/id/unitary-authority/peterborough,Peterborough City Council,Children's & Safeguarding,Access to Resources & Specialist Commissioning,Services,11/01/2017 00:00,30107342,3556.01,Revenue,Foster Care Associates Ltd FCA,Boarding Out Allowances
Peterborough,http://opendatacommunities.org/id/unitary-authority/peterborough,Peterborough City Council,Children's & Safeguarding,Access to Resources & Specialist Commissioning,Services,11/01/2017 00:00,30107343,3484.89,Revenue,Foster Care Associates Ltd FCA,Boarding Out Allowances
Peterborough,http://opendatacommunities.org/id/unitary-authority/peterborough,Peterborough City Council,Children's & Safeguarding,Access to Resources & Specialist Commissioning,Services,11/01/2017 00:00,30107348,3484.89,Revenue,Foster Care Associates Ltd FCA,Boarding Out Allowances
Peterborough,http://opendatacommunities.org/id/unitary-authority/peterborough,Peterborough City Council,Children's & Safeguarding,Access to Resources & Specialist Commissioning,Services,11/01/2017 00:00,30107352,4336.5,Revenue,Foster Care Associates Ltd FCA,Boarding Out Allowances
Peterborough,http://opendatacommunities.org/id/unitary-authority/peterborough,Peterborough City Council,Children's & Safeguarding,Access to Resources & Specialist Commissioning,Services,11/01/2017 00:00,30107354,3052.57,Revenue,Foster Care Associates Ltd FCA,Boarding Out Allowances
Peterborough,http://opendatacommunities.org/id/unitary-authority/peterborough,Peterborough City Council,Children's & Safeguarding,Access to Resources & Specialist Commissioning,Services,11/01/2017 00:00,30107356,4096.34,Revenue,Foster Care Associates Ltd FCA,Boarding Out Allowances
Peterborough,http://opendatacommunities.org/id/unitary-authority/peterborough,Peterborough City Council,Children's & Safeguarding,Access to Resources & Specialist Commissioning,Services,11/01/2017 00:00,30107357,3556.01,Revenue,Foster Care Associates Ltd FCA,Boarding Out Allowances
Peterborough,http://opendatacommunities.org/id/unitary-authority/peterborough,Peterborough City Council,Children's & Safeguarding,Access to Resources & Specialist Commissioning,Services,11/01/2017 00:00,30107358,4419.98,Revenue,Foster Care Associates Ltd FCA,Boarding Out Allowances
Peterborough,http://opendatacommunities.org/id/unitary-authority/peterborough,Peterborough City Council,Children's & Safeguarding,Access to Resources & Specialist Commissioning,Services,11/01/2017 00:00,30107365,3052.57,Revenue,Foster Care Associates Ltd FCA,Boarding Out Allowances
Peterborough,http://opendatacommunities.org/id/unitary-authority/peterborough,Peterborough City Council,Children's & Safeguarding,Access to Resources & Specialist Commissioning,Services,11/01/2017 00:00,30107367,5750.5,Revenue,Foster Care Associates Ltd FCA,Boarding Out Allowances
Peterborough,http://opendatacommunities.org/id/unitary-authority/peterborough,Peterborough City Council,Children's & Safeguarding,Access to Resources & Specialist Commissioning,Services,11/01/2017 00:00,30107369,3555.7,Revenue,Foster Care Associates Ltd FCA,Boarding Out Allowances
Peterborough,http://opendatacommunities.org/id/unitary-authority/peterborough,Peterborough City Council,Children's & Safeguarding,Access to Resources & Specialist Commissioning,Services,11/01/2017 00:00,30107370,3449.03,Revenue,Foster Care Associates Ltd FCA,Boarding Out Allowances
Peterborough,http://opendatacommunities.org/id/unitary-authority/peterborough,Peterborough City Council,Children's & Safeguarding,Access to Resources & Specialist Commissioning,Services,11/01/2017 00:00,30107371,3555.7,Revenue,Foster Care Associates Ltd FCA,Boarding Out Allowances
Peterborough,http://opendatacommunities.org/id/unitary-authority/peterborough,Peterborough City Council,Children's & Safeguarding,Access to Resources & Specialist Commissioning,Services,11/01/2017 00:00,30107372,3556.01,Revenue,Foster Care Associates Ltd FCA,Boarding Out Allowances
Peterborough,http://opendatacommunities.org/id/unitary-authority/peterborough,Peterborough City Council,Children's & Safeguarding,Access to Resources & Specialist Commissioning,Services,11/01/2017 00:00,30107375,4720.99,Revenue,Foster Care Associates Ltd FCA,Boarding Out Allowances
Peterborough,http://opendatacommunities.org/id/unitary-authority/peterborough,Peterborough City Council,Children's & Safeguarding,Access to Resources & Specialist Commissioning,Services,11/01/2017 00:00,30107377,4096.34,Revenue,Foster Care Associates Ltd FCA,Boarding Out Allowances
Peterborough,http://opendatacommunities.org/id/unitary-authority/peterborough,Peterborough City Council,Public Health,Housing and Health - Public Health,Third Party Payments,11/01/2017 00:00,30107490,4209,Revenue,Thistlemoor Healthcare & Management,Third Party Payments - Contract
Peterborough,http://opendatacommunities.org/id/unitary-authority/peterborough,Peterborough City Council,Adult Services & Communities - Adults,Day Opportunities / In House,Agency Staff,11/01/2017 00:00,30107758,5476,Revenue,Caritas Recruitment,External Temporary Staff
Peterborough,http://opendatacommunities.org/id/unitary-authority/peterborough,Peterborough City Council,Adult Services & Communities - Adults,Day Opportunities / In House,Agency Staff,11/01/2017 00:00,30107759,5600,Revenue,Caritas Recruitment,External Temporary Staff
Peterborough,http://opendatacommunities.org/id/unitary-authority/peterborough,Peterborough City Council,Adult Services & Communities - Adults,Day Opportunities / In House,Agency Staff,11/01/2017 00:00,30107760,5390,Revenue,Caritas Recruitment,External Temporary Staff
Peterborough,http://opendatacommunities.org/id/unitary-authority/peterborough,Peterborough City Council,Adult Services & Communities - Adults,Day Opportunities / In House,Agency Staff,11/01/2017 00:00,30107762,2738,Revenue,Caritas Recruitment,External Temporary Staff
Peterborough,http://opendatacommunities.org/id/unitary-authority/peterborough,Peterborough City Council,Adult Services & Communities - Adults,Day Opportunities / In House,Agency Staff,11/01/2017 00:00,30107763,5143,Revenue,Caritas Recruitment,External Temporary Staff
Peterborough,http://opendatacommunities.org/id/unitary-authority/peterborough,Peterborough City Council,City Servs & Communications,Regulatory Services,Services,11/01/2017 00:00,30107785,650,Revenue,Mr Josef Cannon,Legal Costs
Peterborough,http://opendatacommunities.org/id/unitary-authority/peterborough,Peterborough City Council,Public Health,Housing and Health - Public Health,"Tools, Equipment, Furniture & Materials",11/01/2017 00:00,30107817,983.21,Revenue,Dusk2Dawn UK Ltd T/A Direct Sales online,Equipment
Peterborough,http://opendatacommunities.org/id/unitary-authority/peterborough,Peterborough City Council,Business Management and Commercial Operations,Business Management and Commercial Operations,Services,11/01/2017 00:00,30107818,1631.4,Revenue,CAS Care Consultancy Ltd,Consultants Fees
Peterborough,http://opendatacommunities.org/id/unitary-authority/peterborough,Peterborough City Council,HR,HR WFD & Training,Services,11/01/2017 00:00,30107861,750,Revenue,Ferret Information Systems Ltd,Course Instructors Fees
Peterborough,http://opendatacommunities.org/id/unitary-authority/peterborough,Peterborough City Council,Education,Special Educational Needs / Inclusion,Agency Staff,11/01/2017 00:00,30107962,950,Revenue,Redacted Personal Data,External Temporary Staff
Peterborough,http://opendatacommunities.org/id/unitary-authority/peterborough,Peterborough City Council,Education,Special Educational Needs / Inclusion,Agency Staff,11/01/2017 00:00,30107963,950,Revenue,Redacted Personal Data,External Temporary Staff
Peterborough,http://opendatacommunities.org/id/unitary-authority/peterborough,Peterborough City Council,Public Health,Housing and Health - Public Health,Services,11/01/2017 00:00,30108037,1263.5,Revenue,RAW Creative Design Ltd,Photography
Peterborough,http://opendatacommunities.org/id/unitary-authority/peterborough,Peterborough City Council,Children's & Safeguarding,Access to Resources & Specialist Commissioning,Services,11/01/2017 00:00,30108039,3554.46,Revenue,Fostering Solutions,Boarding Out Allowances
Peterborough,http://opendatacommunities.org/id/unitary-authority/peterborough,Peterborough City Council,Children's & Safeguarding,Access to Resources & Specialist Commissioning,Services,11/01/2017 00:00,30108042,3376.74,Revenue,Fostering Solutions,Boarding Out Allowances
Peterborough,http://opendatacommunities.org/id/unitary-authority/peterborough,Peterborough City Council,Children's & Safeguarding,Access to Resources & Specialist Commissioning,Services,11/01/2017 00:00,30108049,3554.46,Revenue,Fostering Solutions,Boarding Out Allowances
Peterborough,http://opendatacommunities.org/id/unitary-authority/peterborough,Peterborough City Council,Children's & Safeguarding,Access to Resources & Specialist Commissioning,Services,11/01/2017 00:00,30108051,4011.97,Revenue,Fostering Solutions,Boarding Out Allowances
Peterborough,http://opendatacommunities.org/id/unitary-authority/peterborough,Peterborough City Council,Children's & Safeguarding,Access to Resources & Specialist Commissioning,Services,11/01/2017 00:00,30108052,3207.9,Revenue,Fostering Solutions,Boarding Out Allowances
Peterborough,http://opendatacommunities.org/id/unitary-authority/peterborough,Peterborough City Council,Children's & Safeguarding,Access to Resources & Specialist Commissioning,Services,11/01/2017 00:00,30108053,3554.46,Revenue,Fostering Solutions,Boarding Out Allowances
Peterborough,http://opendatacommunities.org/id/unitary-authority/peterborough,Peterborough City Council,Children's & Safeguarding,Access to Resources & Specialist Commissioning,Services,11/01/2017 00:00,30108055,2886.41,Revenue,Fostering Solutions,Boarding Out Allowances
Peterborough,http://opendatacommunities.org/id/unitary-authority/peterborough,Peterborough City Council,Children's & Safeguarding,Access to Resources & Specialist Commissioning,Services,11/01/2017 00:00,30108057,4011.97,Revenue,Fostering Solutions,Boarding Out Allowances
Peterborough,http://opendatacommunities.org/id/unitary-authority/peterborough,Peterborough City Council,Adult Services & Communities - Adults,Day Opportunities / In House,Agency Staff,11/01/2017 00:00,30108058,1221,Revenue,Medicare First,External Temporary Staff
Peterborough,http://opendatacommunities.org/id/unitary-authority/peterborough,Peterborough City Council,Adult Services & Communities - Adults,Day Opportunities / In House,Agency Staff,11/01/2017 00:00,30108059,710.4,Revenue,Medicare First,External Temporary Staff
Peterborough,http://opendatacommunities.org/id/unitary-authority/peterborough,Peterborough City Council,Business Management and Commercial Operations,Commissioning,Services,11/01/2017 00:00,30108061,1280,Revenue,Adoptionplus Ltd,Purchased Social Care Services
Peterborough,http://opendatacommunities.org/id/unitary-authority/peterborough,Peterborough City Council,"Cemeteries, Cremation & Registrars",Bereavement Service,Grounds Maintenance,11/01/2017 00:00,30108179,629,Revenue,Rumwood Nurseries,Trees/Landscaping Materials
Peterborough,http://opendatacommunities.org/id/unitary-authority/peterborough,Peterborough City Council,Legal & Democratic,Legal Services,Agency Staff,11/01/2017 00:00,30108192,1591,Revenue,Venn Group Ltd,External Temporary Staff
Peterborough,http://opendatacommunities.org/id/unitary-authority/peterborough,Peterborough City Council,Corporate Property,Office Accomodation,Repair & Maintenance of Buildings,11/01/2017 00:00,30108194,4435.29,Revenue,Baker Perkins Ltd,Service Charges - Premises
Peterborough,http://opendatacommunities.org/id/unitary-authority/peterborough,Peterborough City Council,Education,School Improvement,"Tools, Equipment, Furniture & Materials",11/01/2017 00:00,30108267,650,Revenue,Edge Hill University,Educational Equipment
Peterborough,http://opendatacommunities.org/id/unitary-authority/peterborough,Peterborough City Council,Education,School Improvement,"Tools, Equipment, Furniture & Materials",11/01/2017 00:00,30108269,650,Revenue,Edge Hill University,Educational Equipment
Peterborough,http://opendatacommunities.org/id/unitary-authority/peterborough,Peterborough City Council,Legal & Democratic,Democratic Services,Services,11/01/2017 00:00,30108283,2418,Revenue,Spurcroft Civic,Civic Gifts
Peterborough,http://opendatacommunities.org/id/unitary-authority/peterborough,Peterborough City Council,Corporate,Corporate,Non Revenue,11/01/2017 00:00,30108293,2407.14,Capital,Dynniq UK Ltd,Building And Site Works
Peterborough,http://opendatacommunities.org/id/unitary-authority/peterborough,Peterborough City Council,Adult Services & Communities - Adults,OP/PD/SI,Third Party Payments,11/01/2017 00:00,30108298,2149,Revenue,Cambridgeshire Deaf Association,Grant-Third Party
Peterborough,http://opendatacommunities.org/id/unitary-authority/peterborough,Peterborough City Council,Adult Services & Communities - Adults,Finance,Services,11/01/2017 00:00,30108299,9000,Revenue,John Harris Consulting Limited,Consultants Fees
Peterborough,http://opendatacommunities.org/id/unitary-authority/peterborough,Peterborough City Council,Adult Services & Communities - Adults,Independent Sector Placements,Services,11/01/2017 00:00,30108303,585,Revenue,Goldhay Arts,Day Care
Peterborough,http://opendatacommunities.org/id/unitary-authority/peterborough,Peterborough City Council,Adult Services & Communities - Adults,Independent Sector Placements,Services,11/01/2017 00:00,30108307,660,Revenue,Goldhay Arts,Day Care
Peterborough,http://opendatacommunities.org/id/unitary-authority/peterborough,Peterborough City Council,Adult Services & Communities - Adults,Independent Sector Placements,Services,11/01/2017 00:00,30108315,585,Revenue,Goldhay Arts,Day Care
Peterborough,http://opendatacommunities.org/id/unitary-authority/peterborough,Peterborough City Council,Adult Services & Communities - Adults,Independent Sector Placements,Services,11/01/2017 00:00,30108316,547.5,Revenue,Goldhay Arts,Day Care
Peterborough,http://opendatacommunities.org/id/unitary-authority/peterborough,Peterborough City Council,Legal & Democratic,Democratic Services,Services,11/01/2017 00:00,30108337,2000,Revenue,Service-AV.co.uk,Computer Hardware
Peterborough,http://opendatacommunities.org/id/unitary-authority/peterborough,Peterborough City Council,Adult Services & Communities - Adults,Therapy/Reablement/Community Equipment,Agency Staff,11/01/2017 00:00,30108339,1258,Revenue,SWP Consulting,External Temporary Staff
Peterborough,http://opendatacommunities.org/id/unitary-authority/peterborough,Peterborough City Council,Peterborough Highway Services,Network and Traffic Management,Services,11/01/2017 00:00,30108342,943.16,Revenue,Johnston Press Midlands Division,Advertising
Peterborough,http://opendatacommunities.org/id/unitary-authority/peterborough,Peterborough City Council,Development and Construction,Development Management,Services,11/01/2017 00:00,30108343,622.5,Revenue,Johnston Press Midlands Division,Advertising
Peterborough,http://opendatacommunities.org/id/unitary-authority/peterborough,Peterborough City Council,Children's & Safeguarding,Access to Resources & Specialist Commissioning,Services,11/01/2017 00:00,30108344,5156.54,Revenue,Families First Ltd t/a Pathway Care,Boarding Out Allowances
Peterborough,http://opendatacommunities.org/id/unitary-authority/peterborough,Peterborough City Council,Adult Services & Communities - Adults,Mental Capacity Act & DoLs,Agency Staff,11/01/2017 00:00,30108360,2660,Revenue,Sanctuary Personnel Ltd,External Temporary Staff
Peterborough,http://opendatacommunities.org/id/unitary-authority/peterborough,Peterborough City Council,Adult Services & Communities - Adults,Independent Sector Placements,Services,11/01/2017 00:00,30108381,543.8,Revenue,Cross Keys Homes,Home Care
Peterborough,http://opendatacommunities.org/id/unitary-authority/peterborough,Peterborough City Council,Adult Services & Communities - Adults,Independent Sector Placements,Services,11/01/2017 00:00,30108394,1728.4,Revenue,Kemps Place Ltd,Residential Care
Peterborough,http://opendatacommunities.org/id/unitary-authority/peterborough,Peterborough City Council,Adult Services & Communities - Adults,Independent Sector Placements,Services,11/01/2017 00:00,30108395,2680,Revenue,Kemps Place Ltd,Residential Care
Peterborough,http://opendatacommunities.org/id/unitary-authority/peterborough,Peterborough City Council,Adult Services & Communities - Adults,Independent Sector Placements,Services,11/01/2017 00:00,30108396,2480,Revenue,Kemps Place Ltd,Residential Care
Peterborough,http://opendatacommunities.org/id/unitary-authority/peterborough,Peterborough City Council,Legal & Democratic,Legal Services,Services,11/01/2017 00:00,30108476,550,Revenue,"Sleight, Mr Nigel",Legal Costs
Peterborough,http://opendatacommunities.org/id/unitary-authority/peterborough,Peterborough City Council,Corporate,Corporate,Non Revenue,11/01/2017 00:00,30108520,6330,Capital,Enterprise Managed Services Limited,Building And Site Works
Peterborough,http://opendatacommunities.org/id/unitary-authority/peterborough,Peterborough City Council,Corporate,Corporate,Non Revenue,11/01/2017 00:00,30108521,639.56,Capital,Enterprise Managed Services Limited,Infrastructure
Peterborough,http://opendatacommunities.org/id/unitary-authority/peterborough,Peterborough City Council,Corporate,Corporate,Non Revenue,11/01/2017 00:00,30108522,2197.28,Capital,Enterprise Managed Services Limited,Infrastructure
Peterborough,http://opendatacommunities.org/id/unitary-authority/peterborough,Peterborough City Council,Corporate,Corporate,Non Revenue,11/01/2017 00:00,30108523,1420,Capital,Enterprise Managed Services Limited,Infrastructure
Peterborough,http://opendatacommunities.org/id/unitary-authority/peterborough,Peterborough City Council,Corporate,Corporate,Non Revenue,11/01/2017 00:00,30108525,1180.28,Capital,Enterprise Managed Services Limited,Infrastructure
Peterborough,http://opendatacommunities.org/id/unitary-authority/peterborough,Peterborough City Council,City Servs & Communications,"Markets, Tourism & Events",Services,11/01/2017 00:00,30108526,2317.21,Revenue,Amey T/A Enterprise Managed Services Ltd,Conferences/Events
Peterborough,http://opendatacommunities.org/id/unitary-authority/peterborough,Peterborough City Council,Corporate,Corporate,Non Revenue,11/01/2017 00:00,30108528,785,Capital,Enterprise Managed Services Limited,Building And Site Works
Peterborough,http://opendatacommunities.org/id/unitary-authority/peterborough,Peterborough City Council,City Servs & Communications,"Markets, Tourism & Events",Services,11/01/2017 00:00,30108529,2048,Revenue,Stagecoach in Peterborough,Contractors
Peterborough,http://opendatacommunities.org/id/unitary-authority/peterborough,Peterborough City Council,Performance & Information,Performance & Information,Agency Staff,11/01/2017 00:00,30108539,531.44,Revenue,Reed Specialist Recruitment,External Temporary Staff
Peterborough,http://opendatacommunities.org/id/unitary-authority/peterborough,Peterborough City Council,Peterborough Highway Services,Highway & Drainage Control,Agency Staff,11/01/2017 00:00,30108541,1332,Revenue,Matchtech,External Temporary Staff
Peterborough,http://opendatacommunities.org/id/unitary-authority/peterborough,Peterborough City Council,Legal & Democratic,Legal Services,Agency Staff,11/01/2017 00:00,30108542,1125,Revenue,Venn Group Ltd,External Temporary Staff
Peterborough,http://opendatacommunities.org/id/unitary-authority/peterborough,Peterborough City Council,Peterborough Highway Services,Highway & Drainage Control,Agency Staff,11/01/2017 00:00,30108543,1200,Revenue,Matchtech,External Temporary Staff
Peterborough,http://opendatacommunities.org/id/unitary-authority/peterborough,Peterborough City Council,Legal & Democratic,Legal Services,Agency Staff,11/01/2017 00:00,30108544,1125,Revenue,Venn Group Ltd,External Temporary Staff
Peterborough,http://opendatacommunities.org/id/unitary-authority/peterborough,Peterborough City Council,Adult Services & Communities - Adults,Independent Sector Placements,Services,11/01/2017 00:00,30108554,1806.2,Revenue,THE LODGE TRUST,Residential Care
Peterborough,http://opendatacommunities.org/id/unitary-authority/peterborough,Peterborough City Council,Adult Services & Communities - Adults,Therapy/Reablement/Community Equipment,"Tools, Equipment, Furniture & Materials",11/01/2017 00:00,30108570,637.5,Revenue,H Walsh & Sons Ltd,Occupational Therapy Equipment
Peterborough,http://opendatacommunities.org/id/unitary-authority/peterborough,Peterborough City Council,Adult Services & Communities - Adults,Independent Sector Placements,Services,11/01/2017 00:00,30108591,2205.4,Revenue,BUPA Care Homes,Residential Care
Peterborough,http://opendatacommunities.org/id/unitary-authority/peterborough,Peterborough City Council,Adult Services & Communities - Adults,Independent Sector Placements,Services,11/01/2017 00:00,30108592,1593.2,Revenue,BUPA Care Homes,Residential Care
Peterborough,http://opendatacommunities.org/id/unitary-authority/peterborough,Peterborough City Council,Adult Services & Communities - Adults,Independent Sector Placements,Services,11/01/2017 00:00,30108594,3188,Revenue,BUPA Care Homes,Residential Care
Peterborough,http://opendatacommunities.org/id/unitary-authority/peterborough,Peterborough City Council,Adult Services & Communities - Adults,Independent Sector Placements,Services,11/01/2017 00:00,30108596,2350.24,Revenue,BUPA Care Homes,Residential Care
Peterborough,http://opendatacommunities.org/id/unitary-authority/peterborough,Peterborough City Council,Performance & Information,Performance & Information,Agency Staff,11/01/2017 00:00,30108601,2140,Revenue,Number 10 Interim Ltd,External Temporary Staff
Peterborough,http://opendatacommunities.org/id/unitary-authority/peterborough,Peterborough City Council,Performance & Information,Performance & Information,Agency Staff,11/01/2017 00:00,30108602,2675,Revenue,Number 10 Interim Ltd,External Temporary Staff
Peterborough,http://opendatacommunities.org/id/unitary-authority/peterborough,Peterborough City Council,Peterborough Highway Services,Transport & Infrastructure Commissioning,Interview & Training Expenses,11/01/2017 00:00,30108604,5565,Revenue,Outspoken Training,Training
Peterborough,http://opendatacommunities.org/id/unitary-authority/peterborough,Peterborough City Council,Adults and Communities - Communities,Service Director - Adults & Communities,Third Party Payments,11/01/2017 00:00,30108611,69554,Revenue,Peterborough Womens Aid,Third Party Payments - Contract
Peterborough,http://opendatacommunities.org/id/unitary-authority/peterborough,Peterborough City Council,Adults and Communities - Communities,Service Director - Adults & Communities,Third Party Payments,11/01/2017 00:00,30108618,7000,Revenue,Peterborough Womens Aid,Third Party Payments - Contract
Peterborough,http://opendatacommunities.org/id/unitary-authority/peterborough,Peterborough City Council,Children's & Safeguarding,Access to Resources & Specialist Commissioning,Services,11/01/2017 00:00,30108622,1174.95,Revenue,BDP Social Care Ltd,Hired Services
Peterborough,http://opendatacommunities.org/id/unitary-authority/peterborough,Peterborough City Council,Business Management and Commercial Operations,Commissioning,Services,11/01/2017 00:00,30108624,2235,Revenue,BDP Social Care Ltd,Hired Services
Peterborough,http://opendatacommunities.org/id/unitary-authority/peterborough,Peterborough City Council,"Director, OP & JV",Growth HoS,Third Party Payments,11/01/2017 00:00,30108627,33500,Revenue,Opportunity Peterborough T/A OP Ltd,Third Party Payments - Contract
Peterborough,http://opendatacommunities.org/id/unitary-authority/peterborough,Peterborough City Council,"Director, OP & JV",Growth HoS,Third Party Payments,11/01/2017 00:00,30108628,50000,Revenue,Opportunity Peterborough T/A OP Ltd,Contributions
Peterborough,http://opendatacommunities.org/id/unitary-authority/peterborough,Peterborough City Council,"Director, OP & JV",Growth HoS,Services,11/01/2017 00:00,30108630,20000,Revenue,Opportunity Peterborough T/A OP Ltd,Projects
Peterborough,http://opendatacommunities.org/id/unitary-authority/peterborough,Peterborough City Council,Adult Services & Communities - Adults,Independent Sector Placements,Services,11/01/2017 00:00,30108672,1808.16,Revenue,FIELD HOUSE (EYE) LTD,Residential Care
Peterborough,http://opendatacommunities.org/id/unitary-authority/peterborough,Peterborough City Council,Adult Services & Communities - Adults,Independent Sector Placements,Services,11/01/2017 00:00,30108673,1791.68,Revenue,FIELD HOUSE (EYE) LTD,Residential Care
Peterborough,http://opendatacommunities.org/id/unitary-authority/peterborough,Peterborough City Council,Adult Services & Communities - Adults,Independent Sector Placements,Services,11/01/2017 00:00,30108677,1677.2,Revenue,FIELD HOUSE (EYE) LTD,Residential Care
Peterborough,http://opendatacommunities.org/id/unitary-authority/peterborough,Peterborough City Council,Adult Services & Communities - Adults,Independent Sector Placements,Services,11/01/2017 00:00,30108681,1372.24,Revenue,FIELD HOUSE (EYE) LTD,Residential Care
Peterborough,http://opendatacommunities.org/id/unitary-authority/peterborough,Peterborough City Council,Adult Services & Communities - Adults,Independent Sector Placements,Services,11/01/2017 00:00,30108682,1952.35,Revenue,FIELD HOUSE (EYE) LTD,Residential Care
Peterborough,http://opendatacommunities.org/id/unitary-authority/peterborough,Peterborough City Council,Adult Services & Communities - Adults,Independent Sector Placements,Services,11/01/2017 00:00,30108684,1797.2,Revenue,FIELD HOUSE (EYE) LTD,Residential Care
Peterborough,http://opendatacommunities.org/id/unitary-authority/peterborough,Peterborough City Council,Children's & Safeguarding,Access to Resources & Specialist Commissioning,Services,11/01/2017 00:00,30108758,3619,Revenue,Lincolnshire County Council,Education Expenses
Peterborough,http://opendatacommunities.org/id/unitary-authority/peterborough,Peterborough City Council,Corporate,Corporate,Non Revenue,11/01/2017 00:00,30108780,1260,Capital,M J Greaves,Grant Payment
Peterborough,http://opendatacommunities.org/id/unitary-authority/peterborough,Peterborough City Council,Commercial Group,Strategic Client Services,Agency Staff,11/01/2017 00:00,30108831,1376.08,Revenue,Hays Specialist Recruitment Ltd,External Temporary Staff
Peterborough,http://opendatacommunities.org/id/unitary-authority/peterborough,Peterborough City Council,Children's & Safeguarding,Access to Resources & Specialist Commissioning,Services,11/01/2017 00:00,30108842,2893,Revenue,Lincolnshire County Council,Education Expenses
Peterborough,http://opendatacommunities.org/id/unitary-authority/peterborough,Peterborough City Council,Peterborough Highway Services,Network and Traffic Management,Services,11/01/2017 00:00,30108929,9000,Revenue,Dynniq UK Ltd,Computer Software
Peterborough,http://opendatacommunities.org/id/unitary-authority/peterborough,Peterborough City Council,Children's & Safeguarding,Access to Resources & Specialist Commissioning,Services,11/01/2017 00:00,30108932,13263.66,Revenue,Direct Care Limited,Boarding Out Allowances
Peterborough,http://opendatacommunities.org/id/unitary-authority/peterborough,Peterborough City Council,Chief Executive Departmental Support,Chief Executive Departmental Support,Rents,11/01/2017 00:00,30108934,547,Revenue,Allia Ltd,Hire Of Premises
Peterborough,http://opendatacommunities.org/id/unitary-authority/peterborough,Peterborough City Council,Adult Services & Communities - Adults,Independent Sector Placements,Services,11/01/2017 00:00,30109022,1078.76,Revenue,THE TUDORS,Residential Care
Peterborough,http://opendatacommunities.org/id/unitary-authority/peterborough,Peterborough City Council,Adult Services & Communities - Adults,Independent Sector Placements,Services,11/01/2017 00:00,30109023,1024.68,Revenue,THE TUDORS,Residential Care
Peterborough,http://opendatacommunities.org/id/unitary-authority/peterborough,Peterborough City Council,Adult Services & Communities - Adults,Independent Sector Placements,Services,11/01/2017 00:00,30109024,663.36,Revenue,THE TUDORS,Residential Care
Peterborough,http://opendatacommunities.org/id/unitary-authority/peterborough,Peterborough City Council,Adult Services & Communities - Adults,Independent Sector Placements,Services,11/01/2017 00:00,30109028,1254.68,Revenue,THE TUDORS,Residential Care
Peterborough,http://opendatacommunities.org/id/unitary-authority/peterborough,Peterborough City Council,Adult Services & Communities - Adults,Independent Sector Placements,Services,11/01/2017 00:00,30109029,2021.88,Revenue,THE TUDORS,Residential Care
Peterborough,http://opendatacommunities.org/id/unitary-authority/peterborough,Peterborough City Council,Adult Services & Communities - Adults,Independent Sector Placements,Services,11/01/2017 00:00,30109030,1290.32,Revenue,THE TUDORS,Residential Care
Peterborough,http://opendatacommunities.org/id/unitary-authority/peterborough,Peterborough City Council,Adult Services & Communities - Adults,Independent Sector Placements,Services,11/01/2017 00:00,30109031,856.56,Revenue,THE TUDORS,Residential Care
Peterborough,http://opendatacommunities.org/id/unitary-authority/peterborough,Peterborough City Council,Legal & Democratic,Elections,Services,11/01/2017 00:00,30109047,2045.04,Revenue,CFH Docmail,Postage
Peterborough,http://opendatacommunities.org/id/unitary-authority/peterborough,Peterborough City Council,City Servs & Communications,"Markets, Tourism & Events",Services,11/01/2017 00:00,30109074,676.17,Revenue,Peterborough Male Voice Choir,Tickets
Peterborough,http://opendatacommunities.org/id/unitary-authority/peterborough,Peterborough City Council,Education,Financing - Resources,Services,11/01/2017 00:00,30109095,2815.75,Revenue,Sense,Education Expenses
Peterborough,http://opendatacommunities.org/id/unitary-authority/peterborough,Peterborough City Council,Adult Services & Communities - Adults,Therapy/Reablement/Community Equipment,"Tools, Equipment, Furniture & Materials",11/01/2017 00:00,30109099,2144,Revenue,P F S Builders & Contractors,Occupational Therapy Equipment
Peterborough,http://opendatacommunities.org/id/unitary-authority/peterborough,Peterborough City Council,Adult Services & Communities - Adults,Therapy/Reablement/Community Equipment,"Tools, Equipment, Furniture & Materials",11/01/2017 00:00,30109101,2976,Revenue,P F S Builders & Contractors,Occupational Therapy Equipment
Peterborough,http://opendatacommunities.org/id/unitary-authority/peterborough,Peterborough City Council,Westcombe Engineering,Westcombe Engineering,"Tools, Equipment, Furniture & Materials",11/01/2017 00:00,30109154,3204.5,Revenue,EXMOL MANUFACTURING,Items For Resale
Peterborough,http://opendatacommunities.org/id/unitary-authority/peterborough,Peterborough City Council,Westcombe Engineering,Westcombe Engineering,"Tools, Equipment, Furniture & Materials",11/01/2017 00:00,30109158,4413.22,Revenue,EXMOL MANUFACTURING,Items For Resale
Peterborough,http://opendatacommunities.org/id/unitary-authority/peterborough,Peterborough City Council,Westcombe Engineering,Westcombe Engineering,"Tools, Equipment, Furniture & Materials",11/01/2017 00:00,30109163,1384,Revenue,EXMOL MANUFACTURING,Items For Resale
Peterborough,http://opendatacommunities.org/id/unitary-authority/peterborough,Peterborough City Council,Westcombe Engineering,Westcombe Engineering,"Tools, Equipment, Furniture & Materials",11/01/2017 00:00,30109168,1936.45,Revenue,EXMOL MANUFACTURING,Items For Resale
Peterborough,http://opendatacommunities.org/id/unitary-authority/peterborough,Peterborough City Council,Financial Services,Finance,Agency Staff,11/01/2017 00:00,30109171,697.52,Revenue,Reed Specialist Recruitment,External Temporary Staff
Peterborough,http://opendatacommunities.org/id/unitary-authority/peterborough,Peterborough City Council,Financial Services,Finance,Agency Staff,11/01/2017 00:00,30109180,1396.75,Revenue,Reed Specialist Recruitment,External Temporary Staff
Peterborough,http://opendatacommunities.org/id/unitary-authority/peterborough,Peterborough City Council,Adult Services & Communities - Adults,Finance,Services,11/01/2017 00:00,30109188,9360,Revenue,Athene Communications,Consultants Fees
Peterborough,http://opendatacommunities.org/id/unitary-authority/peterborough,Peterborough City Council,Performance & Information,Performance & Information,Agency Staff,11/01/2017 00:00,30109190,516.47,Revenue,Reed Specialist Recruitment,External Temporary Staff
Peterborough,http://opendatacommunities.org/id/unitary-authority/peterborough,Peterborough City Council,Performance & Information,Performance & Information,Agency Staff,11/01/2017 00:00,30109191,561.38,Revenue,Reed Specialist Recruitment,External Temporary Staff
Peterborough,http://opendatacommunities.org/id/unitary-authority/peterborough,Peterborough City Council,Performance & Information,Performance & Information,Agency Staff,11/01/2017 00:00,30109192,561.38,Revenue,Reed Specialist Recruitment,External Temporary Staff
Peterborough,http://opendatacommunities.org/id/unitary-authority/peterborough,Peterborough City Council,Performance & Information,Performance & Information,Agency Staff,11/01/2017 00:00,30109193,531.44,Revenue,Reed Specialist Recruitment,External Temporary Staff
Peterborough,http://opendatacommunities.org/id/unitary-authority/peterborough,Peterborough City Council,Legal & Democratic,Legal Services,Agency Staff,11/01/2017 00:00,30109214,645.75,Revenue,Venn Group Ltd,External Temporary Staff
Peterborough,http://opendatacommunities.org/id/unitary-authority/peterborough,Peterborough City Council,ICT,ICT,Services,11/01/2017 00:00,30109273,20376,Revenue,XCD HR,Computer Software
Peterborough,http://opendatacommunities.org/id/unitary-authority/peterborough,Peterborough City Council,City Servs & Communications,"Markets, Tourism & Events",Services,11/01/2017 00:00,30109330,7904.84,Revenue,National Express Ltd,Contractors
Peterborough,http://opendatacommunities.org/id/unitary-authority/peterborough,Peterborough City Council,Business Management and Commercial Operations,Clare Lodge,Cleaning & Domestic Supplies,11/01/2017 00:00,30109377,877.42,Revenue,Bunzl UK Ltd t/a Industrial Supplies,Cleaning Materials
Peterborough,http://opendatacommunities.org/id/unitary-authority/peterborough,Peterborough City Council,Financial Services,Insurance,Services,11/01/2017 00:00,30109457,1142,Revenue,Browne Jacobson,Legal Costs
Peterborough,http://opendatacommunities.org/id/unitary-authority/peterborough,Peterborough City Council,Education,School Improvement,Services,11/01/2017 00:00,30109504,20227.3,Revenue,The EAL Academy,Hired Services
Peterborough,http://opendatacommunities.org/id/unitary-authority/peterborough,Peterborough City Council,Children's & Safeguarding,CSC Quality Assurance,Services,11/01/2017 00:00,30109509,2207.95,Revenue,J C Associates,Consultants Fees
Peterborough,http://opendatacommunities.org/id/unitary-authority/peterborough,Peterborough City Council,Adult Services & Communities - Adults,Independent Sector Placements,Services,11/01/2017 00:00,30109604,1189.4,Revenue,Athena,Residential Care
Peterborough,http://opendatacommunities.org/id/unitary-authority/peterborough,Peterborough City Council,Adult Services & Communities - Adults,Independent Sector Placements,Services,11/01/2017 00:00,30109606,2354,Revenue,"Care in the Community, (Hogganfield Loch)",Residential Care
Peterborough,http://opendatacommunities.org/id/unitary-authority/peterborough,Peterborough City Council,Adult Services & Communities - Adults,Mental Capacity Act & DoLs,Agency Staff,11/01/2017 00:00,30109670,1878.5,Revenue,Caritas Recruitment,External Temporary Staff
Peterborough,http://opendatacommunities.org/id/unitary-authority/peterborough,Peterborough City Council,Children's & Safeguarding,Child Health,Energy Costs,11/01/2017 00:00,30109706,766.45,Revenue,British Gas Business,Electricity
Peterborough,http://opendatacommunities.org/id/unitary-authority/peterborough,Peterborough City Council,Business Management and Commercial Operations,Commissioning,Water Services,11/01/2017 00:00,30109807,602.25,Revenue,Anglian Water,Water
Peterborough,http://opendatacommunities.org/id/unitary-authority/peterborough,Peterborough City Council,Corporate Property,Office Accomodation,Water Services,11/01/2017 00:00,30109807,3235.31,Revenue,Anglian Water,Water
Peterborough,http://opendatacommunities.org/id/unitary-authority/peterborough,Peterborough City Council,City Servs & Communications,"Markets, Tourism & Events",Water Services,11/01/2017 00:00,30109807,548.01,Revenue,Anglian Water,Water
Peterborough,http://opendatacommunities.org/id/unitary-authority/peterborough,Peterborough City Council,City Servs & Communications,Parking Services,Water Services,11/01/2017 00:00,30109807,2192.04,Revenue,Anglian Water,Water
Peterborough,http://opendatacommunities.org/id/unitary-authority/peterborough,Peterborough City Council,Education,PFI,Water Services,11/01/2017 00:00,30109807,942.54,Revenue,Anglian Water,Water
Peterborough,http://opendatacommunities.org/id/unitary-authority/peterborough,Peterborough City Council,Business Management and Commercial Operations,Clare Lodge,Agency Staff,11/01/2017 00:00,30109860,1802,Revenue,Textbook Teachers Ltd,Supply Teachers
Peterborough,http://opendatacommunities.org/id/unitary-authority/peterborough,Peterborough City Council,Corporate Property,Office Accomodation,Water Services,11/01/2017 00:00,30109959,3436.66,Revenue,Anglian Water,Water
Peterborough,http://opendatacommunities.org/id/unitary-authority/peterborough,Peterborough City Council,Vivacity/Cultural Services,Cultural Services,Water Services,11/01/2017 00:00,30109959,919.58,Revenue,Anglian Water,Water
Peterborough,http://opendatacommunities.org/id/unitary-authority/peterborough,Peterborough City Council,Amey Peterborough & Waste Management,Waste & Operational Svs Mgmt,Water Services,11/01/2017 00:00,30109959,4671.35,Revenue,Anglian Water,Water
Peterborough,http://opendatacommunities.org/id/unitary-authority/peterborough,Peterborough City Council,City Servs & Communications,"Markets, Tourism & Events",Water Services,11/01/2017 00:00,30109959,1794.84,Revenue,Anglian Water,Water
Peterborough,http://opendatacommunities.org/id/unitary-authority/peterborough,Peterborough City Council,Amey Peterborough & Waste Management,Waste & Operational Svs Mgmt,Water Services,11/01/2017 00:00,30109959,1173.82,Revenue,Anglian Water,Water
Peterborough,http://opendatacommunities.org/id/unitary-authority/peterborough,Peterborough City Council,Adults and Communities - Communities,Housing and Health,Services,11/01/2017 00:00,30109969,595.56,Revenue,DA Rosalia Hotel,Homelessness Bed & Breakfast Costs
Peterborough,http://opendatacommunities.org/id/unitary-authority/peterborough,Peterborough City Council,Adults and Communities - Communities,Housing and Health,Services,11/01/2017 00:00,30109973,714.56,Revenue,DA Rosalia Hotel,Homelessness Bed & Breakfast Costs
Peterborough,http://opendatacommunities.org/id/unitary-authority/peterborough,Peterborough City Council,Adults and Communities - Communities,Housing and Health,Services,11/01/2017 00:00,30109981,595.56,Revenue,DA Rosalia Hotel,Homelessness Bed & Breakfast Costs
Peterborough,http://opendatacommunities.org/id/unitary-authority/peterborough,Peterborough City Council,Adult Services & Communities - Adults,Independent Sector Placements,Services,11/01/2017 00:00,30109987,5123.57,Revenue,Barchester Healthcare (Werrington Lodge),Residential Care
Peterborough,http://opendatacommunities.org/id/unitary-authority/peterborough,Peterborough City Council,Adults and Communities - Communities,Housing and Health,Services,11/01/2017 00:00,30109996,572.92,Revenue,DA Rosalia Hotel,Homelessness Bed & Breakfast Costs
Peterborough,http://opendatacommunities.org/id/unitary-authority/peterborough,Peterborough City Council,Adults and Communities - Communities,Housing and Health,Services,11/01/2017 00:00,30110002,655.06,Revenue,DA Rosalia Hotel,Homelessness Bed & Breakfast Costs
Peterborough,http://opendatacommunities.org/id/unitary-authority/peterborough,Peterborough City Council,Adults and Communities - Communities,Housing and Health,Services,11/01/2017 00:00,30110012,655.06,Revenue,DA Rosalia Hotel,Homelessness Bed & Breakfast Costs
Peterborough,http://opendatacommunities.org/id/unitary-authority/peterborough,Peterborough City Council,Corporate Property,Office Accomodation,Cleaning & Domestic Supplies,11/01/2017 00:00,30110077,1164.55,Revenue,PHS Group Plc,Hygiene Supplies
Peterborough,http://opendatacommunities.org/id/unitary-authority/peterborough,Peterborough City Council,Adults and Communities - Communities,Housing and Health,Services,11/01/2017 00:00,30110078,655.06,Revenue,DA Rosalia Hotel,Homelessness Bed & Breakfast Costs
Peterborough,http://opendatacommunities.org/id/unitary-authority/peterborough,Peterborough City Council,City Servs & Communications,"Markets, Tourism & Events","Tools, Equipment, Furniture & Materials",11/01/2017 00:00,30110091,661.18,Revenue,Redacted Personal Data,Items For Resale
Peterborough,http://opendatacommunities.org/id/unitary-authority/peterborough,Peterborough City Council,Vivacity/Cultural Services,Cultural Services,Energy Costs,11/01/2017 00:00,30110103,3214.56,Revenue,Total Gas & Power Ltd,Gas
Peterborough,http://opendatacommunities.org/id/unitary-authority/peterborough,Peterborough City Council,Education,PFI,Energy Costs,11/01/2017 00:00,30110107,2308.66,Revenue,Southern Electric,Electricity
Peterborough,http://opendatacommunities.org/id/unitary-authority/peterborough,Peterborough City Council,Education,PFI,Energy Costs,11/01/2017 00:00,30110107,5728.58,Revenue,Southern Electric,Electricity
Peterborough,http://opendatacommunities.org/id/unitary-authority/peterborough,Peterborough City Council,Vivacity/Cultural Services,Cultural Services,Energy Costs,11/01/2017 00:00,30110107,3302.92,Revenue,Southern Electric,Electricity
Peterborough,http://opendatacommunities.org/id/unitary-authority/peterborough,Peterborough City Council,Education,PFI,Energy Costs,11/01/2017 00:00,30110107,2220.77,Revenue,Southern Electric,Electricity
Peterborough,http://opendatacommunities.org/id/unitary-authority/peterborough,Peterborough City Council,Education,PFI,Energy Costs,11/01/2017 00:00,30110107,10394.94,Revenue,Southern Electric,Electricity
Peterborough,http://opendatacommunities.org/id/unitary-authority/peterborough,Peterborough City Council,City Servs & Communications,Parking Services,Water Services,11/01/2017 00:00,30110111,977.37,Revenue,Anglian Water,Water
Peterborough,http://opendatacommunities.org/id/unitary-authority/peterborough,Peterborough City Council,Education,Pupil Referral Unit,Services,11/01/2017 00:00,30110171,585,Revenue,Boome Academy,Courses And Seminars
Peterborough,http://opendatacommunities.org/id/unitary-authority/peterborough,Peterborough City Council,Adult Services & Communities - Adults,Independent Sector Placements,Services,11/01/2017 00:00,30110217,790.08,Revenue,Park Vista Care Home,Residential Care
Peterborough,http://opendatacommunities.org/id/unitary-authority/peterborough,Peterborough City Council,Corporate Property,Strategic Projects,Energy Costs,11/01/2017 00:00,30110222,742.34,Revenue,Haven Power Ltd,Electricity
Peterborough,http://opendatacommunities.org/id/unitary-authority/peterborough,Peterborough City Council,Legal & Democratic,Legal Services,Services,11/01/2017 00:00,30110245,500,Revenue,Mr L J Deegan,Legal Costs
Peterborough,http://opendatacommunities.org/id/unitary-authority/peterborough,Peterborough City Council,Adult Services & Communities - Adults,Mental Capacity Act & DoLs,Services,11/01/2017 00:00,30110317,740,Revenue,SS Psychiatric Services Ltd,Hired Services
Peterborough,http://opendatacommunities.org/id/unitary-authority/peterborough,Peterborough City Council,Business Management and Commercial Operations,Clare Lodge,Agency Staff,11/01/2017 00:00,30110327,2032,Revenue,Wrixon Care Services,External Temporary Staff
Peterborough,http://opendatacommunities.org/id/unitary-authority/peterborough,Peterborough City Council,Business Management and Commercial Operations,Clare Lodge,Agency Staff,11/01/2017 00:00,30110330,880,Revenue,Wrixon Care Services,External Temporary Staff
Peterborough,http://opendatacommunities.org/id/unitary-authority/peterborough,Peterborough City Council,Business Management and Commercial Operations,Clare Lodge,Agency Staff,11/01/2017 00:00,30110337,912,Revenue,Wrixon Care Services,External Temporary Staff
Peterborough,http://opendatacommunities.org/id/unitary-authority/peterborough,Peterborough City Council,Adult Services & Communities - Adults,Independent Sector Placements,Services,11/01/2017 00:00,30110340,3669.3,Revenue,Boulevard Care Limited,Residential Care
Peterborough,http://opendatacommunities.org/id/unitary-authority/peterborough,Peterborough City Council,Business Management and Commercial Operations,Clare Lodge,Agency Staff,11/01/2017 00:00,30110342,912,Revenue,Wrixon Care Services,External Temporary Staff
Peterborough,http://opendatacommunities.org/id/unitary-authority/peterborough,Peterborough City Council,Business Management and Commercial Operations,Clare Lodge,Agency Staff,11/01/2017 00:00,30110344,1536,Revenue,Wrixon Care Services,External Temporary Staff
Peterborough,http://opendatacommunities.org/id/unitary-authority/peterborough,Peterborough City Council,Business Management and Commercial Operations,Clare Lodge,Agency Staff,11/01/2017 00:00,30110345,2176,Revenue,Wrixon Care Services,External Temporary Staff
